{"text_format":"1","workbook":"xlsx","n_sheets":11,"sheets":["Hlavní list","Zateplení","Kotel","Osvětlení","parametry","Osvětlení_parametry","budova","budova_opatření","opatření k realizaci","Tisk","export dat"],"not_rendered":{"charts":0,"images":4,"macros":1,"external_links":0,"defined_names":48,"comments":3,"pivot_tables":0},"unopened":[],"bounds":{"document_bytes":16777216,"sheet_cells":100000,"rows_first":2000,"rows_last":500,"rows_between":2000,"halvings":0,"cell_chars":16384,"cell_head_chars":4096},"cells_cut":0,"cells_raw":0,"read":"whole","date_system":"1900"}

{"sheet":"Hlavní list","index":0,"n_rows":108,"n_cols":8,"rows_kept":108,"cut":false,"hidden":false,"merged":[[51,4,51,6],[52,4,52,6],[51,2,51,3],[52,2,52,3],[53,4,53,6],[53,2,53,3],[54,4,54,6],[55,4,55,6],[61,4,61,6],[62,4,62,6],[63,4,63,6],[64,4,64,6],[56,4,56,6],[57,4,57,6],[58,4,58,6],[59,4,59,6],[60,4,60,6],[62,2,62,3],[63,2,63,3],[64,2,64,3],[55,2,55,3],[56,2,56,3],[57,2,57,3],[58,2,58,3],[59,2,59,3],[60,2,60,3],[54,2,54,3],[61,2,61,3],[2,1,2,4],[3,1,3,4],[10,2,10,6],[5,2,5,6],[6,2,6,6],[7,2,7,6],[8,2,8,6],[9,2,9,6],[50,4,50,5],[40,2,40,3],[41,2,41,3],[45,2,45,3],[14,2,14,3],[15,2,15,3],[16,2,16,3],[39,2,39,3],[50,2,50,3],[21,1,22,2],[23,1,24,2],[21,3,22,3],[23,3,24,3],[25,1,26,2],[25,3,26,3],[18,1,18,3],[19,1,20,2],[19,3,20,3],[34,2,34,3],[47,2,47,3]]}
[null,null,null,null,null,"vytvořil:"]
[]
[null,"Nástroj k posouzení potenciálu úspor energie v programu Úspory energie"]
[null,"u klientů Českomoravské rozvojové a záruční banky realizací jednoho až tří úsporných opatření nebo jejich kombinací."]
[null,"0. Vyplňte identifikační údaje"]
[null,"Název projektu:"]
[null,"Klient:"]
[null,"IČ klienta:"]
[null,"Adresa žadatele:"]
[null,"Adresa místa realizace projektu:"]
[null,"Popis projektu:"]
[]
[]
[null,"1. Zaškrtněte, jaká opatření plánujete realizovat:"]
[null,null,"1. Výměna zdroje tepla",null,{"$f":"parametry!B109","v":false}]
[null,null,"2. Zateplení, výměna výplní, instalace mechanického větrání",null,{"$f":"parametry!B110","v":false}]
[null,null,"3. Náhrada světelných zdrojů LED zdroji",null,{"$f":"parametry!B111","v":false}]
[]
[null,"2. Předpokládané výdaje na realizaci projektu"]
[null,"Výdaje na technické zhodnocení stavby (materiál a práce pro provedení zateplení, výměna u stavebních otvorů, další stavební práce spojené s provedením energetického opatření)"]
[]
[null,"Výdaje na výměnu stávajícího zdroje energie (výměna kotle, apod.)"]
[]
[null,"Výdaje na provedení výměny stávajícího osvětlení v budovách "]
[]
[null,"Výdaje celkem",null,{"$f":"IF(parametry!B109,D22,0)+IF(parametry!B111,D24,0)+IF(parametry!B110,D20,0)","v":0}]
[]
[]
[null,"3. Vyplňte postupně následující formuláře:"]
[null,"Zateplení",{"$f":"IF(parametry!B110=TRUE,IFERROR(IF(Zateplení!H104=FALSE,\"Doplňte list Zateplení\",\"List Zateplení je celý vyplněn\"),\"Doplňte list Zateplení\"),\"\")","v":""},null,null,null,null,{"$f":"IF(C30=\"Doplňte list Zateplení\",IF(C30=\"List Zateplení je celý vyplněn\",TRUE,FALSE),\"\")","v":""}]
[null,"Kotel",{"$f":"IF(parametry!B109=FALSE,\"\",IF(Kotel!K23=TRUE,\"List Kotel je celý vyplněn\",\"Doplňte list Kotel\"))","v":""},null,null,null,null,{"$f":"IF(C31=\"Doplňte list Kotel\",IF(C31=\"List Kotel je celý vyplněn\",TRUE,FALSE),\"\")","v":""}]
[null,"Osvětlení",{"$f":"IF(parametry!B111=TRUE,IFERROR(IF(OR(Osvětlení!D43=0,Osvětlení!D43=Osvětlení!D44,Osvětlení!D44=0),\"Doplňte list Osvětlení\",\"List Osvětlení je celý vyplněn\"),\"Doplňte list Osvětlení\"),\"\")","v":""}]
[]
[null,"4. Výsledky"]
[null,null,"Celkem / Total"]
[null,null,"kWh","GJ"]
[null,"Výchozí roční spotřeba energie",{"$f":"IF(kontrola=TRUE,D37/3.6*1000,\"\")","v":""},{"$f":"IF(kontrola=TRUE,parametry!N84,\"\")","v":""}]
[null,"Výsledná roční spotřeba energie",{"$f":"IF(kontrola=TRUE,D38/3.6*1000,\"\")","v":""},{"$f":"IF(kontrola=TRUE,parametry!N85,\"\")","v":""}]
[null,"Roční úspora paliv a energie",{"$f":"IF(C37=\"\",\"\",C37-C38)","v":""},{"$f":"IF(D37=\"\",\"\",D37-D38)","v":""}]
[null,"Roční úspora paliv a  energie [%]",{"$f":"IFERROR(C39/C37,0)","v":0}]
[null,"Roční úspora emisí CO2 [kg] ",{"$f":"IF(kontrola=TRUE,parametry!N89,0)","v":0}]
[null,"Roční úspora emisí CO2 [%] ",{"$f":"IF(kontrola=TRUE,parametry!N89/parametry!N87,0)","v":0}]
[null,"Roční úspora emisí tuhých látek [kg]",null,{"$f":"parametry!N95","v":0}]
[null,"Roční úspora emisí frakcí PM10 [kg]",null,{"$f":"parametry!N98","v":0}]
[null,"Roční úspora emisí  frakcí PM2,5 [kg]",null,{"$f":"parametry!N101","v":0}]
[null,"Roční úspora nákladů na energii [Kč]",{"$f":"IF(kontrola=TRUE,parametry!N92,0)","v":0}]
[]
[null,"Celkové vyhodnocení",{"$f":"IF(D26>3000000,\"Projekt je NEZPŮSOBILÝ k realizaci v programu Úspory energie\",IF(D37=\"\",\"Nejsou zadána všechna data\",IF(parametry!N86>parametry!N84,\"Projekt není zadán správně. Opravte zadané parametry opatření (plochy zateplovaných konstrukcí, tloušťky izolací, větraný objem) a budovy (vytápěná plocha, spotřeba energie před realizací)\",IF(AND(C40>10%,'opatření k realizaci'!J17=\"Všechna opatření splňují požadavky programu\"),\"Projekt je způsobilý k realizaci v programu Úspory energie\",\"Projekt je NEZPŮSOBILÝ k realizaci v programu Úspory energie\"))))","v":"Nejsou zadána všechna data"}]
[]
[null,"5. Specifikace realizovaných opatření"]
[null,"Realizovaná opatření","Popis opatření",null,"Vyhodnocení opatření"]
[1,{"$f":"'opatření k realizaci'!C21","v":""},{"$f":"'opatření k realizaci'!D21","v":""},null,{"$f":"'opatření k realizaci'!E21","v":""}]
[2,{"$f":"'opatření k realizaci'!C22","v":""},{"$f":"'opatření k realizaci'!D22","v":""},null,{"$f":"'opatření k realizaci'!E22","v":""}]
[3,{"$f":"'opatření k realizaci'!C23","v":""},{"$f":"'opatření k realizaci'!D23","v":""},null,{"$f":"'opatření k realizaci'!E23","v":""}]
[4,{"$f":"'opatření k realizaci'!C24","v":""},{"$f":"'opatření k realizaci'!D24","v":""},null,{"$f":"'opatření k realizaci'!E24","v":""}]
[5,{"$f":"'opatření k realizaci'!C25","v":""},{"$f":"'opatření k realizaci'!D25","v":""},null,{"$f":"'opatření k realizaci'!E25","v":""}]
[6,{"$f":"'opatření k realizaci'!C26","v":""},{"$f":"'opatření k realizaci'!D26","v":""},null,{"$f":"'opatření k realizaci'!E26","v":""}]
[7,{"$f":"'opatření k realizaci'!C27","v":""},{"$f":"'opatření k realizaci'!D27","v":""},null,{"$f":"'opatření k realizaci'!E27","v":""}]
[8,{"$f":"'opatření k realizaci'!C28","v":""},{"$f":"'opatření k realizaci'!D28","v":""},null,{"$f":"'opatření k realizaci'!E28","v":""}]
[9,{"$f":"'opatření k realizaci'!C29","v":""},{"$f":"'opatření k realizaci'!D29","v":""},null,{"$f":"'opatření k realizaci'!E29","v":""}]
[10,{"$f":"'opatření k realizaci'!C30","v":""},{"$f":"'opatření k realizaci'!D30","v":""},null,{"$f":"'opatření k realizaci'!E30","v":""}]
[11,{"$f":"'opatření k realizaci'!C31","v":""},{"$f":"'opatření k realizaci'!D31","v":""},null,{"$f":"'opatření k realizaci'!E31","v":""}]
[12,{"$f":"'opatření k realizaci'!C32","v":""},{"$f":"'opatření k realizaci'!D32","v":""},null,{"$f":"'opatření k realizaci'!E32","v":""}]
[13,{"$f":"'opatření k realizaci'!C33","v":""},{"$f":"'opatření k realizaci'!D33","v":""},null,{"$f":"'opatření k realizaci'!E33","v":""}]
[14,{"$f":"'opatření k realizaci'!C34","v":""},{"$f":"'opatření k realizaci'!D34","v":""},null,{"$f":"'opatření k realizaci'!E34","v":""}]
[]
[]
[]
[]
[]
[]
[]
[]
[null,"Heslo:"]
[]
[]
[]
[]
[]
[]
[]
[]
[]
[]
[]
[]
[]
[]
[]
[]
[]
[]
[]
[]
[]
[]
[]
[]
[]
[]
[]
[]
[]
[]
[]
[]
[]
[2]

{"sheet":"Zateplení","index":1,"n_rows":119,"n_cols":10,"rows_kept":119,"cut":false,"hidden":true,"merged":[[0,6,1,7],[30,1,31,1],[36,2,39,2],[40,2,44,2],[70,3,70,4],[65,3,65,4],[66,3,66,4],[67,3,67,4],[68,3,68,4],[69,3,69,4],[30,3,30,4],[31,3,31,4],[62,3,62,4],[64,3,64,4],[59,3,59,4],[60,3,60,4],[57,3,57,4],[72,3,72,4],[73,3,73,4],[74,3,74,4],[75,3,75,4],[58,3,58,4],[63,3,63,4],[61,3,61,4],[102,3,102,4],[76,3,76,4],[83,3,83,4],[84,3,84,4],[86,3,86,4],[87,3,87,4],[77,3,77,4],[78,3,78,4],[80,3,80,4],[81,3,81,4],[82,3,82,4],[88,3,88,4],[89,3,89,4],[90,3,90,4],[92,3,92,4],[93,3,93,4],[20,3,20,4],[27,3,27,4],[32,3,32,4],[33,3,33,4],[34,3,34,4],[21,3,21,4],[23,3,23,4],[22,2,22,4],[28,2,29,2],[30,2,31,2],[28,3,28,4],[29,3,29,4],[9,3,9,4],[10,3,10,4],[17,3,17,4],[18,3,18,4],[19,3,19,4],[11,3,11,4],[12,3,12,4],[3,3,3,4],[4,3,4,4],[6,3,6,4],[8,3,8,4],[7,3,7,4],[5,3,5,4],[100,3,100,4],[101,3,101,4],[94,3,94,4],[95,3,95,4],[96,3,96,4],[98,3,98,4],[99,3,99,4]]}
[null,"Zateplení budovy",null,null,null,null,"Pokud chcete změnit dříve vyplněnou buňku je nutné resetovat dosavadní postup na tomto listu pomocí tlačítka \"reset\" níže"]
[]
[null,"1.","Základní informace o budově"]
[null,"1.1","Jakým způsobem budete zadávat projekt?","Vyberte",null,null,null,{"$f":"IF(OR(parametry!B136=1,parametry!B136=2),FALSE,TRUE)","v":true}]
[null,"1.2","Vyberte typ posuzované budovy","Vyberte",null,null,null,{"$f":"ISBLANK(F5)","v":true}]
[null,"1.3.","Památková ochrana budovy","Vyberte ano/ne",null,null,null,{"$f":"ISBLANK(F6)","v":true}]
[null,"1.4","Znáte roční spotřebu budovy?","Vyberte ano/ne",null,null,null,{"$f":"IF(ISBLANK(F7),TRUE,IF(F7=\"ne\",TRUE,FALSE))","v":true}]
[null,"1.5","Jaká je roční spotřeba energie budovy?","kWh",null,null,{"$f":"IFERROR(IF(ISBLANK(F8)=FALSE,IF(F8/F9>1000,\"Příliš vysoká spotřeba energie na m2 plochy. Zkontrolujte spotřebu a podlahovou plochu\",IF(F8/F9<30,\"Příliš nízká spotřeba energie na m2 plochy. Zkontrolujte zadanou spotřebu a podlahovou plochu.\",\"\")),\"\"),\"\")","v":""},{"$f":"IF(ISBLANK(F7),TRUE,IF(AND(ISBLANK(F8),F7=\"ano\"),TRUE,FALSE))","v":true}]
[null,"1.6","Jaká je celková vytápěná (energeticky vztažná) plocha?","m2",null,null,{"$f":"IF(F9=0,\"Zadejte podlahovou plochu vytápěné části v m2 - součet všech podlaží, včetně obvodových stěn\",\"\")","v":"Zadejte podlahovou plochu vytápěné části v m2 - součet všech podlaží, včetně obvodových stěn"},{"$f":"ISBLANK(F9)","v":true}]
[null,"1.7","Období výstavby","Vyberte",null,null,null,{"$f":"ISBLANK(F10)","v":true}]
[null,"1.8","Vnitřní návrhová teplota v otopném období ","°C",null,null,{"$f":"IF(ISBLANK(F11),\"Zadejte vnitřní teplotu v objektu, pozn. standartně 20°C pro pobyt osob\",\"\")","v":"Zadejte vnitřní teplotu v objektu, pozn. standartně 20°C pro pobyt osob"},{"$f":"ISBLANK(F11)","v":true}]
[null,"1.9","Dochází v projektu ke změně zdroje na vytápění?","Vyberte ano/ne",null,null,{"$f":"IF(F12=\"ano\",\"Vyplňte údaje na listu KOTEL\",IF(parametry!B109=TRUE,\"Pozor na hlavním listu jste zaškrtli, že dochází k výměně zdroje, je nutno specifikovat zdroj na listu Kotel\",\"\"))","v":""},{"$f":"OR(ISBLANK(F12),ISBLANK(F11),$F$12=\"ano\",parametry!B109=TRUE)","v":true}]
[null,"1.10","Jaký typ zdroje je instalován?","Vyberte",null,null,{"$f":"IF(ISBLANK(F13),\"Vyberte převažující zdroj vytápění\",\"\")","v":"Vyberte převažující zdroj vytápění"},{"$f":"OR(ISBLANK(F13),$F$12=\"ano\",$F$13=\"kotel na topný olej\",$F$13=\"elektrokotel\",$F$13=\"kotel na zemní plyn\",$F$13=\"tepelné čerpadlo\")","v":true}]
[null,"1.11","Jaké se používá palivo?",null,null,null,null,{"$f":"IF(AND(H13=FALSE,ISBLANK(F14)),TRUE,IF(AND(H13=TRUE,ISBLANK(F13)),TRUE,FALSE))","v":true}]
[]
[]
[null,"2.","Vyhodnocení plnění požadavků dle Průkazu energetické náročnosti",null,null,null,null,{"$f":"IF(ISBLANK(F4),TRUE,IF(AND(parametry!B136=2,OR(ISBLANK(F12),AND(F12=\"ne\",OR(ISBLANK(F13),AND(OR(F13=\"kotel na tuhá paliva\",F13=\"centrální zásobování teplem\"),ISBLANK(F14)))))),TRUE,IF(parametry!B136=1,TRUE,IF(ISBLANK(parametry!B136),TRUE,FALSE))))","v":true}]
[null,"2.1","Vypočtená hodnota průměrného součinitele prostupu tepla Uem po realizaci projektu","W/(m2K)",null,null,"Zadejte hodnotu z PENB po realizaci z tabulky: Informace o stavebních prvcích a konstrukcích a technických systémech a.2) požadavky na průměrný součinitel prostupu tepla ",{"$f":"IF(H17=TRUE,TRUE,ISBLANK(F18))","v":true}]
[null,"2.2","Referenční hodnota průměrného součinitele prostupu tepla Uem,R po realizaci projektu","W/(m2K)",null,null,"Zadejte hodnotu z PENB po realizaci z tabulky: Informace o stavebních prvcích a konstrukcích a technických systémech a.2) požadavky na průměrný součinitel prostupu tepla ",{"$f":"ISBLANK(F19)","v":true}]
[null,"2.3","Vypočtená hodnota dodané energie ER po realizaci projektu","kWh",null,null,{"$f":"IF(ISBLANK(F20),\"Zadejte hodnotu z PENB po realizaci z tabulky: Energetická náročnost hodnocené budovy  e) požadavek na celkovou dodanou energii\",IF(F20/$F$9<20,\"Zadaná hodnota spotřeby je příliš nízká\",\"\"))","v":"Zadejte hodnotu z PENB po realizaci z tabulky: Energetická náročnost hodnocené budovy  e) požadavek na celkovou dodanou energii"},{"$f":"ISBLANK(F20)","v":true}]
[null,"2.4","Vypočtená hodnota referenční dodané energie ER po realizaci projektu","kWh",null,null,{"$f":"IF(ISBLANK(F21),\"Zadejte hodnotu z PENB po realizaci z tabulky: Energetická náročnost hodnocené budovy  e) požadavek na celkovou dodanou energii\",IF(F21/$F$9<20,\"Zadaná hodnota spotřeby je příliš nízká\",\"\"))","v":"Zadejte hodnotu z PENB po realizaci z tabulky: Energetická náročnost hodnocené budovy  e) požadavek na celkovou dodanou energii"},{"$f":"ISBLANK(F21)","v":true}]
[null,"2.5","Vypočtená hodnota dodané energie ER před realizací projektu","kWh",null,null,{"$f":"IF(ISBLANK(F22),\"Zadejte hodnotu z PENB po realizaci z tabulky: Energetická náročnost hodnocené budovy  e) požadavek na celkovou dodanou energii\",IF(F22/$F$9<20,\"Zadaná hodnota spotřeby je příliš nízká\",\"\"))","v":"Zadejte hodnotu z PENB po realizaci z tabulky: Energetická náročnost hodnocené budovy  e) požadavek na celkovou dodanou energii"},{"$f":"ISBLANK(F22)","v":true}]
[null,"2.6","Vyhodnocení plnění požadavků na energetickou náročnost pro projekt jako celek",null,null,{"$f":"IF(OR(parametry!B136=1,ISBLANK(F22)),\"\",IF(F20/F22>0.9,\"Projekt nedosahuje 10% úspory; je nezpůsobilý v rámci programu, zkuste zadat projektu znovu pomocí kalkulačky\",IF(OR(F21/$F$9<20,F22/$F$9<20,F20/$F$9<20),\"Zkontrolujte prosím správnost zadaných zadaných spotřeb (body 2.3, 2.4, 2.5) a vytápěné plochy (bod 1.6). Pokud jsou zadány správně, potvrďte zadání dat v řádku 2.7\",IF(OR(F18<0.95*F19,F20<0.9*F21),\"Projekt jako celek splňuje požadavky na energetickou náročnost\",\"Projekt jako celek nesplňuje požadavky na energetickou náročnost\"))))","v":""},{"$f":"IF(F23=\"Projekt jako celek nesplňuje požadavky na energetickou náročnost\",\"Doplňte součinitele prostupu tepla u jednotlivých opatření níže v tabulce 4\",\"\")","v":""},{"$f":"IF(ISBLANK(F22),TRUE,IF(F23=\"Zkontrolujte prosím správnost zadaných zadaných spotřeb (body 2.3, 2.4, 2.5) a vytápěné plochy (bod 1.6). Pokud jsou zadány správně, potvrďte zadání dat v řádku 2.7\",FALSE,TRUE))","v":true}]
[null,"2.7","Potvrďte, že jsou hodnoty zadány správně"]
[]
[null,"3.","Vlastnosti budovy před realizací opatření",null,null,null,"Výběrem z předvolených možností definujte budovu, kterou chcete rekonstruovat v rámci programu",{"$f":"IF(parametry!B136=2,I26,J26)","v":true},{"$f":"IF(AND(parametry!B136=2,H22=FALSE,OR(F23=\"Projekt jako celek splňuje požadavky na energetickou náročnost\",F23=\"Projekt jako celek nesplňuje požadavky na energetickou náročnost\")),FALSE,IF(AND(parametry!B136=2,ISBLANK(F24)),TRUE,FALSE))","v":false},{"$f":"IF(AND(parametry!B136=1,H13=TRUE,H14=FALSE),FALSE,IF(F12=\"ano\",FALSE,IF(AND(H13=FALSE,H14=FALSE),FALSE,TRUE)))","v":true}]
[null,"3.1","Popis stávajících konstrukcí"]
[null,"3.1.1","Obvodový plášť","Specifikujte konstrukci",null,null,"Vyberte z předvolených konstrukcí konstrukci, která nejvíce odpovídá vašemu objektu",{"$f":"ISBLANK(F28)","v":true}]
[null,"3.1.2","Střecha","Vyberte typ konstrukce",null,null,"\"Šikmá střecha\" znamená využívané podkroví, \"Strop půdy\" znamená nevytápěnou půdu",true]
[null,"3.1.3",null,"Specifikujte konstrukci",null,null,"Vyberte z předvolených konstrukcí konstrukci, která nejvíce odpovídá vašemu objektu, pokud je předvolená pouze 1 možnost, vyberte ji",true]
[null,"3.1.4","Podlaha, strop nad suterénem","Vyberte typ konstrukce",null,null,"Pokud je v budově vytápěný suterén - zvolte \"Podlaha na zemině\"",true]
[null,"3.1.5",null,"Specifikujte konstrukci",null,null,"Vyberte z předvolených konstrukcí konstrukci, která nejvíce odpovídá vašemu objektu, pokud je předvolená pouze 1 možnost, vyberte ji",true]
[null,"3.1.6","Okna","Vyberte typ konstrukce",null,null,"Vyberte výplň, kterou hodláte měnit. Pokud měníte více typů výplní, zvolte tu , která odpovídá největší ploše měněných výplní.",true]
[null,"3.1.7","Dveře, vrata","Vyberte typ konstrukce",null,null,"Vyberte dveřní výplň, kterou hodláte měnit. Pokud měníte více typů výplní, zvolte tu , která odpovídá největší ploše měněných výplní.",true]
[null,"3.1.8","Střešní okna, světlíky","Vyberte typ konstrukce",null,null,"Pokud v budově nejsou střešní okna ani světlíky, nevybírejte nic a pokračujte vyplněním tabulky č. 4"]
[null,"3.2","Provedená opatření od doby výstavby objektu / Measures already carried out"]
[null,null,"Výměna oken / Windows replacement","Vyberte ano / ne"]
[null,null,null,"Kdy (rok realizace)"]
[null,null,null,"Typ vyměněných oken vyberte"]
[null,null,null,"Plocha vyměněných oken v m2"]
[null,null,"Zateplení obvodového pláště / Insulation of the building envelope","Vyberte ano / ne"]
[null,null,null,"Kdy (rok realizace)"]
[null,null,null,"Typ zateplení"]
[null,null,null,"Tloušťka tepelné izolace [mm]"]
[null,null,null,"Plocha zateplené konstrukce v m2"]
[null,null,"Zateplení střechy / Insulation of the roof","Vyberte ano / ne",null,null,{"$f":"IF(F2=\"ne\",IF(AND(F46=\"ano\",F50=0),\"Zadejte % zateplení\",\"\"),\"\")","v":""}]
[null,null,null,"Kdy (rok realizace)"]
[null,null,null,"Typ zateplení"]
[null,null,null,"Tloušťka tepelné izolace [mm]"]
[null,null,null,"Plocha zateplené konstrukce v m2"]
[null,null,"Zateplení podlahy / Insulation of the floor","Vyberte ano / ne",null,null,{"$f":"IF(F7=\"ne\",IF(AND(F51=\"ano\",F55=0),\"Zadejte % zateplení\",\"\"),\"\")","v":""}]
[null,null,null,"Kdy (rok realizace)"]
[null,null,null,"Typ zateplení"]
[null,null,null,"Tloušťka tepelné izolace [mm]"]
[null,null,null,"Plocha zateplené konstrukce v m2"]
[]
[null,"4.","Opatření k realizaci",null,null,null,"Definujte parametry opatření, která hodláte realizovat v rámci programu"]
[null,"4.1.","Zateplení obvodového pláště","Vyberte ano / ne",null,null,null,{"$f":"OR(ISBLANK(F58),F58=\"ne\")","v":true},{"$f":"AND(F58=\"ano\",ISBLANK(F62))","v":false}]
[null,"4.1.2",null,"Typ zateplení",null,null,"Vyberte typ zateplení, které nejlépe charakterizuje vámi realizované. V případě realizace více typů, uveďte ten s největší plochou.",{"$f":"OR(ISBLANK(F58),F58=\"ne\")","v":true}]
[null,"4.1.3",null,"Tloušťka tepelné izolace [mm]",null,null,"Tloušťku izolace zadejte v mm",{"$f":"(ISBLANK(F59))","v":true}]
[null,"4.1.4",null,"Plocha zateplované konstrukce [m2]",null,null,null,{"$f":"(ISBLANK(F60))","v":true}]
[null,"4.1.5",null,"Součinitel prostupu tepla konstrukce z PENB [W/(m2.K)]",null,null,"Zadejte hodnotu z Průkazu energetické náročnosti po realizaci projektu z tabulky a.1) požadavky na součinitel prostupu tepla - Vypočtená hodnota Uj",{"$f":"IF(ISBLANK(F61),TRUE,IF(parametry!$B$136=2,FALSE,TRUE))","v":true}]
[null,"4.1.6",null,"Součinitel prostupu tepla výpočet z kalkulačky  [W/(m2.K)]",null,{"$f":"IF(ISBLANK(F60),\"\",parametry!H186)","v":""},null,{"$f":"IF(ISBLANK(F61),TRUE,IF(parametry!$B$136=2,TRUE,FALSE))","v":true}]
[null,"4.1.7",null,"Požadavek programu na U [W/(m2.K)]",{"$f":"parametry!L186","v":{"$error":"#N/A"}},{"$f":"IF(ISBLANK(F60),\"\",parametry!K186)","v":""},"Hodnota je nastavená dle specifických podmínek programu a vámi zvoleného typu budovy a dalších kritérií",{"$f":"IF(ISBLANK(F4),TRUE,IF(ISBLANK(parametry!$B$136),TRUE,IF(AND(OR(F58=\"ano\",ISBLANK(F58)),parametry!$B$136=2,ISBLANK(F62)),TRUE,IF(AND(OR(F58=\"ano\",ISBLANK(F58)),parametry!$B$136=1,ISBLANK(F61)),TRUE,FALSE))))","v":true}]
[null,"4.1.8",null,"Vyhodnocení plnění požadavku",null,{"$f":"parametry!M186","v":""}]
[null,"4.2.","Zateplení střechy","Vyberte ano / ne",null,null,null,{"$f":"IF(ISBLANK(F58),TRUE,IF(F58=\"ANO\",IF(parametry!B136=1,ISBLANK(Zateplení!F61),ISBLANK(Zateplení!F62)),FALSE))","v":true},{"$f":"AND(F66=\"ano\",ISBLANK(F70))","v":false}]
[null,"4.2.2",null,"Typ zateplení",null,null,"Vyberte typ zateplení, které nejlépe charakterizuje vámi realizované.  V případě realizace více typů, uveďte ten s největší plochou.",{"$f":"OR(ISBLANK(F66),F66=\"ne\")","v":true}]
[null,"4.2.3",null,"Tloušťka tepelné izolace [mm]",null,null,"Tloušťku izolace zadejte v mm",{"$f":"(ISBLANK(F67))","v":true}]
[null,"4.2.4",null,"Plocha zateplované konstrukce [m2]",null,null,null,{"$f":"(ISBLANK(F68))","v":true}]
[null,"4.2.5",null,"Součinitel prostupu tepla konstrukce z PENB [W/(m2.K)]",null,null,"Zadejte hodnotu z Průkazu energetické náročnosti po realizaci projektu z tabulky a.1) požadavky na součinitel prostupu tepla - Vypočtená hodnota Uj",{"$f":"IF(ISBLANK(F69),TRUE,IF(parametry!$B$136=2,FALSE,TRUE))","v":true}]
[null,"4.2.6",null,"Součinitel prostupu tepla výpočet z kalkulačky  [W/(m2.K)]",null,{"$f":"IF(ISBLANK(F68),\"\",parametry!H187)","v":""},null,{"$f":"IF(ISBLANK(F69),TRUE,IF(parametry!$B$136=2,TRUE,FALSE))","v":true}]
[null,"4.2.7",null,"Požadavek programu na U [W/(m2.K)]",{"$f":"parametry!L187","v":{"$error":"#N/A"}},{"$f":"IF(ISBLANK(F68),\"\",parametry!K187)","v":""},"Hodnota je nastavená dle specifických podmínek programu a vámi zvoleného typu budovy a dalších kritérií",{"$f":"IF(ISBLANK(F4),TRUE,IF(ISBLANK(parametry!$B$136),TRUE,IF(AND(OR(F66=\"ano\",ISBLANK(F66)),parametry!$B$136=2,ISBLANK(F70)),TRUE,IF(AND(OR(F66=\"ano\",ISBLANK(F66)),parametry!$B$136=1,ISBLANK(F69)),TRUE,FALSE))))","v":true}]
[null,"4.2.8",null,"Vyhodnocení plnění požadavku",null,{"$f":"parametry!M187","v":""},{"$f":"IF(F73=\"Konstrukce nesplňuje požadavky programu\",\"Pozn. Upravte tloušťku nebo typ zateplení nebo součinitel prostupu tepla konstrukce\",\"\")","v":""}]
[null,"4.3.","Zateplení podlahy","Vyberte ano / ne",null,null,null,{"$f":"OR(IF(ISBLANK(F66),TRUE,NOT(F66=\"ne\")),IF(parametry!B136=1,ISBLANK(Zateplení!F69),ISBLANK(Zateplení!F70))) =IF(ISBLANK(F66),TRUE,IF(F66=\"ANO\",IF(parametry!B136=1,ISBLANK(Zateplení!F69),ISBLANK(Zateplení!F70)),FALSE))","v":true},{"$f":"AND(F74=\"ano\",ISBLANK(F78))","v":false}]
[null,"4.3.2",null,"Typ zateplení",null,null,"Vyberte typ zateplení, které nejlépe charakterizuje vámi realizované.  V případě realizace více typů, uveďte ten s největší plochou.",{"$f":"OR(ISBLANK(F74),F74=\"ne\")","v":true}]
[null,"4.3.3",null,"Tloušťka tepelné izolace [mm]",null,null,"Tloušťku izolace zadejte v mm",{"$f":"(ISBLANK(F75))","v":true}]
[null,"4.3.4",null,"Plocha zateplované konstrukce [m2]",null,null,null,{"$f":"(ISBLANK(F76))","v":true}]
[null,"4.3.5",null,"Součinitel prostupu tepla konstrukce z PENB [W/(m2.K)]",null,null,"Zadejte hodnotu z Průkazu energetické náročnosti po realizaci projektu z tabulky a.1) požadavky na součinitel prostupu tepla - Vypočtená hodnota Uj",{"$f":"IF(ISBLANK(F77),TRUE,IF(parametry!$B$136=2,FALSE,TRUE))","v":true}]
[null,"4.3.6",null,"Součinitel prostupu tepla výpočet z kalkulačky  [W/(m2.K)]",null,{"$f":"IF(ISBLANK(F76),\"\",parametry!H188)","v":""},null,{"$f":"IF(ISBLANK(F77),TRUE,IF(parametry!$B$136=2,TRUE,FALSE))","v":true}]
[null,"4.3.7",null,"Požadavek programu  [W/(m2.K)]",{"$f":"parametry!L188","v":{"$error":"#N/A"}},{"$f":"IF(ISBLANK(F76),\"\",parametry!K188)","v":""},"Hodnota je nastavená dle specifických podmínek programu a vámi zvoleného typu budovy a dalších kritérií",{"$f":"IF(ISBLANK(F4),TRUE,IF(ISBLANK(parametry!$B$136),TRUE,IF(AND(OR(F74=\"ano\",ISBLANK(F74)),parametry!$B$136=2,ISBLANK(F78)),TRUE,IF(AND(OR(F74=\"ano\",ISBLANK(F74)),parametry!$B$136=1,ISBLANK(F77)),TRUE,FALSE))))","v":true}]
[null,"4.3.8",null,"Vyhodnocení plnění požadavku",null,{"$f":"parametry!M188","v":""},{"$f":"IF(F81=\"Konstrukce nesplňuje požadavky programu\",\"Pozn. Upravte tloušťku nebo typ zateplení nebo součinitel prostupu tepla konstrukce\",\"\")","v":""}]
[null,"4.4.","Výměna oken, výplní ve stěně","Vyberte ano / ne",null,null,null,{"$f":"IF(ISBLANK(F74),TRUE,IF(F74=\"ANO\",IF(parametry!B136=1,ISBLANK(Zateplení!F77),ISBLANK(Zateplení!F78)),FALSE))","v":true},{"$f":"AND(F82=\"ano\",ISBLANK(F85))","v":false}]
[null,"4.4.2",null,"Typ oken",null,null,"Vyberte typ oken, která nejlépe charakterizují vámi realizované. V případě realizace více typů, uveďte ten s největší plochou",{"$f":"OR(ISBLANK(F82),F82=\"ne\")","v":true}]
[null,"4.4.3",null," Plocha vyměňovaných oken [m2]",null,null,null,{"$f":"(ISBLANK(F83))","v":true}]
[null,"4.4.4",null,"Zadejte součinitel prostupu tepla nových oken [W/(m2.K)]",null,null,null,{"$f":"(ISBLANK(F84))","v":true}]
[null,"4.4.5",null,"Požadavek programu  [W/(m2.K)]",{"$f":"parametry!L189","v":{"$error":"#N/A"}},{"$f":"IF(ISBLANK(F85),\"\",parametry!K189)","v":""},"Hodnota je nastavená dle specifických podmínek programu a vámi zvoleného typu budovy a dalších kritérií",{"$f":"IF(AND(OR(F82=\"ano\",ISBLANK(F82)),ISBLANK(F85)),TRUE,FALSE)","v":true}]
[null,"4.4.6",null,"Vyhodnocení plnění požadavku",null,{"$f":"parametry!M189","v":""},{"$f":"IF(F87=\"Konstrukce nesplňuje požadavky programu\",\"Pozn. Upravte tloušťku nebo typ zateplení nebo součinitel prostupu tepla konstrukce\",\"\")","v":""}]
[null,"4.5.","Výměna dveří, vrat","Vyberte ano / ne",null,null,null,{"$f":"IF(ISBLANK(F88),TRUE,IF(F88=\"ANO\",IF(parametry!B136=1,ISBLANK(Zateplení!F83),ISBLANK(Zateplení!F84)),FALSE))","v":true},{"$f":"AND(F88=\"ano\",ISBLANK(F91))","v":false}]
[null,"4.5.2",null,"Vyberte typ dveří, vrat",null,null,"Vyberte typ dveří, které nejlépe charakterizují vámi realizované. V případě realizace více typů, uveďte ten s největší plochou.",{"$f":"OR(ISBLANK(F88),F88=\"ne\")","v":true}]
[null,"4.5.3",null,"Plocha vyměňovaných dveří [m2]",null,null,null,{"$f":"(ISBLANK(F89))","v":true}]
[null,"4.5.4",null,"Zadejte součinitel prostupu tepla [W/(m2.K)]",null,null,null,{"$f":"(ISBLANK(F90))","v":true}]
[null,"4.5.5",null,"Požadavek programu  [W/(m2.K)]",{"$f":"parametry!L190","v":{"$error":"#N/A"}},{"$f":"IF(ISBLANK(F91),\"\",parametry!K190)","v":""},"Hodnota je nastavená dle specifických podmínek programu a vámi zvoleného typu budovy a dalších kritérií"]
[null,"4.5.6",null,"Vyhodnocení plnění požadavku",null,{"$f":"parametry!M190","v":""},{"$f":"IF(F93=\"Konstrukce nesplňuje požadavky programu\",\"Pozn. Upravte tloušťku nebo typ zateplení nebo součinitel prostupu tepla konstrukce\",\"\")","v":""},{"$f":"IF(AND(OR(F88=\"ano\",ISBLANK(F88)),ISBLANK(F91)),TRUE,FALSE)","v":true}]
[null,"4.6.","Výměna střešních oken, světlíků ","Vyberte ano / ne",null,null,{"$f":"IF(AND(ISBLANK(F35),F94=\"ano\"),\"Pozor nespecifikovali jste konstrukci v sekci 3.1.8.\",\"\")","v":""},{"$f":"OR(ISBLANK(F94),F94=\"ne\")","v":true},{"$f":"AND(F94=\"ano\",ISBLANK(F97))","v":false}]
[null,"4.6.2",null,"Vyperte typ oken",null,null,"Vyberte typ oken, která nejlépe charakterizují vámi realizované. V případě realizace více typů, uveďte ten s největší plochou",{"$f":"OR(ISBLANK(F94),F94=\"ne\")","v":true}]
[null,"4.6.3",null," Plocha vyměňovaných oken / světlíků [m2]",null,null,null,{"$f":"(ISBLANK(F95))","v":true}]
[null,"4.6.4",null,"Zadejte součinitel prostupu tepla",null,null,null,{"$f":"(ISBLANK(F96))","v":true}]
[null,"4.6.5",null,"Požadavek programu  [W/(m2.K)]",{"$f":"parametry!L191","v":{"$error":"#N/A"}},{"$f":"IF(ISBLANK(F97),\"\",parametry!K191)","v":""},"Hodnota je nastavená dle specifických podmínek programu a vámi zvoleného typu budovy a dalších kritérií",{"$f":"IF(AND(OR(F94=\"ano\",ISBLANK(F94)),ISBLANK(F97)),TRUE,FALSE)","v":true}]
[null,"4.6.6",null,"Vyhodnocení plnění požadavku",null,{"$f":"parametry!M191","v":""},{"$f":"IF(F99=\"Konstrukce nesplňuje požadavky programu\",\"Pozn. Upravte tloušťku nebo typ zateplení nebo součinitel prostupu tepla konstrukce\",\"\")","v":""}]
[null,"4.7.","Instalace mechanického větrání s rekuperací","Vyberte ano / ne",null,null,null,{"$f":"OR(ISBLANK(F100),F100=\"ne\")","v":true}]
[null,"4.7.2",null,"Zadejte účinnost rekuperace systému nuceného větrání v %",null,null,{"$f":"IF(ISBLANK(F101),\"\",IF(F101<67%,\"Nesplňuje požadavky na účinnost rekuperace, účinnost musí být alespoň 67%\",\"\"))","v":""},{"$f":"OR(ISBLANK(F100),F100=\"ne\")","v":true}]
[null,"4.7.3",null,"Zadejte větraný objem v m3/h",null,null,null,{"$f":"ISBLANK(F101)","v":true}]
[null,"4.7.4",null,"Je toto opatření součástí PENB? Vyberte ano / ne",null,null,null,{"$f":"ISBLANK(F102)","v":true}]
[null,null,null,null,null,{"$f":"IF(H104=TRUE,\"Konec formuláře\",\"\")","v":""},null,{"$f":"IF(G94=\"Pozor nespecifikovali jste konstrukci v sekci 3.1.8.\",FALSE,IF(AND(F100=\"ano\",ISBLANK(F103)),FALSE,IF(F100=\"NE\",TRUE,IF(F100=\"ano\",TRUE,FALSE))))","v":false}]
[null,"5.","Vyhodnocení plnění požadavků na energetickou náročnost"]
[null,null,{"$f":"IF(parametry!B136=2,IF(F24=\"ano\",\"\",Zateplení!F23),\"\")","v":""}]
[null,null,{"$f":"IF(ISBLANK(F100),\"\",IF(OR(parametry!M186=\"Konstrukce nesplňuje požadavky programu\",parametry!M187=\"Konstrukce nesplňuje požadavky programu\",parametry!M188=\"Konstrukce nesplňuje požadavky programu\",parametry!M189=\"Konstrukce nesplňuje požadavky programu\",parametry!M190=\"Konstrukce nesplňuje požadavky programu\",parametry!M191=\"Konstrukce nesplňuje požadavky programu\",G101=\"Konstrukce nesplňuje požadavky na účinnost rekuperace, účinnost musí být alespoň 67%\"),\"Opatření nesplňují požadavky programu\",\"Opatření splňují požadavky programu\"))","v":""}]
[null,null,{"$f":"IF(H104=FALSE,\"Nejsou vyplněna všechna data\",IF(ISBLANK(F100),\"\",IF(AND(parametry!B109=TRUE,ISBLANK(Kotel!E4)),\"Pro celkové vyhodnocení doplňte parametry zdroje na listu KOTEL\",IF(AND(F7=\"ano\",OR(parametry!O194>1000,3*parametry!E86<parametry!E87)),\"Zkontrolujte zda jsou správně zadány plochy zateplovaných konstrukcí, tloušťky izolací, větraný objem a parametry budovy (vytápěná plocha, spotřeba energie před realizací).\",IF(parametry!O194>1000,\"Zkontrolujte zda jsou správně zadány plochy zateplovaných konstrukcí, tloušťky izolací, větraný objem a parametry budovy (vytápěná plocha, spotřeba energie před realizací).\",\"\")))))","v":"Nejsou vyplněna všechna data"}]
[]
[null,"6.",{"$f":"IF(parametry!B109=TRUE,\"Bilance spotřeby energie před a po realizaci opatření je uvedena v listu KOTEL\",\"Bilance spotřeby energie před a po realizaci opatření\")","v":"Bilance spotřeby energie před a po realizaci opatření"},null,null,null,{"$f":"parametry!B109=TRUE","v":false}]
[null,null,"Spotřeba před realizací opatření",{"$f":"IF(AND(parametry!B109=TRUE,parametry!B110=TRUE,parametry!B119=2),0,IF(AND(parametry!B109=TRUE,parametry!B110=TRUE),0,IF(parametry!B110=TRUE,IFERROR(parametry!B71*GJ_na_kWh,0),0)))","v":0},null,"kWh/rok"]
[null,null,"Spotřeba po realizací opatření",{"$f":"IF(AND(parametry!B109=TRUE,parametry!B110=TRUE,parametry!B119=2),0,IF(AND(parametry!B109=TRUE,parametry!B110=TRUE),0,IF(parametry!B110=TRUE,IFERROR(parametry!B75*GJ_na_kWh,0),0)))","v":0},null,"kWh/rok"]
[null,null,"Úspora energie",{"$f":"D111-D112","v":0},null,"kWh/rok"]
[null,null,"Úspora energie",{"$f":"IFERROR(D113/D111,0)","v":0}]
[null,null,"z toho:"]
[null,null,"teplo",{"$f":"IF(AND(parametry!B109=TRUE,parametry!B110=TRUE,parametry!B119=2),0,IF(AND(parametry!B109=TRUE,parametry!B110=TRUE),0,IF(parametry!B110=TRUE,IFERROR(parametry!B81*GJ_na_kWh,0),0)))","v":0},null,"kWh/rok"]
[null,null,"elektřina",{"$f":"IF(AND(parametry!B109=TRUE,parametry!B110=TRUE,parametry!B119=2),0,IF(AND(parametry!B109=TRUE,parametry!B110=TRUE),0,IF(parametry!B110=TRUE,IFERROR(parametry!B82*GJ_na_kWh,0),0)))","v":0},null,"kWh/rok"]
[null,null,"úspora CO2",{"$f":"IF(AND(parametry!B109=TRUE,parametry!B110=TRUE,parametry!B119=2),0,IF(AND(parametry!B109=TRUE,parametry!B110=TRUE),0,IF(parametry!B110=TRUE,IFERROR(parametry!J77,0),0)))","v":0},null,"kg/rok"]
[null,null,"úspora Kč",{"$f":"IF(AND(parametry!B109=TRUE,parametry!B110=TRUE,parametry!B119=2),0,IF(AND(parametry!B109=TRUE,parametry!B110=TRUE),0,IF(parametry!B110=TRUE,IFERROR(parametry!K77,0),0)))","v":0},null,"Kč/rok"]

{"sheet":"Kotel","index":2,"n_rows":42,"n_cols":16,"rows_kept":42,"cut":false,"hidden":true,"merged":[[0,6,2,7],[26,2,26,4],[27,2,27,4],[12,5,12,8],[14,5,14,6],[15,5,15,6],[25,2,25,4],[16,5,16,6],[17,5,17,6]]}
[null,"Výměna zdroje tepla",null,null,null,null,"Pokud chcete změnit dříve vyplněnou buňku je nutné resetovat dosavadní postup na tomto listu pomocí tlačítka \"reset\" níže"]
[]
[null,"1","Parametry stávajícího zdroje tepla",null,null,null,null,null,null,null,null,null,"zateplení?"]
[null,"1.1","O jaký typ zdroje se jedná?","Vyberte",null,null,null,null,null,null,{"$f":"ISBLANK(E4)","v":true},null,{"$f":"IF(OR(ISBLANK(E4),parametry!B110=TRUE),TRUE,FALSE)","v":true}]
[null,"1.2","V jakém období byl zdroj vyroben?","Vyberte",null,null,null,null,null,null,{"$f":"IF(OR(ISBLANK(E5),AND(E4<>\"kotel na tuhá paliva\",E4<>\"centrální zásobování teplem\")),TRUE,FALSE)","v":true}]
[null,"1.3","Jaké se používá palivo?","Vyberte",null,{"$f":"IF(E4=\"centrální zásobování teplem\",\"Zadejte palivo používané zdrojem CZT, pokud ho neznáte zvolte hnědé uhlí\",\"\")","v":""},null,null,null,null,{"$f":"IF(OR(ISBLANK(E5),ISBLANK(E4),AND($E$4=\"kotel na tuhá paliva\",ISBLANK(E6)),AND($E$4=\"centrální zásobování teplem\",ISBLANK(E6))),TRUE,FALSE)","v":true}]
[null,"1.4",{"$f":"IF(E4=\"centrální zásobování teplem\",\"Jaká je spotřeba energie za jeden rok?\",\"Jaká je spotřeba paliva za jeden rok?\")","v":"Jaká je spotřeba paliva za jeden rok?"},{"$f":"IFERROR(IF(E4=\"centrální zásobování teplem\",\"GJ\",IF(E4=\"kotel na zemní plyn\",\"m3\",IF(E4=\"kotel na topný olej\",\"l\",IF(E4=\"elektrokotel\",\"kWh\",IF(E4=\"tepelné čerpadlo\",\"kWh\",VLOOKUP(E6,parametry!$A$52:$B$57,2,0)))))),\"\")","v":""},null,{"$f":"IF(E7=0,IF(parametry!B110=TRUE,\"\",\"Zadejte spotřebu paliva\"),\"\")","v":"Zadejte spotřebu paliva"},null,null,null,null,{"$f":"IF(OR(ISBLANK(E5),ISBLANK(E7)),TRUE,IF(parametry!B110=TRUE,FALSE,IF(AND(parametry!B110=TRUE,ISBLANK(E7)),TRUE,FALSE)))","v":true}]
[null,"1.5","Znáte účinnost zdroje?","Vyberte ano/ne",null,null,null,null,null,null,{"$f":"IF(E8=\"ne\",TRUE,ISBLANK(E8))","v":true}]
[null,"1.6","Jaká je účinnost?","Zatejte v %",null,null,null,null,null,null,{"$f":"IF(E8=\"ne\",FALSE,ISBLANK(E9))","v":true}]
[null,"1.7","Jaký je instalovaný výkon zdroje?","kWt",null,{"$f":"IFERROR(IF(E4=\"centrální zásobování teplem\",\"Zadejte '0'\",IF(((parametry!B74*GJ_na_kWh)/Kotel!E10)<1000,\"Příliš vysoký výkon zdroje\",IF(((parametry!B74*GJ_na_kWh)/Kotel!E10)>8000,\"Příliš nízký výkon\",\"\"))),\"Zadejte výkon pro kontrolu spotřeby\")","v":"Zadejte výkon pro kontrolu spotřeby"},null,null,null,null,{"$f":"IF(E4=\"centrální zásobování teplem\",ISBLANK(E7),ISBLANK(E10))","v":true}]
[]
[null,"2","Parametry nového zdroje tepla"]
[null,"2.1","Jaký je typ nového zdroje?","Vyberte",null,{"$f":"IF(E13=\"kotel na štěpku, pelety nebo brikety\",\"Nutno doložit smlouvu nebo čestné prohlášení o zabezpečení dodávky biomasy z lokálních zdrojů či budoucího dodavatele\",\"\")","v":""},null,null,null,null,{"$f":"ISBLANK(E13)","v":true}]
[null,"2.2","Znáte účinnost nového zdroje?","Vyberte ano/ne",null,null,null,null,null,null,{"$f":"IF(E13=\"tepelné čerpadlo\",TRUE,IF(ISBLANK(E14),TRUE,FALSE))","v":true}]
[null,"2.3","Jaká je účinnost?","Zatejte v %",null,{"$f":"IF(OR(ISBLANK(E14),E14=\"ne\"),\"\",IF(AND(E14=\"ano\",ISBLANK(E15)),\"Vyplňte účinnost nového zdroje\",IF(AND(E14=\"ano\",E15<80%),\"Nesplňuje požadavek na účinnost dle vyhl. č. 78/2013 Sb., minimální účinnost je 80%\",\"Splňuje požadavek na účinnost dle vyhl. č. 78/2013 Sb.\")))","v":""},null,null,null,null,{"$f":"IF(E13=\"tepelné čerpadlo\",FALSE,IF(OR(ISBLANK(E14),AND(E14=\"ano\",ISBLANK(E15))),TRUE,FALSE))","v":true}]
[null,"2.4","Jaký je instalovaný výkon zdroje?","kWt",null,{"$f":"IF(AND(E16>20000,E13=\"kotel na štěpku, pelety nebo brikety\"),\"\",IF(E16>20000,\"Maximální příkon zdroje je v programu omezen na 20 000 kW\",\"\"))","v":""},null,null,null,null,{"$f":"IF(AND(E13=\"tepelné čerpadlo\",ISBLANK(E16)),TRUE,IF(E13<>\"tepelné čerpadlo\",TRUE,FALSE))","v":true}]
[null,"2.5","Znáte sezónní účinnost (COP) tepelného čerpadla?","Vyberte ano / ne",null,{"$f":"IF(K16=TRUE,\"\",\"Sezónní účinnost 4,5 znamená, že tepelné čerpadlo při spotřebě 1 kWh elektřiny vyrobí 4,5 kWh tepla. Minimální požadavek vyhl. Č. 78/2013 Sb. je COP = 3\")","v":""},null,null,null,null,{"$f":"IF(OR(ISBLANK(E17),E17=\"ne\"),TRUE,FALSE)","v":true}]
[null,"2.6","Zadejte sezónní účinnost tepelného čerpadla","COP",null,{"$f":"IF(ISBLANK(E17),\"\",IF(E17=\"ne\",\"Pro výpočet bude použit COP 3\",IF(AND(E17=\"ano\",ISBLANK(E18)=TRUE),\"Zadejte sezónní účinnost tepelného čerpadla\",IF(E18<3,\"Nesplňuje požadavky dle vyhl. č. 78/2013 Sb., minimální COP je 3,00\",\"Nově instalovaný zdroj splňuje požadavek na účinnost dle vyhl. č. 78/2013 Sb.\"))))","v":""}]
[null,null,null,null,null,null,null,null,null,null,{"$f":"IF(AND(E13=\"tepelné čerpadlo\",OR(ISBLANK(E16),ISBLANK(E17),E17=\"ano\"),ISBLANK(E18)),TRUE,IF(AND(E13<>\"tepelné čerpadlo\",ISBLANK(E16)),TRUE,FALSE))","v":true}]
[null,"3","PENB",null,null,null,null,null,null,null,null,null,null,null,null,{"$f":"AND(NOT(ISBLANK(Kotel!E16)),E13<>\"tepelné čerpadlo\")","v":false}]
[null,"3.1","Je výměna kotle zahrnuta v PENB?","Vyberte ano/ne",null,null,null,null,null,null,{"$f":"IF(AND(parametry!B136=2,parametry!B110=TRUE,OR(AND(NOT(ISBLANK(Kotel!E16)),E13<>\"tepelné čerpadlo\"),IF(ISBLANK(E17),FALSE,IF(E17=\"ne\",TRUE,NOT(ISBLANK(E18)))))),FALSE,TRUE)","v":true},null,{"$f":"IF(AND(parametry!B136=2,parametry!B110,OR(AND(NOT(ISBLANK(Kotel!E16)),E13<>\"tepelné čerpadlo\"),IF(ISBLANK(E17),FALSE,IF(E17=\"ne\",TRUE,NOT(ISBLANK(E18)))))),FALSE,TRUE)","v":true},null,{"$f":"OR(AND(NOT(ISBLANK(Kotel!E16)),E13<>\"tepelné čerpadlo\"),IF(ISBLANK(E17),FALSE,IF(E17=\"ne\",TRUE,NOT(ISBLANK(E18)))))","v":false},{"$f":"IF(ISBLANK(E17),FALSE,IF(E17=\"ne\",TRUE,NOT(ISBLANK(E18))))","v":false}]
[null,null,null,null,{"$f":"IF(K23=TRUE,\"Konec formuláře\",\"\")","v":""}]
[null,null,null,null,null,null,null,null,null,null,{"$f":"IF(OR(AND(E13=\"tepelné čerpadlo\",ISBLANK(E18)),AND(E13<>\"tepelné čerpadlo\",ISBLANK(E16)),AND(K21=FALSE,ISBLANK(E21))),FALSE,TRUE)","v":false}]
[]
[null,"3","Vyhodnocení plnění požadavků programu"]
[null,null,{"$f":"IF(OR(AND(F15<>\"\",F1<>\"\"),F18=\"Zadejte sezónní účinnost tepelného čerpadla\"),\"Nejsou vyplněna všechna data\",IF(OR(F15=\"Nesplňuje požadavek na účinnost dle vyhl. č. 78/2013 Sb., minimální účinnost je 80%\",F18=\"Nesplňuje požadavky dle vyhl. č. 78/2013 Sb., minimální COP je 3,00\"),\"Nově instalovaný zdroj nesplňuje požadavek na účinnost dle vyhl. č. 78/2013 Sb.\",\"Nově instalovaný zdroj splňuje požadavek na účinnost dle vyhl. č. 78/2013 Sb.\"))","v":"Nově instalovaný zdroj splňuje požadavek na účinnost dle vyhl. č. 78/2013 Sb."}]
[null,null,{"$f":"IF(AND(E16>20000,E13=\"kotel na štěpku, pelety nebo brikety\"),\"\",IF(E16>20000,\"Nově instalovaný kotel má vyšší příkon než 20 MW, nesplňuje poždavek programu\",\"\"))","v":""}]
[null,null,{"$f":"IF(E13=\"kotel na štěpku, pelety nebo brikety\",\"Je instalován kotel na biomasu, je nutno doložit smlouvu nebo čestné prohlášení o zabezpečení dodávky biomasy z lokálních zdrojů či budoucího dodavatele\",\"\")","v":""}]
[]
[null,"4","Bilance spotřeby energie před a po výměně kotle"]
[null,null,"Spotřeba paliv a energie před výměnou kotle",{"$f":"IF(parametry!B109=TRUE,parametry!B71*GJ_na_kWh,0)","v":0},"kWh/rok"]
[null,null,"z toho:"]
[null,null,"elektřina",{"$f":"IF(E4=\"elektrokotel\",D31,0)","v":0},"kWh/rok"]
[null,null,"teplo ",{"$f":"IF(E4=\"elektrokotel\",0,D31)","v":0},"kWh/rok"]
[null,null,"Spotřeba paliv a energie po výměně kotle",{"$f":"IF(parametry!B109=TRUE,IF(parametry!B75*GJ_na_kWh<0,-parametry!B75*GJ_na_kWh,parametry!B75*GJ_na_kWh),0)","v":0},"kWh/rok"]
[null,null,"Úspora energie",{"$f":"IF(parametry!B109=TRUE,parametry!B80*GJ_na_kWh,0)","v":0},"kWh/rok"]
[null,null,"Úspora energie",{"$f":"IFERROR(D36/D31,0)","v":0}]
[null,null,"z toho:"]
[null,null,"teplo",{"$f":"IF(parametry!B109=TRUE,parametry!B81*GJ_na_kWh,0)","v":0},"kWh/rok"]
[null,null,"elektřina",{"$f":"IF(parametry!B109=TRUE,parametry!B82*GJ_na_kWh,0)","v":0},"kWh/rok"]
[null,null,"úspora CO2",{"$f":"IF(parametry!B109=TRUE,parametry!J77,0)","v":0},"kg/rok"]
[null,null,"úspora Kč",{"$f":"IF(parametry!B109=TRUE,parametry!K77,0)","v":0},"Kč/rok"]

{"sheet":"Osvětlení","index":3,"n_rows":51,"n_cols":12,"rows_kept":51,"cut":false,"hidden":true,"merged":[[0,6,1,8]]}
[null,"Náhrada světelných zdrojů",null,null,null,null,"Pokud chcete změnit dříve vyplněnou buňku je nutné resetovat dosavadní postup na tomto listu pomocí tlačítka \"reset\" níže"]
[]
[null,"1","Jakého typu jsou stávající světelné zdroje?"]
[null,"1.1.1","Jsou to klasické žárovky?","Vyberte ano / ne",null,null,null,null,null,null,null,{"$f":"ISBLANK(E4)","v":true}]
[null,"1.1.2","Jaký je jejich počet?",null,null,{"$f":"IF(AND(E4=\"ano\",E5=0),\"Uveďte počet zdrojů\",\"\")","v":""},null,null,null,null,null,{"$f":"ISBLANK(E5)","v":true}]
[null,"1.1.3","Znáte celkový příkon všech klasických žárovek?","Vyberte ano / ne",null,null,null,null,null,null,null,{"$f":"ISBLANK(E6)","v":true}]
[null,"1.1.4","Uveďte jejich celkový příkon","W",null,{"$f":"IF(AND(E6=\"ano\",ISBLANK(E7)=TRUE),\"Zadejte celkový příkon\",IF(E7/E5<40,\"Uvedený celkový příkon je příliž malý, minimální průměrný příkon 1 žárovky je 40 W \",\"\"))","v":{"$error":"#DIV/0!"}}]
[null,"1.1.5","Jaký je průměrný příkon klasických žárovek?","W",null,{"$f":"IF(AND(E6=\"ne\",E8=0),\"Zadejte průměrný příkon\",\"\")","v":""}]
[null,null,null,null,null,null,null,null,null,null,null,{"$f":"IF(ISBLANK(E4),TRUE,IF(E4=\"ne\",FALSE,IF(OR(ISBLANK(E6),AND(E6=\"ano\",ISBLANK(E7)),AND(E6=\"ne\",ISBLANK(E8))),TRUE,FALSE)))","v":true}]
[null,"1.2.1","Halogenové žárovky","Vyberte ano / ne",null,null,null,null,null,null,null,{"$f":"ISBLANK(E10)","v":true}]
[null,"1.2.2","Jaký je jejich počet?",null,null,{"$f":"IF(AND(E10=\"ano\",E11=0),\"Uveďte počet zdrojů\",\"\")","v":""},null,null,null,null,null,{"$f":"ISBLANK(E11)","v":true}]
[null,"1.2.3","Znáte celkový příkon všech halogenových žárovek?","Vyberte ano / ne",null,null,null,null,null,null,null,{"$f":"ISBLANK(E12)","v":true}]
[null,"1.2.4","Uveďte jejich celkový příkon","W",null,{"$f":"IF(AND(E12=\"ano\",ISBLANK(E13)=TRUE),\"Zadejte celkový příkon\",IF(E13/E11<30,\"Uvedený celkový příkon je příliš malý, minimální příkon 1 žárovky je 30W\",\"\"))","v":{"$error":"#DIV/0!"}}]
[null,"1.2.5","Jaký je průměrný příkon halogenových žárovek?","W",null,{"$f":"IF(AND(E12=\"ne\",E14=0),\"Zadejte průměrný příkon\",\"\")","v":""}]
[null,null,null,null,null,null,null,null,null,null,null,{"$f":"IF(ISBLANK(E10),TRUE,IF(E10=\"ne\",FALSE,IF(OR(ISBLANK(E12),AND(E12=\"ano\",ISBLANK(E13)),AND(E12=\"ne\",ISBLANK(E14))),TRUE,FALSE)))","v":true}]
[null,"1.3.1","Zářivky","Vyberte ano / ne",null,null,null,null,null,null,null,{"$f":"ISBLANK(E16)","v":true}]
[null,"1.3.2","Jaký je jejich počet?",null,null,{"$f":"IF(AND(E16=\"ano\",E17=0),\"Uveďte počet zdrojů\",\"\")","v":""},null,null,null,null,null,{"$f":"ISBLANK(E17)","v":true}]
[null,"1.3.3","Znáte celkový příkon všech zářivek?","Vyberte ano / ne",null,null,null,null,null,null,null,{"$f":"ISBLANK(E18)","v":true}]
[null,"1.3.4","Uveďte jejich celkový příkon","W",null,{"$f":"IF(AND(E18=\"ano\",ISBLANK(E19)=TRUE),\"Zadejte celkový příkon\",IF(E19/E17<4,\"Uvedený celkový příkon je příliš malý, minimální příkon 1 zářivky je 4W\",\"\"))","v":{"$error":"#DIV/0!"}}]
[null,"1.3.5","Jaký je průměrný příkon zářivek?","W",null,{"$f":"IF(AND(E18=\"ne\",E20=0),\"Zadejte průměrný příkon\",\"\")","v":""}]
[null,null,null,null,null,null,null,null,null,null,null,{"$f":"IF(ISBLANK(E16),TRUE,IF(E16=\"ne\",FALSE,IF(OR(ISBLANK(E18),AND(E18=\"ano\",ISBLANK(E19)),AND(E18=\"ne\",ISBLANK(E20))),TRUE,FALSE)))","v":true}]
[null,"1.4.1","Rtuťové výbojky","Vyberte ano / ne",null,null,null,null,null,null,null,{"$f":"ISBLANK(E22)","v":true}]
[null,"1.4.2","Jaký je jejich počet?",null,null,{"$f":"IF(AND(E22=\"ano\",E23=0),\"Uveďte počet zdrojů\",\"\")","v":""},null,null,null,null,null,{"$f":"ISBLANK(E23)","v":true}]
[null,"1.4.3","Znáte celkový příkon všech rtuťových výbojek?","Vyberte ano / ne",null,null,null,null,null,null,null,{"$f":"ISBLANK(E24)","v":true}]
[null,"1.4.4","Uveďte jejich celkový příkon","W",null,{"$f":"IF(AND(E24=\"ano\",E25=0),\"Zadejte celkový příkon\",IF(E25/E23<7,\"Uvedený celkový příkon je příliš malý, minimální příkon 1 výbojky je 7W\",\"\"))","v":{"$error":"#DIV/0!"}}]
[null,"1.4.5","Jaký je průměrný příkon rtuťových výbojek?","W",null,{"$f":"IF(AND(E24=\"ne\",E26=0),\"Zadejte průměrný příkon\",\"\")","v":""}]
[null,null,null,null,null,null,null,null,null,null,null,{"$f":"IF(ISBLANK(E22),TRUE,IF(E22=\"ne\",FALSE,IF(OR(ISBLANK(E24),AND(E24=\"ano\",ISBLANK(E25)),AND(E24=\"ne\",ISBLANK(E26))),TRUE,FALSE)))","v":true}]
[null,"1.5.1","Kompaktní zářivky (CFL)","Vyberte ano / ne",null,null,null,null,null,null,null,{"$f":"ISBLANK(E28)","v":true}]
[null,"1.5.2","Jaký je jejich počet?",null,null,{"$f":"IF(AND(E28=\"ano\",E29=0),\"Uveďte počet zdrojů\",\"\")","v":""},null,null,null,null,null,{"$f":"ISBLANK(E29)","v":true}]
[null,"1.5.3","Znáte celkový příkon všech kompaktních zářivek?","Vyberte ano / ne",null,null,null,null,null,null,null,{"$f":"ISBLANK(E30)","v":true}]
[null,"1.5.4","Uveďte jejich celkový příkon","W",null,{"$f":"IF(AND(E30=\"ano\",E31=0),\"Zadejte celkový příkon\",IF(E31/E29<5,\"Uvedený celkový příkon je příliš malý, minimální příkon 1 zářivky je 5W\",\"\"))","v":{"$error":"#DIV/0!"}}]
[null,"1.5.5","Jaký je průměrný příkon kompaktních zářivek?","W",null,{"$f":"IF(AND(E30=\"ne\",E32=0),\"Zadejte průměrný příkon\",\"\")","v":""}]
[null,null,null,null,null,null,null,null,null,null,null,{"$f":"IF(ISBLANK(E28),TRUE,IF(E28=\"ne\",FALSE,IF(OR(ISBLANK(E30),AND(E30=\"ano\",ISBLANK(E31)),AND(E30=\"ne\",ISBLANK(E32))),TRUE,FALSE)))","v":true}]
[null,"2","Stávající spotřeba elektřiny"]
[null,"2.1.1","Znáte celkovou spotřebu elektřiny všech světelných zdrojů?","Vyberte ano / ne",null,null,null,null,null,null,null,{"$f":"ISBLANK(E35)","v":true}]
[null,"2.1.2","Uveďte spotřebu elektřiny","kWh",null,{"$f":"IF(ISBLANK(E36),\"\",IF(parametry!C105<500,\"Příliš nízká celková spotřeba\",IF(parametry!C105>7500,\"Příliš vysoká celková spotřeba\",\"\")))","v":""}]
[null,"2.2","Kolik hodin denně jsou v průměru zapnuté všechny světelné zdroje?","h"]
[null,"2.2","Jaký se počet uvažovaných pracovních dní za rok?","d"]
[null,"3","PENB"]
[null,"3.1","Je výměna osvětlení zahrnuta v PENB?","Vyberte ano/ne",null,null,null,null,null,null,null,{"$f":"NOT(AND(Zateplení!F4=\"Zadání projektu na základě Průkazu energetické náročnosti\",OR(NOT(ISBLANK(E37)),NOT(ISBLANK(E36)))))","v":true}]
[null,null,null,null,{"$f":"IF(L41=FALSE,\"Konec formuláře\",\"\")","v":""},null,null,null,null,null,null,{"$f":"IF(OR(ISBLANK(E35),AND(L40=FALSE,ISBLANK(E40)),AND(E35=\"ne\",ISBLANK(E38)),AND(E35=\"ano\",ISBLANK(E36))),TRUE,FALSE)","v":true}]
[null,"4","Bilance spotřeby energie před a po realizaci výměně světelných zdrojů"]
[null,null,"Spotřeba před výměnou světlených zdrojů",{"$f":"IF(parametry!B111=TRUE,IF(E35=\"ne\",hodiny*parametry!G100*E38/1000,E36),0)","v":0},"kWh",{"$f":"IF(D43=0,\"Zadejte 2.1 Spotřebu elektřiny\",\"\")","v":"Zadejte 2.1 Spotřebu elektřiny"}]
[null,null,"Spotřeba po výměně světelných zdrojů",{"$f":"IF(parametry!B111=TRUE,parametry!H100*parametry!C105/1000,0)","v":0},"kWh",{"$f":"IF(D44=0,IF(D43=0,\"\",\"Definujte stávající zdroje. Viz otázky 1.1 až 1.5\"),\"\")","v":""}]
[null,null,"Úspora energie",{"$f":"D43-D44","v":0},"kWh"]
[null,null,"Úspora energie",{"$f":"IFERROR(D45/D43,0)","v":0},"kWh/kWh"]
[null,null,"z toho:"]
[null,null,"teplo",0,"kWh"]
[null,null,"elektřina",{"$f":"D45","v":0},"kWh"]
[null,null,"úspora CO2",{"$f":"D49*parametry!C59*parametry!E59","v":0},"kg"]
[null,null,"úspora Kč",{"$f":"D49*parametry!G59","v":0},"Kč"]

{"sheet":"parametry","index":4,"n_rows":201,"n_cols":19,"rows_kept":201,"cut":false,"hidden":true,"merged":[]}
["kotel na tuhá paliva-před 1980",0.6,1,null,null,null,"TZL","jednotka","TZL","jednotka","PM10 v %","PM2,5 v %",null,"kotel na tuhá paliva","kotel na zemní plyn","elektrokotel","kotel na topný olej","tepelné čerpadlo","centrální zásobování teplem"]
["kotel na tuhá paliva-1980-2000",0.72,2,null,"kotel na tuhá paliva-před 1980-hnědé uhlí",null,44.3,"TZL kg/t",{"$f":"G2/1000","v":4.4299999999999999E-2},"TZL v kg/kg",99.3,99.2,null,"hnědé uhlí","zemní plyn","elektřina","topný olej","zemní plyn","zemní plyn"]
["kotel na tuhá paliva-2000-2010",0.77,3,null,"kotel na tuhá paliva-1980-2000-hnědé uhlí",null,44.3,"TZL kg/t",{"$f":"G3/1000","v":4.4299999999999999E-2},"TZL v kg/kg",99.3,99.2,null,"černé uhlí",null,null,null,"hnědé uhlí","hnědé uhlí"]
["kotel na tuhá paliva-2010 a novější",0.79,4,null,"kotel na tuhá paliva-2000-2010-hnědé uhlí",null,17.2,"TZL kg/t",1.72E-2,"TZL v kg/kg",99.9,99.8,null,"palivové dřevo",null,null,null,"černé uhlí","černé uhlí"]
["kotel na zemní plyn-před 1980",0.65,5,null,"kotel na tuhá paliva-2010 a novější-hnědé uhlí",null,2.2400000000000002,"TZL kg/t",2.2400000000000002E-3,"TZL v kg/kg",98.1,94.1,null,"pelety",null,null,null,"palivové dřevo","palivové dřevo"]
["kotel na zemní plyn-1980-2000",0.8,6,null,"kotel na tuhá paliva-před 1980-černé uhlí",null,67.7,"TZL kg/t",{"$f":"G6/1000","v":6.7699999999999996E-2},"TZL v kg/kg",99.7,99,null,null,null,null,null,"pelety","pelety"]
["kotel na zemní plyn-2000-2010",0.85,7,null,"kotel na tuhá paliva-1980-2000-černé uhlí",null,67.7,"TZL kg/t",{"$f":"G7/1000","v":6.7699999999999996E-2},"TZL v kg/kg",99.7,99,null,null,null,null,null,"elektřina","elektřina"]
["kotel na zemní plyn-2010 a novější",0.92,8,null,"kotel na tuhá paliva-2000-2010-černé uhlí",null,6.94,"TZL kg/t",6.94E-3,"TZL v kg/kg",99.4,96.9,null,null,null,null,null,"topný olej","topný olej"]
["elektrokotel-před 1980",0.95,9,null,"kotel na tuhá paliva-2010 a novější-černé uhlí",null,2.25,"TZL kg/t",2.2499999999999998E-3,"TZL v kg/kg",99.8,98.1]
["elektrokotel-1980-2000",0.95,10,null,"kotel na tuhá paliva-před 1980-palivové dřevo",null,7.22,"TZL kg/t",{"$f":"G10/1000","v":7.2199999999999999E-3},"TZL v kg/kg",99.8,99.5]
["elektrokotel-2000-2010",0.95,11,null,"kotel na tuhá paliva-1980-2000-palivové dřevo",null,7.22,"TZL kg/t",{"$f":"G11/1000","v":7.2199999999999999E-3},"TZL v kg/kg",99.8,99.5]
["elektrokotel-2010 a novější",0.98,12,null,"kotel na tuhá paliva-2000-2010-palivové dřevo",null,5.78,"TZL kg/t",5.7800000000000004E-3,"TZL v kg/kg",99.8,99.3]
["kotel na topný olej-před 1980",0.6,13,null,"kotel na tuhá paliva-2010 a novější-palivové dřevo",null,2.12,"TZL kg/t",2.1199999999999999E-3,"TZL v kg/kg",99.8,99.1]
["kotel na topný olej-1980-2000",0.72,14,null,"kotel na tuhá paliva-před 1980-pelety",null,7.22,"TZL kg/t",{"$f":"G14/1000","v":7.2199999999999999E-3},"TZL v kg/kg",99.8,98.8]
["kotel na topný olej-2000-2010",0.77,15,null,"kotel na tuhá paliva-1980-2000-pelety",null,7.22,"TZL kg/t",{"$f":"G15/1000","v":7.2199999999999999E-3},"TZL v kg/kg",99.8,98.8]
["kotel na topný olej-2010 a novější",0.79,16,null,"kotel na tuhá paliva-2000-2010-pelety",null,5.78,"TZL kg/t",5.7800000000000004E-3,"TZL v kg/kg",99.8,98.8]
["centrální zásobování teplem-před 1980",1,17,null,"kotel na tuhá paliva-2010 a novější-pelety",null,2.12,"TZL kg/t",2.1199999999999999E-3,"TZL v kg/kg",99.8,98.8]
["centrální zásobování teplem-1980-2000",1,18]
["centrální zásobování teplem-2000-2010",1,19]
["centrální zásobování teplem-2010 a novější",1,20]
["tepelné čerpadlo-před 1980",1.5,21]
["tepelné čerpadlo-1980-2000",2,22]
["tepelné čerpadlo-2000-2010",2.5,23]
["tepelné čerpadlo-2010 a novější",3,24]
[]
["před 1980",null,null,"< 1920",1]
["1980-2000",null,null,"1921 až 1945",2]
["2000-2010",null,null,"1946 až 1960",3]
["2010 a novější",null,null,"1961 až 1980",4]
[null,null,null,"1981 až 1994",5]
[null,null,null,"1995 a dále",6]
["Old boiler"]
[null,"Efficiency",null,"palivo","výběr"]
["kotel na tuhá paliva",0.6,1,"parametry!A53:A56",{"$f":"VLOOKUP(Zateplení!F13,parametry!A34:D39,3,0)","v":{"$error":"#N/A"}}]
["kotel na zemní plyn",0.89,2,"parametry!A52:A52",{"$f":"VLOOKUP(E34,C34:D39,2,0)","v":{"$error":"#N/A"}}]
["elektrokotel",0.98,4,"parametry!A57:A57"]
["kotel na topný olej",0.87,3,"parametry!A58:A58"]
["tepelné čerpadlo",2.7,5,"parametry!A57:A57"]
["centrální zásobování teplem",1,6,"parametry!A52:A58"]
[]
["New boiler"]
[null,"Efficiency",null,"palivo"]
["kotel na černé uhlí",0.8,1,"černé uhlí"]
["kotel na hnědé uhlí",0.8,2,"hnědé uhlí"]
["kotel na zemní plyn",0.92,3,"zemní plyn"]
["kotel na štěpku, pelety nebo brikety",0.81,4,"pelety"]
["tepelné čerpadlo",3,3,"elektřina"]
[]
[1,2,3,4,5,6,7,8,9,10,11,12,13,14,15]
["Fuel - vytápění",null,null,null,null,null,null,null,null,"TZL",null,null,"TZL","PM10","PM2,5"]
[null,null,"Lower heating value",null,"CO2",null,"cena paliva",null,null,null,null,null,null,"%","%"]
["zemní plyn","m3",3.4000000000000002E-2,"GJ/m3",55.4,"kg/GJ",10,"Kč/m3","10 Kč/m3 6,28-18,66 Kč za 1 m3",6.9,"TZL kg/10^6m3",{"$f":"J52/1000000","v":6.9E-6},"kg/m3",100,100]
["hnědé uhlí","kg",1.7999999999999999E-2,"GJ/kg",99.1,"kg/GJ",3.4,"Kč/kg","3,4 Kč/kg",0.70399999999999996,"TZL kg/t",{"$f":"J53/1000","v":7.0399999999999998E-4},"kg/kg",99.5,95.2]
["černé uhlí","kg",3.1E-2,"GJ/kg",92.4,"kg/GJ",5.5,"Kč/kg","5,5 Kč/kg",1.23,"TZL kg/t",{"$f":"J54/1000","v":1.23E-3},"kg/kg",99.8,98.1]
["palivové dřevo","kg",1.4E-2,"GJ/kg",0,"kg/GJ",3.5,"Kč/kg","3,5 Kč/kg",2.12,"TZL kg/t",2.1199999999999999E-3,"kg/kg",99.8,99.1]
["pelety","kg",1.7000000000000001E-2,"GJ/kg",0,"kg/GJ",5.4,"Kč/kg","5,4 Kč/kg",0.26400000000000001,"kg/t",{"$f":"J56/1000","v":2.6400000000000002E-4},"kg/kg",99.8,98.8]
["elektřina","kWh",3.5999999999999999E-3,"GJ/kWh",281,"kg/GJ",2.67,"Kč/kWh","2,67 Kč/kWh akumulace 2,29-3,47, přímotop 2,67-2,86 Kč/kWh",3.6799999999999999E-2,"kg/MWh",{"$f":"J57/1000","v":3.68E-5},"kg/kWh",85,65]
["topný olej","l",{"$f":"0.041*0.845","v":3.4645000000000002E-2},"GJ/l",73.3,"kg/GJ",29.83,"Kč/l","29,83 Kč/l",6.4000000000000001E-2,"kg/t",{"$f":"J58/1000*0.92","v":5.8879999999999999E-5},"kg/l",93,67]
["elektřina ostatní","kWh",3.5999999999999999E-3,"GJ/kWh",281,"kg/GJ",5,"Kč/kWh","5 Kč/kWh",3.6799999999999999E-2,"kg/MWh",{"$f":"J59/1000","v":3.68E-5},"kg/kWh",85,65]
["yes/no","ano/ne"]
["yes","ano"]
["no","ne"]
[]
[]
[]
[]
[{"$f":"Kotel!E14","v":0},"Do you know the efficiency of new boiler?"]
[]
[{"$f":"Kotel!E18","v":0},"Only for heat pumps - What is the seasonal coefficient of performance?"]
[]
["Energy in the fuel before",{"$f":"F75","v":0},"GJ"]
["teplo",{"$f":"IF(D75=\"elektrokotel\",0,parametry!B71)","v":0}]
["elektřina",{"$f":"IF(D75=\"elektrokotel\",parametry!B71,0)","v":0},null,"KOTEL + ZATEPLENÍ",null,{"$f":"IF(AND(B110=TRUE,parametry!B136=2),IF(AND(Kotel!E21=\"ne\",E89<E85),E85,parametry!E89),IF(OR(AND(B109=TRUE,B110=TRUE,IF(ISNUMBER(E88>E87),E88>E87)),AND(B109=FALSE,B110=TRUE)),E88/G75,IF(B110=TRUE,IF(Zateplení!F7=\"ano\",E86/G75,E87/G75),E85)))","v":0}]
["Heat consumption",{"$f":"H75","v":{"$error":"#N/A"}},"GJ",null,"palivo","spotřeba v GJ","účinnost","potřeba v GJ","ztráty v GJ","Spotřeba CO2 ","Spotřeba Kč","TZL kg","PM10 kg","PM2,5 kg"]
["Energy in the fuel after - na tuhle spotřebu se počítá",{"$f":"F76","v":0},"GJ",{"$f":"IF(parametry!B109=TRUE,Kotel!E4,Zateplení!F13)","v":0},{"$f":"IF(D75=\"kotel na zemní plyn\",$A$52,IF(OR(D75=\"elektrokotel\",D75=\"tepelné čerpadlo\"),$A$57,IF(D75=\"kotel na topný olej\",$A$58,IF($B$109=TRUE,Kotel!$E$6,Zateplení!$F$14))))","v":0},{"$f":"IFERROR(IF(AND(B110=TRUE,parametry!B136=2),IF(AND(Kotel!E21=\"ne\",E89<E85),E85,parametry!E89),IF(OR(AND(B109=TRUE,B110=TRUE,IF(ISNUMBER(E88>E87),E88>E87)),AND(B109=FALSE,B110=TRUE)),E88/G75,IF(B110=TRUE,IF(Zateplení!F7=\"ano\",E86/G75,E87/G75),E85))),0)","v":0},{"$f":"IF(parametry!B109=TRUE,IF(Kotel!E8=\"ne\",VLOOKUP(CONCATENATE(Kotel!E4,\"-\",Kotel!E5),parametry!A1:B24,2,0),Kotel!E9),VLOOKUP(Zateplení!F13,parametry!A34:B39,2,0))","v":{"$error":"#N/A"}},{"$f":"F75*G75","v":{"$error":"#N/A"}},{"$f":"F75-H75","v":{"$error":"#N/A"}},{"$f":"IFERROR(VLOOKUP(E75,$A$52:$H$59,5,0)*F75,0)","v":0},{"$f":"IFERROR(VLOOKUP(E75,$A$52:$H$59,7,0)/VLOOKUP(E75,$A$52:$H$59,3,0)*F75,0)","v":0},{"$f":"IFERROR(IF(AND(parametry!B109=TRUE,Kotel!E4=\"kotel na tuhá paliva\"),VLOOKUP(CONCATENATE(Kotel!E4,\"-\",Kotel!E5,\"-\",Kotel!E6),parametry!E1:L17,5,0)/VLOOKUP(E75,$A$52:$O$59,3,0)*F75,VLOOKUP(E75,$A$52:$O$59,12,0)/VLOOKUP(E75,$A$52:$O$59,3,0)*F75),0)","v":0},{"$f":"IFERROR(IF(AND(parametry!B109=TRUE,Kotel!E4=\"kotel na tuhá paliva\"),VLOOKUP(CONCATENATE(Kotel!E4,\"-\",Kotel!E5,\"-\",Kotel!E6),parametry!E1:L17,7,0)/100*L75,VLOOKUP(E75,$A$52:$O$59,14,0)/100*L75),0)","v":0},{"$f":"IFERROR(IF(AND(parametry!B109=TRUE,Kotel!E4=\"kotel na tuhá paliva\"),VLOOKUP(CONCATENATE(Kotel!E4,\"-\",Kotel!E5,\"-\",Kotel!E6),parametry!E1:L17,8,0)/100*L75,VLOOKUP(E75,$A$52:$O$59,15,0)/100*L75),0)","v":0}]
[" teplo",null,null,{"$f":"IF(parametry!B109=TRUE,Kotel!E13,Zateplení!F13)","v":0},{"$f":"IFERROR(IF(D76=\"kotel na zemní plyn\",$A$52,IF(OR(D76=\"elektrokotel\",D76=\"tepelné čerpadlo\"),$A$57,IF(D76=\"kotel na topný olej\",$A$58,IF($B$109=FALSE,Zateplení!$F$14,VLOOKUP(D76,$A$43:$D$47,4,0))))),0)","v":0},{"$f":"IFERROR(H76/G76,0)","v":0},{"$f":"IF(parametry!B109=TRUE,IF(Kotel!E13=\"tepelné čerpadlo\",IF(Kotel!E17=\"ano\",Kotel!E18,parametry!B47),IF(Kotel!E14=\"ne\",VLOOKUP(Kotel!E13,parametry!A43:B47,2,0),Kotel!E15)),VLOOKUP(Zateplení!F13,parametry!A34:B39,2,0))","v":{"$error":"#N/A"}},{"$f":"IFERROR(IF(AND(B110=TRUE,parametry!B136=2),H75-H86,H75-R193),0)","v":0},{"$f":"F76-H76","v":0},{"$f":"IFERROR(VLOOKUP(E76,$A$52:$H$59,5,0)*F76,0)","v":0},{"$f":"IFERROR(VLOOKUP(E76,$A$52:$H$59,7,0)/VLOOKUP(E76,$A$52:$H$59,3,0)*F76,0)","v":0},{"$f":"IFERROR(VLOOKUP(E76,$A$52:$O$59,12,0)/VLOOKUP(E76,$A$52:$O$59,3,0)*F76,0)","v":0},{"$f":"IFERROR(VLOOKUP(E76,$A$52:$O$59,14,0)/100*L76,0)","v":0},{"$f":"IFERROR(VLOOKUP(E76,$A$52:$O$59,15,0)/100*L76,0)","v":0}]
["elektřina",null,null,null,"úspora",{"$f":"F75-F76","v":0},null,{"$f":"H75-H76","v":{"$error":"#N/A"}},{"$f":"I75-I76","v":{"$error":"#N/A"}},{"$f":"J75-J76","v":0},{"$f":"K75-K76","v":0},{"$f":"L75-L76","v":0},{"$f":"M75-M76","v":0},0]
["Heat Pump",{"$f":"IF(Kotel!E13=\"tepelné čerpadlo\",B71,0)","v":0},"GJ",null,"úspora",{"$f":"IFERROR(F77/F75,0)","v":0},null,{"$f":"IFERROR(H77/H75,0)","v":0},{"$f":"IFERROR(I77/I75,0)","v":0},{"$f":"IFERROR(J77/J75,0)","v":0},{"$f":"IFERROR(K77/K75,0)","v":0},{"$f":"IFERROR(L77/L75,0)","v":0},{"$f":"IFERROR(M77/M75,0)","v":0},0]
[null,null,null,null,"kWh",{"$f":"F75/3.6*1000","v":0},null,{"$f":"H75/3.6*1000","v":{"$error":"#N/A"}}]
["Energy savings",{"$f":"F77","v":0},"GJ",null,null,{"$f":"F76/3.6*1000","v":0},null,{"$f":"H76/3.6*1000","v":0}]
["Heat savings",{"$f":"IF(OR(AND(Kotel!E13=\"tepelné čerpadlo\",D75=\"elektrokotel\"),AND(D75=\"elektrokotel\",D76=\"elektrokotel\")),0,IF(Kotel!E13=\"tepelné čerpadlo\",B78,IF(D75=\"elektrokotel\",-F76,B72-B75-B78)))","v":0},"GJ",null,null,{"$f":"F77/3.6*1000","v":0},null,{"$f":"H77/3.6*1000","v":{"$error":"#N/A"}}]
["Electricity savings",{"$f":"IF(AND(E76=\"elektřina\",E75=\"elektřina\"),B80,IF(E76=\"elektřina\",-F76,IF(E75=\"elektřina\",F75,0)))","v":0},"GJ","jen pro TČ",null,null,null,null,null,"Spotřeba celkem  v GJ"]
[null,null,null,null,null,null,null,null,null,null,{"$f":"D73","v":"KOTEL + ZATEPLENÍ"},"nucené větrání","Osvětlení","Celkem"]
[null,null,null,"Spotřeby výchozí","GJ",null,"úspora na potřebě","GJ",null,"spotřeba před",{"$f":"IFERROR(F75,0)","v":0},{"$f":"IF(AND(B110=TRUE,parametry!B136=2),0,O192/1000*3.6)","v":0},{"$f":"IFERROR(IF(OR(AND(B110=TRUE,B136=2,Osvětlení!E40=\"ne\"),B110=FALSE),Osvětlení!D43/1000*3.6,0),0)","v":0},{"$f":"SUM(K84:M84)","v":0}]
["GJ na kWh",{"$f":"(1/3.6)*1000","v":277.77777777777777},null,"Spotřeba z listu kotel",{"$f":"IFERROR(IF(Kotel!E4=\"centrální zásobování teplem\",Kotel!E7,Kotel!E7*VLOOKUP(E75,$A$52:$C$59,3,0)),0)","v":0},null,"z konstrukcí",{"$f":"R193","v":0},null,"spotřeba po",{"$f":"IFERROR(F76,0)","v":0},{"$f":"IF(AND(B110=TRUE,parametry!B136=2),0,P192/1000*3.6)","v":0},{"$f":"IFERROR(IF(OR(AND(B110=TRUE,B136=2,Osvětlení!E40=\"ne\"),B110=FALSE),Osvětlení!D44/1000*3.6,0),0)","v":0},{"$f":"SUM(K85:M85)","v":0}]
["kWh na GJ",{"$f":"1/1000*3.6","v":3.6000000000000003E-3},null,"Spotřeba z listu zateplení zadaná",{"$f":"Zateplení!F8/1000*3.6","v":0},null,"z PENB",{"$f":"D198*G75","v":{"$error":"#N/A"}},null,"úspora GJ",{"$f":"K84-K85","v":0},{"$f":"L84-L85","v":0},{"$f":"M84-M85","v":0},0]
[null,null,null,"Spotřeba z listu zateplení bez zadání",{"$f":"IFERROR((VLOOKUP(B139,$A$153:$B$158,2,0)*Zateplení!F9)/1000*3.6,0)","v":0},null,null,null,null,"CO2 před",{"$f":"IFERROR(J75,0)","v":0},{"$f":"IFERROR(VLOOKUP(E75,$A$52:$H$59,5,0)*L84,0)","v":0},{"$f":"M84/3.6*1000*parametry!$C$59*parametry!$E$59","v":0},0]
[null,null,null,"Spotřeba z listu zateplení kalk",{"$f":"IFERROR(O193/1000*3.6,0)","v":0},null,null,null,null,"CO2 po",{"$f":"IFERROR(J76,0)","v":0},{"$f":"IFERROR(VLOOKUP(E76,$A$52:$H$59,5,0)*L85,0)","v":0},{"$f":"M85/3.6*1000*parametry!$C$59*parametry!$E$59","v":0},0]
[null,null,null,"Spotřeba z listu zateplení PENB",{"$f":"Zateplení!F22/1000*3.6","v":0},null,null,null,null,"úspora CO2",{"$f":"K87-K88","v":0},{"$f":"L87-L88","v":0},{"$f":"M87-M88","v":0},0]
[null,null,null,null,null,null,null,null,null,"Kč před",{"$f":"IFERROR(K75,0)","v":0},{"$f":"IFERROR(VLOOKUP(E75,$A$52:$H$59,7,0)/VLOOKUP(E75,$A$52:$H$59,3,0)*L84,0)","v":0},{"$f":"M84/3.6*1000*parametry!$G$59","v":0},0]
[null,null,null,null,null,null,null,null,null,"Kč po",{"$f":"IFERROR(K76,0)","v":0},{"$f":"IFERROR(VLOOKUP(E76,$A$52:$H$59,7,0)/VLOOKUP(E76,$A$52:$H$59,3,0)*L85,0)","v":0},{"$f":"M85/3.6*1000*parametry!$G$59","v":0},0]
["Osvětlení",null,null,null,null,null,null,null,null,"úspora Kč",{"$f":"K90-K91","v":0},{"$f":"L90-L91","v":0},{"$f":"M90-M91","v":0},0]
[null,null,null,null,null,null,null,null,null,"TZL kg před",{"$f":"L75","v":0},{"$f":"IFERROR(IF(AND(parametry!B109=TRUE,Kotel!E4=\"kotel na tuhá paliva\"),VLOOKUP(CONCATENATE(Kotel!E4,\"-\",Kotel!E5,\"-\",Kotel!E6),parametry!E1:L17,5,0)/VLOOKUP(E75,$A$52:$O$59,3,0)*L84,VLOOKUP(E75,$A$52:$O$59,12,0)/VLOOKUP(E75,$A$52:$O$59,3,0)*L84),0)","v":0},{"$f":"IFERROR($L$59/$C$59*M84,0)","v":0},{"$f":"K93+L93+M93","v":0}]
[null,null,null,"počet","příkon celkem","příkon průměr","průměrný příkon před","průměrný příkon po",null,"TZL kg po",{"$f":"L76","v":0},{"$f":"IFERROR(VLOOKUP(E76,$A$52:$O$59,12,0)/VLOOKUP(E76,$A$52:$O$59,3,0)*L85,0)","v":0},{"$f":"IFERROR($L$59/$C$59*M85,0)","v":0},{"$f":"K94+L94+M94","v":0}]
["klasika",{"$f":"IF(Osvětlení!E4=\"ano\",1,0)","v":0},{"$f":"IF(Osvětlení!E6=\"ano\",1,0)","v":0},{"$f":"IF(B95=1,Osvětlení!E5,0)","v":0},{"$f":"IF(C95=1,Osvětlení!E7,0)","v":0},{"$f":"IF(C95=0,Osvětlení!E8,0)","v":0},{"$f":"IFERROR(IF(E95>0, E95/D95,IF((F95)>0,F95,\"Uveďte buď celkový příkon nebo průměrný příkon\")),\"Uveďte buď celkový příkon nebo průměrný příkon\")","v":"Uveďte buď celkový příkon nebo průměrný příkon"},{"$f":"IFERROR(VLOOKUP(G95,Osvětlení_parametry!$A$2:$F$116,6,1),0)","v":0},null,"úspora TZL kg",{"$f":"K93-K94","v":0},{"$f":"L93-L94","v":0},{"$f":"M93-M94","v":0},0]
["halogen",{"$f":"IF(Osvětlení!E10=\"ano\",1,0)","v":0},{"$f":"IF(Osvětlení!E12=\"ano\",1,0)","v":0},{"$f":"IF(B96=1,Osvětlení!E11,0)","v":0},{"$f":"IF(C96=1,Osvětlení!E13,0)","v":0},{"$f":"IF(C96=0,Osvětlení!E14,0)","v":0},{"$f":"IFERROR(IF(E96>0, E96/D96,IF((F96)>0,F96,\"Uveďte buď celkový příkon nebo průměrný příkon\")),\"Uveďte buď celkový příkon nebo průměrný příkon\")","v":"Uveďte buď celkový příkon nebo průměrný příkon"},{"$f":"IFERROR(VLOOKUP(G96,Osvětlení_parametry!$B$2:$F$116,5,1),0)","v":0},null,"PM10 kg před",{"$f":"M75","v":0},{"$f":"IFERROR(IF(AND(parametry!B109=TRUE,Kotel!E4=\"kotel na tuhá paliva\"),VLOOKUP(CONCATENATE(Kotel!E4,\"-\",Kotel!E5,\"-\",Kotel!E6),parametry!E1:L17,7,0)/100*L93,VLOOKUP(E75,$A$52:$O$59,14,0)/100*L93),0)","v":0},{"$f":"IFERROR($N$59/100*M93,0)","v":0},0]
["zářivky",{"$f":"IF(Osvětlení!E16=\"ano\",1,0)","v":0},{"$f":"IF(Osvětlení!E18=\"ano\",1,0)","v":0},{"$f":"IF(B97=1,Osvětlení!E17,0)","v":0},{"$f":"IF(C97=1,Osvětlení!E19,0)","v":0},{"$f":"IF(C97=0,Osvětlení!E20,0)","v":0},{"$f":"IFERROR(IF(E97>0, E97/D97,IF((F97)>0,F97,\"Uveďte buď celkový příkon nebo průměrný příkon\")),\"Uveďte buď celkový příkon nebo průměrný příkon\")","v":"Uveďte buď celkový příkon nebo průměrný příkon"},{"$f":"IFERROR(VLOOKUP(G97,Osvětlení_parametry!$E$2:$F$116,2,1),0)","v":0},null,"PM10 kg po",{"$f":"M76","v":0},{"$f":"IFERROR(VLOOKUP(E76,$A$52:$O$59,14,0)/100*L94,0)","v":0},{"$f":"IFERROR($N$59/100*M94,0)","v":0},0]
["výbojky",{"$f":"IF(Osvětlení!E22=\"ano\",1,0)","v":0},{"$f":"IF(Osvětlení!E24=\"ano\",1,0)","v":0},{"$f":"IF(B98=1,Osvětlení!E23,0)","v":0},{"$f":"IF(C98=1,Osvětlení!E25,0)","v":0},{"$f":"IF(C98=0,Osvětlení!E26,0)","v":0},{"$f":"IFERROR(IF(E98>0, E98/D98,IF((F98)>0,F98,\"Uveďte buď celkový příkon nebo průměrný příkon\")),\"Uveďte buď celkový příkon nebo průměrný příkon\")","v":"Uveďte buď celkový příkon nebo průměrný příkon"},{"$f":"IFERROR(VLOOKUP(G98,Osvětlení_parametry!$C$2:$F$116,4,1),0)","v":0},null,"úspora PM10",0,{"$f":"L96-L97","v":0},{"$f":"IFERROR($O$59/100*M93,0)","v":0},0]
["kompakty",{"$f":"IF(Osvětlení!E28=\"ano\",1,0)","v":0},{"$f":"IF(Osvětlení!E30=\"ano\",1,0)","v":0},{"$f":"IF(B99=1,Osvětlení!E29,0)","v":0},{"$f":"IF(C99=1,Osvětlení!E31,0)","v":0},{"$f":"IF(C99=0,Osvětlení!E32,0)","v":0},{"$f":"IFERROR(IF(E99>0, E99/D99,IF((F99)>0,F99,\"Uveďte buď celkový příkon nebo průměrný příkon\")),\"Uveďte buď celkový příkon nebo průměrný příkon\")","v":"Uveďte buď celkový příkon nebo průměrný příkon"},{"$f":"IFERROR(VLOOKUP(G99,Osvětlení_parametry!$D$2:$F$116,3,1),0)","v":0},null,"PM2,5 kg před",{"$f":"N75","v":0},{"$f":"IFERROR(IF(AND(parametry!B109=TRUE,Kotel!E4=\"kotel na tuhá paliva\"),VLOOKUP(CONCATENATE(Kotel!E4,\"-\",Kotel!E5,\"-\",Kotel!E6),parametry!E1:L17,8,0)/100*L93,VLOOKUP(E75,$A$52:$O$59,15,0)/100*L92),0)","v":0},{"$f":"IFERROR($O$59/100*M93,0)","v":0},0]
[null,null,null,{"$f":"SUM(D95:D99)","v":0},null,null,{"$f":"SUMPRODUCT(D95:D99,G95:G99)","v":0},{"$f":"SUMPRODUCT(D95:D99,H95:H99)","v":0},null,"PM2,5 kg po",{"$f":"N76","v":0},{"$f":"IFERROR(VLOOKUP(E76,$A$52:$O$59,15,0)/100*L94,0)","v":0},{"$f":"IFERROR($O$59/100*M94,0)","v":0},0]
[null,null,{"$f":"G100","v":0},null,null,null,null,null,null,"úspora PM2,5",0,{"$f":"L99-L100","v":0},{"$f":"M99-M100","v":0},0]
[null,null,{"$f":"H100","v":0}]
[null,null,{"$f":"IFERROR(G100/D100,0)","v":0}]
[null,null,{"$f":"IFERROR(H100/D100,0)","v":0}]
[null,null,{"$f":"IFERROR(Osvětlení!D43*1000/C101,0)","v":0}]
[]
[]
["Hlavní list",null,null,"Kontrola na vyplněnost všeho","Vše v pořádku?"]
["opatření 1-teplo",false,null,{"$f":"IF('Hlavní list'!C31=\"List Kotel je celý vyplněn\",TRUE,FALSE)","v":false},{"$f":"IF(B109=TRUE,IF(D109=TRUE,TRUE,FALSE),IF(B109=FALSE,TRUE,FALSE))","v":true}]
["opatření 2-zateplení",false,null,{"$f":"IF('Hlavní list'!C30=\"List Zateplení je celý vyplněn\",TRUE,FALSE)","v":false},{"$f":"IF(B110=TRUE,IF(D110=TRUE,TRUE,FALSE),IF(B110=FALSE,TRUE,FALSE))","v":true}]
["opatření 3-osvětlení",false,null,{"$f":"IF('Hlavní list'!C32=\"List Osvětlení je celý vyplněn\",TRUE,FALSE)","v":false},{"$f":"IF(B111=TRUE,IF(D111=TRUE,TRUE,FALSE),IF(B111=FALSE,TRUE,FALSE))","v":true}]
[]
["kontrola na prázdnost (je prázdné?",{"$f":"IF(AND(B109=FALSE,B110=FALSE,B111=FALSE,B112=FALSE),TRUE,FALSE)","v":true},null,null,{"$f":"IF(B113=TRUE,FALSE,IF(AND(E109,E110,E111,E112)=TRUE,TRUE,FALSE))","v":false}]
[]
["výpočet celkové úspory"]
[{"$f":"Kotel!D31+Zateplení!D111+Osvětlení!D43","v":0}]
[]
["Zateplení"]
["Obecné zadaní projektu (vyplnění Kalkulačky)",1]
["Zadání projektu na základě Průkazu energetické náročnosti",2]
["typ budovy"]
["Administrativní budova",1]
["Výrobní hala",2]
["Skladová hala",3]
["Zemědělská budova",4]
["Budova pro vzdělávání",5]
["Budova pro sport",6]
["Budova pro zdravotnictví",7]
["Budova pro ubytování a stravování",8]
["Budova pro obchodní účely",9]
[]
[]
[]
[]
[]
["zadání projektu",{"$f":"IF(ISBLANK(Zateplení!F4),\"\",VLOOKUP(Zateplení!F4,parametry!$A$119:$B$120,2,0))","v":""}]
["typ budovy",{"$f":"IFERROR(VLOOKUP(Zateplení!F5,A122:B130,2,0),0)","v":0}]
["památkov ochrana",{"$f":"Zateplení!F6","v":0}]
["Období výstavby?",{"$f":"Zateplení!F10","v":0}]
["Podlahová plocha (m2)",{"$f":"Zateplení!F9","v":0}]
["Vnitřní teplota",{"$f":"Zateplení!F11","v":0},{"$f":"IF(AND(B141>=18,B141<=22),1,16/(B141-4))","v":-4}]
["Vnější teplota",-12,"implicitně"]
["Průměrná venkovní teplota v otopném období",3.9,"implicitně"]
["Délka otopného období",242,"implicitně"]
["Počet denostupňů teoretický",{"$f":"(B141-B143)*B144","v":-943.8}]
[]
[]
[]
["Spotřeba zadaná",{"$f":"IF(Zateplení!F7=\"ano\",Zateplení!F8,0)","v":0},"kWh"]
[]
["Základní měrná spotřeba energie na vytápění dle období výstavby"]
["Měrná spotřeba energie budovy (kWh/m2)","původní stav"]
["< 1920",170]
["1921 až 1945",180]
["1946 až 1960",180]
["1961 až 1980",220]
["1981 až 1994",130]
["1995 a dále",100]
["Průměr",{"$f":"AVERAGE(B153:B158)","v":163.33333333333334}]
[]
["Základní měrná potřeba energie objektu na vytápění",{"$f":"IF(AND(ISNUMBER(B149),Zateplení!F7=\"ano\")=TRUE,(B149)/B140,VLOOKUP(B139,$A$153:$B$158,2,0))","v":{"$error":"#N/A"}},"kWh/m2"]
["Spotřeba celkem",{"$f":"IF(B149=0,B140*B161,B149)","v":{"$error":"#N/A"}},"kWh"]
["Spotřeba celkem",{"$f":"B162/1000*3.6","v":{"$error":"#N/A"}},"GJ","pro porovnání zda budova spadá pod 700 GJ"]
[]
["Typy konstrukce","typ konstrukce","U"]
["Stěna",{"$f":"Zateplení!F28","v":0},{"$f":"VLOOKUP(CONCATENATE($B$139,\"-\",parametry!B166),budova!$D$70:$G$304,2,0)","v":{"$error":"#N/A"}}]
[{"$f":"Zateplení!F29","v":0},{"$f":"Zateplení!F30","v":0},{"$f":"VLOOKUP(CONCATENATE($B$139,\"-\",parametry!B167),budova!$D$70:$G$304,2,0)","v":{"$error":"#N/A"}}]
[{"$f":"Zateplení!F31","v":0},{"$f":"Zateplení!F32","v":0},{"$f":"VLOOKUP(CONCATENATE($B$139,\"-\",parametry!B168),budova!$D$70:$G$304,2,0)","v":{"$error":"#N/A"}}]
["Okna ve stěně",{"$f":"Zateplení!F33","v":0},{"$f":"VLOOKUP(CONCATENATE($B$139,\"-\",parametry!B169),budova!$D$70:$G$304,2,0)","v":{"$error":"#N/A"}}]
["dveře vrata",{"$f":"Zateplení!F34","v":0},{"$f":"VLOOKUP(CONCATENATE($B$139,\"-\",parametry!B170),budova!$D$70:$G$304,2,0)","v":{"$error":"#N/A"}}]
["Okna ve střeše",{"$f":"Zateplení!F35","v":0},{"$f":"VLOOKUP(CONCATENATE($B$139,\"-\",parametry!B171),budova!$D$70:$G$304,2,0)","v":{"$error":"#N/A"}}]
[]
[]
["Opatření již realizovaná","Realizace opatření","Kdy","Typ izolace","Tl. izolace","koef. Typu izolace","ekv. tl. izolace","% z plochy","snížení úspory v důsledku stáří %","úspora %","snížení původní potřeby - kWh/m2"]
[]
[]
[]
[]
[]
["Výchozí měrná spotřeba energie objektu na vytápění",null,"kWh/m2"]
["Výchozí spotřeba energie objektu na vytápění",null,"MWh"]
[]
[]
[]
["Opatření, která budou realizovaná investicí","Realizace opatření",null,"Typ izolace","Tl. izolace","U před","Upo z PENB","Upo kalk","Un20","Urec,20","U požadavek",null,"vyhodnocení"," plocha zateplení m2","potřeba před kWh","potřeba po","úspora kWh","úspora GJ","úspora energie realizací opatření - kWh/m2"]
["Stěna",{"$f":"IF(B110=FALSE,\"ne\",Zateplení!F58)","v":"ne"},null,{"$f":"Zateplení!F59","v":0},{"$f":"Zateplení!F60","v":0},{"$f":"C166","v":{"$error":"#N/A"}},{"$f":"Zateplení!F62","v":0},{"$f":"1/(1/F186+E186/1000/VLOOKUP(D186,budova_opatření!$B$3:$D$38,2,0))+VLOOKUP(D186,budova_opatření!$B$3:$D$38,3,0)","v":{"$error":"#N/A"}},{"$f":"VLOOKUP(CONCATENATE($B$139,\"-\",parametry!B166),budova!$D$70:$G$304,3,0)","v":{"$error":"#N/A"}},{"$f":"VLOOKUP(CONCATENATE($B$139,\"-\",parametry!B166),budova!$D$70:$G$304,4,0)","v":{"$error":"#N/A"}},{"$f":"IF(AND($B$136=2,AND(Zateplení!$F$18<=Zateplení!$F$19,Zateplení!$F$20<=Zateplení!$F$21)),I186*$C$141,IF($B$138=\"ano\",\"bez požadavku\",IF(AND(OR($B$137=2,$B$137=3,$B$137=4),$B$163<700),I186*$C$141,J186*$C$141)))","v":{"$error":"#N/A"}},{"$f":"IF(AND($B$136=2,AND(Zateplení!$F$18<=Zateplení!$F$19,Zateplení!$F$20<=Zateplení!$F$21)),\"UN,20*e1\",IF($B$138=\"ano\",\"bez požadavku\",IF(AND(OR($B$137=2,$B$137=3,$B$137=4),$B$163<700),\"UN,20*e1\",\"Urec,20*e1\")))","v":{"$error":"#N/A"}},{"$f":"IF(OR(B186=\"ne\",B186=0),\"\",IF($B$138=\"ano\",\"Bez požadavku na součinitel prostupu tepla\",IF(B$136=2,IF(G186=0,\"Zadejte součinitel prostupu tepla konstrukce\",IF(G186<=K186,\"Konstrukce splňuje požadavky programu\",\"Konstrukce nesplňuje požadavky programu\")),IF(H186<=K186,\"Konstrukce splňuje požadavky programu\",\"Konstrukce nesplňuje požadavky programu\"))))","v":""},{"$f":"Zateplení!F61","v":0},{"$f":"(F186)*$N186*($B$141-$B$142)/1000*24*$B$145/($B$141-$B$142)","v":{"$error":"#N/A"}},{"$f":"IF(B186=\"NE\",0,(H186)*$N186*($B$141-$B$142)/1000*24*$B$145/($B$141-$B$142))","v":0},{"$f":"IF(B186=\"ne\",0,O186-P186)","v":0},{"$f":"Q186/1000*3.6","v":0},{"$f":"Q186/$B$140","v":{"$error":"#DIV/0!"}}]
[{"$f":"A167","v":0},{"$f":"IF(B110=FALSE,\"ne\",Zateplení!F66)","v":"ne"},null,{"$f":"Zateplení!F67","v":0},{"$f":"Zateplení!F68","v":0},{"$f":"C167","v":{"$error":"#N/A"}},{"$f":"Zateplení!F70","v":0},{"$f":"1/(1/F187+E187/1000/VLOOKUP(D187,budova_opatření!$B$3:$D$38,2,0))+VLOOKUP(D187,budova_opatření!$B$3:$D$38,3,0)","v":{"$error":"#N/A"}},{"$f":"VLOOKUP(CONCATENATE($B$139,\"-\",parametry!B167),budova!$D$70:$G$304,3,0)","v":{"$error":"#N/A"}},{"$f":"VLOOKUP(CONCATENATE($B$139,\"-\",parametry!B167),budova!$D$70:$G$304,4,0)","v":{"$error":"#N/A"}},{"$f":"IF(AND($B$136=2,AND(Zateplení!$F$18<=Zateplení!$F$19,Zateplení!$F$20<=Zateplení!$F$21)),I187*$C$141,IF($B$138=\"ano\",\"bez požadavku\",IF(AND(OR($B$137=2,$B$137=3,$B$137=4),$B$163<700),I187*$C$141,J187*$C$141)))","v":{"$error":"#N/A"}},{"$f":"IF(AND($B$136=2,AND(Zateplení!$F$18<=Zateplení!$F$19,Zateplení!$F$20<=Zateplení!$F$21)),\"UN,20*e1\",IF($B$138=\"ano\",\"bez požadavku\",IF(AND(OR($B$137=2,$B$137=3,$B$137=4),$B$163<700),\"UN,20*e1\",\"Urec,20*e1\")))","v":{"$error":"#N/A"}},{"$f":"IF(OR(B187=\"ne\",B187=0),\"\",IF($B$138=\"ano\",\"Bez požadavku na součinitel prostupu tepla\",IF(B$136=2,IF(G187=0,\"Zadejte součinitel prostupu tepla konstrukce\",IF(G187<=K187,\"Konstrukce splňuje požadavky programu\",\"Konstrukce nesplňuje požadavky programu\")),IF(H187<=K187,\"Konstrukce splňuje požadavky programu\",\"Konstrukce nesplňuje požadavky programu\"))))","v":""},{"$f":"Zateplení!F69","v":0},{"$f":"(F187)*$N187*($B$141-$B$142)/1000*24*$B$145/($B$141-$B$142)","v":{"$error":"#N/A"}},0,{"$f":"IF(B187=\"ne\",0,O187-P187)","v":0},0,{"$error":"#DIV/0!"}]
[{"$f":"A168","v":0},{"$f":"IF(B110=FALSE,\"ne\",Zateplení!F74)","v":"ne"},null,{"$f":"Zateplení!F75","v":0},{"$f":"Zateplení!F76","v":0},{"$f":"C168","v":{"$error":"#N/A"}},{"$f":"Zateplení!F78","v":0},{"$f":"1/(1/F188+E188/1000/VLOOKUP(D188,budova_opatření!$B$3:$D$38,2,0))+VLOOKUP(D188,budova_opatření!$B$3:$D$38,3,0)","v":{"$error":"#N/A"}},{"$f":"VLOOKUP(CONCATENATE($B$139,\"-\",parametry!B168),budova!$D$70:$G$304,3,0)","v":{"$error":"#N/A"}},{"$f":"VLOOKUP(CONCATENATE($B$139,\"-\",parametry!B168),budova!$D$70:$G$304,4,0)","v":{"$error":"#N/A"}},{"$f":"IF(AND($B$136=2,AND(Zateplení!$F$18<=Zateplení!$F$19,Zateplení!$F$20<=Zateplení!$F$21)),I188*$C$141,IF($B$138=\"ano\",\"bez požadavku\",IF(AND(OR($B$137=2,$B$137=3,$B$137=4),$B$163<700),I188*$C$141,J188*$C$141)))","v":{"$error":"#N/A"}},{"$f":"IF(AND($B$136=2,AND(Zateplení!$F$18<=Zateplení!$F$19,Zateplení!$F$20<=Zateplení!$F$21)),\"UN,20*e1\",IF($B$138=\"ano\",\"bez požadavku\",IF(AND(OR($B$137=2,$B$137=3,$B$137=4),$B$163<700),\"UN,20*e1\",\"Urec,20*e1\")))","v":{"$error":"#N/A"}},"",{"$f":"Zateplení!F77","v":0},{"$error":"#N/A"},0,0,0,{"$error":"#DIV/0!"}]
["Okna ve stěně",{"$f":"IF(B110=FALSE,\"ne\",Zateplení!F82)","v":"ne"},null,{"$f":"Zateplení!F83","v":0},null,{"$f":"C169","v":{"$error":"#N/A"}},{"$f":"Zateplení!F85","v":0},{"$f":"Zateplení!F85","v":0},1.5,1.2,{"$f":"IF(AND($B$136=2,AND(Zateplení!$F$18<=Zateplení!$F$19,Zateplení!$F$20<=Zateplení!$F$21)),I189*$C$141,IF($B$138=\"ano\",\"bez požadavku\",IF(AND(OR($B$137=2,$B$137=3,$B$137=4),$B$163<700),I189*$C$141,J189*$C$141)))","v":{"$error":"#N/A"}},{"$f":"IF(AND($B$136=2,AND(Zateplení!$F$18<=Zateplení!$F$19,Zateplení!$F$20<=Zateplení!$F$21)),\"UN,20*e1\",IF($B$138=\"ano\",\"bez požadavku\",IF(AND(OR($B$137=2,$B$137=3,$B$137=4),$B$163<700),\"UN,20*e1\",\"Urec,20*e1\")))","v":{"$error":"#N/A"}},"",{"$f":"Zateplení!F84","v":0},{"$error":"#N/A"},0,0,0,{"$error":"#DIV/0!"}]
["dveře vrata",{"$f":"IF(B110=FALSE,\"ne\",Zateplení!F88)","v":"ne"},null,{"$f":"Zateplení!F89","v":0},null,{"$f":"C170","v":{"$error":"#N/A"}},{"$f":"Zateplení!F91","v":0},{"$f":"Zateplení!F91","v":0},1.7,1.2,{"$f":"IF(AND($B$136=2,AND(Zateplení!$F$18<=Zateplení!$F$19,Zateplení!$F$20<=Zateplení!$F$21)),I190*$C$141,IF($B$138=\"ano\",\"bez požadavku\",IF(AND(OR($B$137=2,$B$137=3,$B$137=4),$B$163<700),I190*$C$141,J190*$C$141)))","v":{"$error":"#N/A"}},{"$f":"IF(AND($B$136=2,AND(Zateplení!$F$18<=Zateplení!$F$19,Zateplení!$F$20<=Zateplení!$F$21)),\"UN,20*e1\",IF($B$138=\"ano\",\"bez požadavku\",IF(AND(OR($B$137=2,$B$137=3,$B$137=4),$B$163<700),\"UN,20*e1\",\"Urec,20*e1\")))","v":{"$error":"#N/A"}},"",{"$f":"Zateplení!F90","v":0},{"$error":"#N/A"},0,0,0,{"$error":"#DIV/0!"}]
["Okna ve střeše",{"$f":"IF(B110=FALSE,\"ne\",Zateplení!F94)","v":"ne"},null,{"$f":"Zateplení!F95","v":0},null,{"$f":"IF(ISBLANK(Zateplení!F35),0,C171)","v":0},{"$f":"Zateplení!F97","v":0},{"$f":"Zateplení!F97","v":0},1.4,1.1000000000000001,{"$f":"IF(AND($B$136=2,AND(Zateplení!$F$18<=Zateplení!$F$19,Zateplení!$F$20<=Zateplení!$F$21)),I191*$C$141,IF($B$138=\"ano\",\"bez požadavku\",IF(AND(OR($B$137=2,$B$137=3,$B$137=4),$B$163<700),I191*$C$141,J191*$C$141)))","v":{"$error":"#N/A"}},{"$f":"IF(AND($B$136=2,AND(Zateplení!$F$18<=Zateplení!$F$19,Zateplení!$F$20<=Zateplení!$F$21)),\"UN,20*e1\",IF($B$138=\"ano\",\"bez požadavku\",IF(AND(OR($B$137=2,$B$137=3,$B$137=4),$B$163<700),\"UN,20*e1\",\"Urec,20*e1\")))","v":{"$error":"#N/A"}},"",{"$f":"Zateplení!F96","v":0},0,0,0,0,{"$error":"#DIV/0!"}]
["Nucené větrání",{"$f":"IF(B110=FALSE,\"ne\",Zateplení!F100)","v":"ne"},null,null,null,null,null,null,null,null,null,null,"nucené větrání ",null,{"$f":"0.34*Zateplení!F102*24*B145/1000","v":0},{"$f":"0.34*Zateplení!F102*(1-Zateplení!F101)*24*B145/1000","v":0},0,0,{"$error":"#DIV/0!"}]
["Total",null,null,null,null,null,null,null,null,null,null,null,null,"kWh",{"$f":"SUM(O186:O191)","v":{"$error":"#N/A"}},{"$f":"SUM(P186:P191)","v":0},{"$f":"SUM(Q186:Q191)","v":0},{"$f":"SUM(R186:R191)","v":0},{"$error":"#DIV/0!"}]
[null,null,null,null,null,null,null,null,null,null,null,null,null,"kWh/m2",{"$f":"O193/Zateplení!$F$9","v":{"$error":"#N/A"}},{"$f":"P193/Zateplení!$F$9","v":{"$error":"#DIV/0!"}},{"$f":"Q193/Zateplení!$F$9","v":{"$error":"#DIV/0!"}},{"$f":"Q193/O193","v":{"$error":"#N/A"}}]
["Měrná potřeba energie objektu na vytápění po realizaci",null,"kWh/m2"]
["Spotřeba energie objektu na vytápění před realizací",{"$f":"IF($B$136=1,$O$193,Zateplení!F22)","v":0},"kWh",{"$f":"B196/1000*3.6","v":0},"GJ","bráno z konstrukcí / z PENB"]
["Spotřeba energie objektu na vytápění po realizaci",{"$f":"IF($B$136=1,$P$193,Zateplení!F20)","v":0},"kWh",{"$f":"B197/1000*3.6","v":0},"GJ","bráno z konstrukcí / z PENB"]
["úspora z PENB",{"$f":"B196-B197","v":0},"kWh",{"$f":"D196-D197","v":0},"GJ"]
[]
[]
["ESR",{"$f":"1-B197/B196","v":{"$error":"#DIV/0!"}}]

{"sheet":"Osvětlení_parametry","index":5,"n_rows":116,"n_cols":17,"rows_kept":116,"cut":false,"hidden":true,"merged":[]}
["klasika","halogen","výbojka","CFL","zářivka","příkon led","světelný tok",null,null,null,null,null,null,"Typické parametry zdrojů"]
[40,30,{"$f":"ROUND((C3/F3)*F2,2)","v":6.62},{"$f":"ROUND((D3/F3)*F2,2)","v":5},{"$f":"ROUND((E3/F3)*F2,2)","v":3.67},3,{"$f":"F2*H3","v":0},null,null,null,null,null,null,null,"příkon","světelný tok","lm/W"]
[{"$f":"A2+($A$5-$A$2)/3","v":46.666666666666664},{"$f":"B2+($B$5-$B$2)/3","v":35.333333333333336},{"$f":"(C4/F4)*F3","v":12.133526850507986},{"$f":"(D4/F4)*F3","v":9.1666666666666679},{"$f":"(E4/F4)*F3","v":6.7222222222222241},5.5,470,null,null,null,null,null,null,"klasika",25,200,{"$f":"P3/O3","v":8}]
[{"$f":"A3+($A$5-$A$2)/3","v":53.333333333333329},{"$f":"B3+($B$5-$B$2)/3","v":40.666666666666671},13.23657474600871,10,{"$f":"(E5/F5)*F4","v":7.3333333333333357},6,{"$f":"G3+($G$6-$G$3)/3","v":582},null,null,null,null,null,null,"klasika",40,280,7]
[60,46,15.442670537010162,{"$f":"D4+(D7-D4)/3","v":12},{"$f":"(E6/F6)*F5","v":8.5555555555555571},7,{"$f":"G4+($G$6-$G$3)/3","v":694},null,null,null,null,null,null,"klasika",60,630,10.5]
[{"$f":"A5+(A8-A5)/3","v":65},{"$f":"B5+(B7-B5)/2","v":51.5},17.648766328011614,{"$f":"D5+(D7-D4)/3","v":14},{"$f":"(E7/F7)*F6","v":9.7777777777777786},8,806,null,null,null,null,null,null,"klasika",75,1000,13.333333333333334]
[70,57,19.854862119013067,16,11,9,{"$f":"(G6+G8)/2","v":930.5},null,null,null,null,null,null,"klasika",100,1340,13.4]
[75,{"$f":"B7+(B10-B7)/3","v":63.666666666666664},22.060957910014519,{"$f":"D7+($D$32-$D$7)/25","v":16.8},{"$f":"E7+($E$10-$E$7)/3","v":13.333333333333334},10,1055,null,null,null,null,null,null,"klasika",150,2140,14.266666666666667]
[{"$f":"(A8+A10)/2","v":87.5},{"$f":"B8+(B10-B7)/3","v":70.333333333333329},24.267053701015971,{"$f":"D8+($D$32-$D$7)/25","v":17.600000000000001},{"$f":"E8+($E$10-$E$7)/3","v":15.666666666666668},11,{"$f":"G8+(G11-G8)/3","v":1210.3333333333333},null,null,null,null,null,null,"klasika",200,2800,14]
[100,77,26.47314949201742,18.400000000000002,18,12,{"$f":"G9+(G11-G8)/3","v":1365.6666666666665},null,null,null,null,null,null,"klasika",300,4200,14]
[{"$f":"A10+($A$19-$A$10)/9","v":105.55555555555556},{"$f":"B10+($B$33-$B$10)/23","v":80.173913043478265},28.679245283018872,19.200000000000003,{"$f":"E10+($E$14-$E$10)/4","v":20.5},13,1521,null,null,null,null,null,null,"výbojka",80,3600,45]
[{"$f":"A11+($A$19-$A$10)/9","v":111.11111111111111},{"$f":"B11+($B$33-$B$10)/23","v":83.34782608695653},30.885341074020324,20.000000000000004,{"$f":"E11+($E$14-$E$10)/4","v":23},14,{"$f":"G11+($G$18-$G$11)/7","v":1603.7142857142858},null,null,null,null,null,null,"výbojka",125,6000,48]
[116.66666666666667,86.521739130434796,33.091436865021777,20.800000000000004,{"$f":"E12+($E$14-$E$10)/4","v":25.5},15,1686.4285714285716,null,null,null,null,null,null,"výbojka",250,12700,50.8]
[122.22222222222223,89.695652173913061,35.297532656023229,21.600000000000005,28,16,1769.1428571428573,null,null,null,null,null,null,"CFL",10,600,60]
[127.77777777777779,92.869565217391326,37.503628447024681,22.400000000000006,{"$f":"E14+($E$43-$E$14)/28","v":28.285714285714285},17,1851.8571428571431,null,null,null,null,null,null,"CFL",16,980,61.25]
[133.33333333333334,96.043478260869591,39.709724238026133,23.200000000000006,{"$f":"E15+($E$43-$E$14)/28","v":28.571428571428569},18,1934.5714285714289,null,null,null,null,null,null,"CFL",36,2800,77.777777777777771]
[138.88888888888889,99.217391304347856,41.915820029027586,24.000000000000007,28.857142857142854,19,2017.2857142857147,null,null,null,null,null,null,"CFL",80,6000,75]
[144.44444444444443,102.39130434782612,44.121915820029038,24.800000000000008,29.142857142857139,20,2100,null,null,null,null,null,null,"zářivka",80,7000,87.5]
[150,105.56521739130439,46.32801161103049,25.600000000000009,29.428571428571423,21,{"$f":"G18+($G$28-$G$18)/10","v":2150},null,null,null,null,null,null,"zářivka",58,5250,90.517241379310349]
[{"$f":"A19+($A$32-$A$19)/13","v":153.84615384615384},108.73913043478265,48.534107402031943,26.400000000000009,29.714285714285708,22,{"$f":"G19+($G$28-$G$18)/10","v":2200},null,null,null,null,null,null,"zářivka",49,4900,100]
[{"$f":"A20+($A$32-$A$19)/13","v":157.69230769230768},111.91304347826092,50.740203193033395,27.20000000000001,29.999999999999993,23,2250,null,null,null,null,null,null,"zářivka",36,3350,93.055555555555557]
[161.53846153846152,115.08695652173918,51.823899371069189,28.000000000000011,{"$f":"E21+($E$43-$E$14)/28","v":30.285714285714278},{"$f":"F21+($F$76-$F$20)/57","v":23.491228070175438},2300,null,null,null,null,null,null,"zářivka",28,1700,60.714285714285715]
[165.38461538461536,118.26086956521745,52.90759554910499,28.800000000000011,30.571428571428562,{"$f":"F22+($F$76-$F$20)/57","v":23.982456140350877},2350,null,null,null,null,null,null,"zářivka",18,1350,75]
[169.2307692307692,121.43478260869571,53.991291727140791,29.600000000000012,30.857142857142847,24.473684210526315,2400,null,null,null,null,null,null,"zářivka",11,900,81.818181818181813]
[173.07692307692304,124.60869565217398,55.074987905176592,30.400000000000013,31.142857142857132,24.964912280701753,2450,null,null,null,null,null,null,"led",5.5,470,85.454545454545453]
[176.92307692307688,127.78260869565224,56.158684083212393,31.200000000000014,31.428571428571416,25.456140350877192,2500,null,null,null,null,null,null,"led",8,806,100.75]
[180.76923076923072,130.95652173913049,57.242380261248194,32.000000000000014,31.714285714285701,25.94736842105263,2550,null,null,null,null,null,null,"led",10,1055,105.5]
[184.61538461538456,134.13043478260875,58.326076439283995,32.800000000000011,31.999999999999986,26.438596491228068,2600,null,null,null,null,null,null,"led",13,1521,117]
[188.4615384615384,137.304347826087,59.409772617319796,33.600000000000009,32.28571428571427,26.929824561403507,2650,null,null,null,null,null,null,"led",20,2100,105]
[192.30769230769224,140.47826086956525,60.493468795355597,34.400000000000006,32.571428571428555,27.421052631578945,2700,null,null,null,null,null,null,"led",30,2600,86.666666666666671]
[196.15384615384608,143.6521739130435,61.577164973391397,35.200000000000003,32.85714285714284,27.912280701754383,2750]
[200,146.82608695652175,62.660861151427198,36,33.142857142857125,28.403508771929822,2800]
[{"$f":"A32+($A$60-$A$32)/28","v":203.57142857142858},150,63.744557329462992,{"$f":"D32+($D$96-$D$32)/65","v":36.676923076923075},33.428571428571409,28.89473684210526,2850]
[{"$f":"A33+($A$60-$A$32)/28","v":207.14285714285717},{"$f":"B33-B32+B33","v":153.17391304347825},64.8282535074988,{"$f":"D33+($D$96-$D$32)/65","v":37.353846153846149},33.714285714285694,29.385964912280699,2900]
[210.71428571428575,{"$f":"B34-B33+B34","v":156.3478260869565},65.911949685534594,38.030769230769224,33.999999999999979,29.877192982456137,2950]
[214.28571428571433,159.52173913043475,66.995645863570402,38.707692307692298,34.285714285714263,30.368421052631575,3000]
[217.85714285714292,162.695652173913,68.079342041606196,39.384615384615373,34.571428571428548,30.859649122807014,3050]
[221.4285714285715,165.86956521739125,69.163038219642004,40.061538461538447,34.857142857142833,31.350877192982452,3100]
[225.00000000000009,169.04347826086951,70.246734397677798,40.738461538461522,35.142857142857117,31.84210526315789,3150]
[228.57142857142867,172.21739130434776,71.330430575713592,41.415384615384596,35.428571428571402,32.333333333333329,3200]
[232.14285714285725,175.39130434782601,72.4141267537494,42.092307692307671,35.714285714285687,32.824561403508767,3250]
[235.71428571428584,178.56521739130426,73.497822931785194,42.769230769230745,35.999999999999972,33.315789473684205,3300]
[239.28571428571442,181.73913043478251,74.581519109821002,43.44615384615382,36,33.807017543859644,3350]
[242.857142857143,184.91304347826076,75.665215287856796,44.123076923076894,{"$f":"E43+($E$74-$E$43)/31","v":36.516129032258064},34.298245614035082,3400]
[246.42857142857159,188.08695652173901,76.748911465892604,44.799999999999969,{"$f":"E44+($E$74-$E$43)/31","v":37.032258064516128},34.78947368421052,3450]
[250.00000000000017,191.26086956521726,77.832607643928398,45.476923076923043,37.548387096774192,35.280701754385959,3500]
[253.57142857142875,194.43478260869551,78.916303821964206,46.153846153846118,38.064516129032256,35.771929824561397,3550]
[257.14285714285734,197.60869565217376,80,46.830769230769192,38.58064516129032,36.263157894736835,3600]
[260.71428571428589,200.78260869565202,{"$f":"C48+($C$96-$C$48)/48","v":80.9375},47.507692307692267,39.096774193548384,36.754385964912274,3650]
[264.28571428571445,203.95652173913027,{"$f":"C49+($C$96-$C$48)/48","v":81.875},48.184615384615341,39.612903225806448,37.245614035087712,3700]
[267.857142857143,207.13043478260852,82.8125,48.861538461538416,40.129032258064512,37.73684210526315,3750]
[271.42857142857156,210.30434782608677,83.75,49.53846153846149,40.645161290322577,38.228070175438589,3800]
[275.00000000000011,213.47826086956502,84.6875,50.215384615384565,41.161290322580641,38.719298245614027,3850]
[278.57142857142867,216.65217391304327,85.625,50.892307692307639,41.677419354838705,39.210526315789465,3900]
[282.14285714285722,219.82608695652152,86.5625,51.569230769230714,42.193548387096769,39.701754385964904,3950]
[285.71428571428578,222.99999999999977,87.5,52.246153846153788,42.709677419354833,40.192982456140342,4000]
[289.28571428571433,226.17391304347802,88.4375,52.923076923076863,43.225806451612897,40.68421052631578,4050]
[292.85714285714289,229.34782608695627,89.375,53.599999999999937,43.741935483870961,41.175438596491219,4100]
[296.42857142857144,232.52173913043453,90.3125,54.276923076923012,44.258064516129025,41.666666666666657,4150]
[300,235.69565217391278,91.25,54.953846153846087,44.774193548387089,42.157894736842096,4200]
[303.57142857142856,238.86956521739103,92.1875,55.630769230769161,45.290322580645153,42.649122807017534,4250]
[{"$f":"A61-A60+A61","v":307.14285714285711},{"$f":"B61-B60+B61","v":242.04347826086928},93.125,56.307692307692236,45.806451612903217,43.140350877192972,4300]
[310.71428571428567,245.21739130434753,94.0625,56.98461538461531,46.322580645161281,43.631578947368411,4350]
[314.28571428571422,248.39130434782578,95,57.661538461538385,46.838709677419345,44.122807017543849,4400]
[317.85714285714278,251.56521739130403,95.9375,58.338461538461459,47.354838709677409,44.614035087719287,4450]
[321.42857142857133,254.73913043478228,96.875,59.015384615384534,47.870967741935473,45.105263157894726,4500]
[324.99999999999989,257.91304347826053,97.8125,59.692307692307608,48.387096774193537,45.596491228070164,4550]
[328.57142857142844,261.08695652173878,98.75,60.369230769230683,48.903225806451601,46.087719298245602,4600]
[332.142857142857,264.26086956521704,99.6875,61.046153846153757,49.419354838709666,46.578947368421041,4650]
[335.71428571428555,267.43478260869529,100.625,61.723076923076832,49.93548387096773,47.070175438596479,4700]
[339.28571428571411,270.60869565217354,101.5625,62.399999999999906,50.451612903225794,47.561403508771917,4750]
[342.85714285714266,273.78260869565179,102.5,63.076923076922981,50.967741935483858,48.052631578947356,4800]
[346.42857142857122,276.95652173913004,103.4375,63.753846153846055,51.483870967741922,48.543859649122794,4850]
[349.99999999999977,280.13043478260829,104.375,64.43076923076913,52,49.035087719298232,4900]
[353.57142857142833,283.30434782608654,105.3125,65.107692307692204,{"$f":"E74+($E$81-$E$74)/7","v":52.857142857142854},{"$f":"F74+($F$76-$F$20)/40","v":49.735087719298235},4950]
[357.14285714285688,286.47826086956479,106.25,65.784615384615279,53.714285714285708,50,5000]
[360.71428571428544,289.65217391304304,107.1875,66.461538461538353,54.571428571428562,{"$f":"F76+($F$116-$F$76)/40","v":50.325000000000003},5050]
[364.28571428571399,292.82608695652129,108.125,67.138461538461428,55.428571428571416,{"$f":"F77+($F$116-$F$76)/40","v":50.650000000000006},5100]
[367.85714285714255,295.99999999999955,109.0625,67.815384615384502,56.28571428571427,50.975000000000009,5150]
[371.4285714285711,299.1739130434778,110,68.492307692307577,57.142857142857125,51.300000000000011,5200]
[374.99999999999966,302.34782608695605,110.9375,69.169230769230651,58,51.625000000000014,5250]
[378.57142857142821,305.5217391304343,111.875,69.846153846153726,{"$f":"E81+($E$116-$E$81)/35","v":58.628571428571426},51.950000000000017,5300]
[382.14285714285677,308.69565217391255,112.8125,70.5230769230768,{"$f":"E82+($E$116-$E$81)/35","v":59.257142857142853},52.27500000000002,5350]
[385.71428571428532,311.8695652173908,113.75,71.199999999999875,59.885714285714279,52.600000000000023,5400]
[389.28571428571388,315.04347826086905,114.6875,71.876923076922949,60.514285714285705,52.925000000000026,5450]
[392.85714285714243,318.2173913043473,115.625,72.553846153846024,61.142857142857132,53.250000000000028,5500]
[396.42857142857099,321.39130434782555,116.5625,73.230769230769098,61.771428571428558,53.575000000000031,5550]
[399.99999999999955,324.5652173913038,117.5,73.907692307692173,62.399999999999984,53.900000000000034,5600]
[403.5714285714281,327.73913043478206,118.4375,74.584615384615248,63.028571428571411,54.225000000000037,5650]
[407.14285714285666,330.91304347826031,119.375,75.261538461538322,63.657142857142837,54.55000000000004,5700]
[410.71428571428521,334.08695652173856,120.3125,75.938461538461397,64.285714285714263,54.875000000000043,5750]
[414.28571428571377,337.26086956521681,121.25,76.615384615384471,64.914285714285697,55.200000000000045,5800]
[417.85714285714232,340.43478260869506,122.1875,77.292307692307546,65.54285714285713,55.525000000000048,5850]
[421.42857142857088,343.60869565217331,123.125,77.96923076923062,66.171428571428564,55.850000000000051,5900]
[424.99999999999943,346.78260869565156,124.0625,78.646153846153695,66.8,56.175000000000054,5950]
[428.57142857142799,349.95652173912981,125,80,67.428571428571431,56.500000000000057,6000]
[432.14285714285654,353.13043478260806,{"$f":"C96-C95+C96","v":125.9375},{"$f":"D96-D95+D96","v":81.353846153846305},68.057142857142864,56.82500000000006,6050]
[{"$f":"A97-A96+A97","v":435.7142857142851},{"$f":"B97-B96+B97","v":356.30434782608631},{"$f":"C97-C96+C97","v":126.875},{"$f":"D97-D96+D97","v":82.707692307692611},68.685714285714297,57.150000000000063,6100]
[439.28571428571365,359.47826086956456,127.8125,84.061538461538916,69.314285714285731,57.475000000000065,6150]
[442.85714285714221,362.65217391304282,128.75,85.415384615385221,69.942857142857164,57.800000000000068,6200]
[446.42857142857076,365.82608695652107,129.6875,86.769230769231527,70.571428571428598,58.125000000000071,6250]
[449.99999999999932,368.99999999999932,130.625,88.123076923077832,71.200000000000031,58.450000000000074,6300]
[453.57142857142787,372.17391304347757,131.5625,89.476923076924137,71.828571428571465,58.775000000000077,6350]
[457.14285714285643,375.34782608695582,132.5,90.830769230770443,72.457142857142898,59.10000000000008,6400]
[460.71428571428498,378.52173913043407,133.4375,92.184615384616748,73.085714285714332,59.425000000000082,6450]
[464.28571428571354,381.69565217391232,134.375,93.538461538463054,73.714285714285765,59.750000000000085,6500]
[467.85714285714209,384.86956521739057,135.3125,94.892307692309359,74.342857142857198,60.075000000000088,6550]
[471.42857142857065,388.04347826086882,136.25,96.246153846155664,74.971428571428632,60.400000000000091,6600]
[474.9999999999992,391.21739130434707,137.1875,97.60000000000197,75.600000000000065,60.725000000000094,6650]
[478.57142857142776,394.39130434782533,138.125,98.953846153848275,76.228571428571499,61.050000000000097,6700]
[482.14285714285631,397.56521739130358,139.0625,100.30769230769458,76.857142857142932,61.375000000000099,6750]
[485.71428571428487,400.73913043478183,140,101.66153846154089,77.485714285714366,61.700000000000102,6800]
[489.28571428571342,403.91304347826008,140.9375,103.01538461538719,78.114285714285799,62.025000000000105,6850]
[492.85714285714198,407.08695652173833,141.875,104.3692307692335,78.742857142857233,62.350000000000108,6900]
[496.42857142857054,410.26086956521658,142.8125,105.7230769230798,79.371428571428666,62.675000000000111,6950]
[499.99999999999909,413.43478260869483,143.75,107.07692307692611,80,63,7000]

{"sheet":"budova","index":6,"n_rows":304,"n_cols":7,"rows_kept":304,"cut":false,"hidden":true,"merged":[]}
["Období",null,{"$f":"Zateplení!F10","v":0}]
[]
[]
["stěny",{"$f":"$C$1","v":0},{"$f":"VLOOKUP($C$1,parametry!D26:E31,2,0)","v":{"$error":"#N/A"}},{"$f":"INDEX(D5:D10,C4)","v":{"$error":"#N/A"}}]
["stěny","< 1920",1,"budova!$C$70:$C$70"]
["stěny","1921 až 1945",2,"budova!$C$71:$C$73"]
["stěny","1946 až 1960",3,"budova!$C$74:$C$77"]
["stěny","1961 až 1980",4,"budova!$C$78:$C$85"]
["stěny","1981 až 1994",5,"budova!$C$86:$C$89"]
["stěny","1995 a dále",6,"budova!$C$90:$C$95"]
["plochá střecha",{"$f":"$C$1","v":0},{"$f":"$C$4","v":{"$error":"#N/A"}},{"$f":"INDEX(D12:D17,C11)","v":{"$error":"#N/A"}}]
["plochá střecha","< 1920",1,"budova!$C$96:$C$96"]
["plochá střecha","1921 až 1945",2,"budova!$C$97:$C$99"]
["plochá střecha","1946 až 1960",3,"budova!$C$100:$C$100"]
["plochá střecha","1961 až 1980",4,"budova!$C$101:$C$103"]
["plochá střecha","1981 až 1994",5,"budova!$C$104:$C$105"]
["plochá střecha","1995 a dále",6,"budova!$C$106:$C$110"]
["šikmá střecha",{"$f":"$C$1","v":0},{"$f":"$C$4","v":{"$error":"#N/A"}},{"$f":"INDEX(D19:D24,C18)","v":{"$error":"#N/A"}}]
["šikmá střecha","< 1920",1,"budova!$C$111:$C$111"]
["šikmá střecha","1921 až 1945",2,"budova!$C$112:$C$112"]
["šikmá střecha","1946 až 1960",3,"budova!$C$113:$C$113"]
["šikmá střecha","1961 až 1980",4,"budova!$C$114:$C$114"]
["šikmá střecha","1981 až 1994",5,"budova!$C$115:$C$115"]
["šikmá střecha","1995 a dále",6,"budova!$C$116:$C$117"]
["strop půdy",{"$f":"$C$1","v":0},{"$f":"$C$4","v":{"$error":"#N/A"}},{"$f":"INDEX(D26:D31,C25)","v":{"$error":"#N/A"}}]
["strop půdy","< 1920",1,"budova!$C$118:$C$119"]
["strop půdy","1921 až 1945",2,"budova!$C$120:$C$122"]
["strop půdy","1946 až 1960",3,"budova!$C$123:$C$126"]
["strop půdy","1961 až 1980",4,"budova!$C$127:$C$132"]
["strop půdy","1981 až 1994",5,"budova!$C$133:$C$138"]
["strop půdy","1995 a dále",6,"budova!$C$1369:$C$141"]
["nevytápěný suterén",{"$f":"$C$1","v":0},{"$f":"$C$4","v":{"$error":"#N/A"}},{"$f":"INDEX(D33:D38,C32)","v":{"$error":"#N/A"}}]
["nevytápěný suterén","< 1920",1,"budova!$C$142:$C$143"]
["nevytápěný suterén","1921 až 1945",2,"budova!$C$144:$C$146"]
["nevytápěný suterén","1946 až 1960",3,"budova!$C$147:$C$152"]
["nevytápěný suterén","1961 až 1980",4,"budova!$C$153:$C$157"]
["nevytápěný suterén","1981 až 1994",5,"budova!$C$158:$C$162"]
["nevytápěný suterén","1995 a dále",6,"budova!$C$163:$C$166"]
["okna",{"$f":"$C$1","v":0},{"$f":"$C$4","v":{"$error":"#N/A"}},{"$f":"INDEX(D40:D45,C39)","v":{"$error":"#N/A"}}]
["okna","< 1920",1,"budova!$C$167:$C$174"]
["okna","1921 až 1945",2,"budova!$C$175:$C$182"]
["okna","1946 až 1960",3,"budova!$C$183:$C$190"]
["okna","1961 až 1980",4,"budova!$C$191:$C$198"]
["okna","1981 až 1994",5,"budova!$C$199:$C$207"]
["okna","1995 a dále",6,"budova!$C$208:$C$214"]
["dveře-vrata",{"$f":"$C$1","v":0},{"$f":"$C$4","v":{"$error":"#N/A"}},{"$f":"INDEX(D47:D52,C46)","v":{"$error":"#N/A"}}]
["dveře-vrata","< 1920",1,"budova!$C$215:$C$221"]
["dveře-vrata","1921 až 1945",2,"budova!$C$222:$C$228"]
["dveře-vrata","1946 až 1960",3,"budova!$C$229:$C$235"]
["dveře-vrata","1961 až 1980",4,"budova!$C$236:$C$242"]
["dveře-vrata","1981 až 1994",5,"budova!$C$243:$C$249"]
["dveře-vrata","1995 a dále",6,"budova!$C$250:$C$256"]
["střešní okna-světlíky",{"$f":"$C$1","v":0},{"$f":"$C$4","v":{"$error":"#N/A"}},{"$f":"INDEX(D54:D59,C53)","v":{"$error":"#N/A"}}]
["střešní okna-světlíky","< 1920",1,"budova!$C$257:$C$262"]
["střešní okna-světlíky","1921 až 1945",2,"budova!$C$263:$C$268"]
["střešní okna-světlíky","1946 až 1960",3,"budova!$C$269:$C$274"]
["střešní okna-světlíky","1961 až 1980",4,"budova!$C$275:$C$280"]
["střešní okna-světlíky","1981 až 1994",5,"budova!$C$281:$C$286"]
["střešní okna-světlíky","1995 a dále",6,"budova!$C$287:$C$289"]
["podlaha na zemině",{"$f":"$C$1","v":0},{"$f":"$C$4","v":{"$error":"#N/A"}},{"$f":"INDEX(D61:D66,C60)","v":{"$error":"#N/A"}}]
["podlaha na zemině","< 1920",1,"budova!$C$290:$C$291"]
["podlaha na zemině","1921 až 1945",2,"budova!$C$292:$C$293"]
["podlaha na zemině","1946 až 1960",3,"budova!$C$294:$C$295"]
["podlaha na zemině","1961 až 1980",4,"budova!$C$296:$C$297"]
["podlaha na zemině","1981 až 1994",5,"budova!$C$298:$C$299"]
["podlaha na zemině","1995 a dále",6,"budova!$C$300:$C$304"]
[]
[]
["Konstrukce","Období","Konstrukce","Kce","Součinitel prostupu tepla","Požadavek U","U rec"]
["stěny","< 1920","zdivo z cihel pálených plných tloušťky 450 mm",{"$f":"CONCATENATE(B70,\"-\",C70)","v":"< 1920-zdivo z cihel pálených plných tloušťky 450 mm"},1.4,0.3,0.25]
["stěny","1921 až 1945","zdivo z cihel pálených plných tloušťky 450 mm",{"$f":"CONCATENATE(B71,\"-\",C71)","v":"1921 až 1945-zdivo z cihel pálených plných tloušťky 450 mm"},1.4,0.3,0.25]
["stěny","1921 až 1945","zdivo z děrovaných cihel a tvárnic tloušťky cca 300 mm","1921 až 1945-zdivo z děrovaných cihel a tvárnic tloušťky cca 300 mm",1.3,0.3,0.25]
["stěny","1921 až 1945","zdivo ze škvárobetonu tloušťky 250 mm až 300 mm","1921 až 1945-zdivo ze škvárobetonu tloušťky 250 mm až 300 mm",1.2,0.3,0.25]
["stěny","1946 až 1960","zdivo z cihel pálených plných tloušťky 450 mm","1946 až 1960-zdivo z cihel pálených plných tloušťky 450 mm",1.4,0.3,0.25]
["stěny","1946 až 1960","zdivo z děrovaných cihel a tvárnic","1946 až 1960-zdivo z děrovaných cihel a tvárnic",1.3,0.3,0.25]
["stěny","1946 až 1960","zdivo ze škvárobetonu tloušťky 250 mm až 300 mm","1946 až 1960-zdivo ze škvárobetonu tloušťky 250 mm až 300 mm",1.2,0.3,0.25]
["stěny","1946 až 1960","zdivo z lehkých betonů tloušťky cca 300 mm","1946 až 1960-zdivo z lehkých betonů tloušťky cca 300 mm",1.4,0.3,0.25]
["stěny","1961 až 1980","zdivo z děrovaných cihel a tvárnic tloušťky cca 300 mm","1961 až 1980-zdivo z děrovaných cihel a tvárnic tloušťky cca 300 mm",1.3,0.3,0.25]
["stěny","1961 až 1980","zdivo ze škvárobetonu tloušťky 250 mm až 300 mm","1961 až 1980-zdivo ze škvárobetonu tloušťky 250 mm až 300 mm",1.2,0.3,0.25]
["stěny","1961 až 1980","zdivo z lehkých betonů tloušťky cca 300 mm","1961 až 1980-zdivo z lehkých betonů tloušťky cca 300 mm",1.4,0.3,0.25]
["stěny","1961 až 1980","panel z lehkého betonu tloušťky 240 mm až 300 mm","1961 až 1980-panel z lehkého betonu tloušťky 240 mm až 300 mm",0.9,0.3,0.25]
["stěny","1961 až 1980","zdivo z pórobetonu tloušťky cca 300 mm","1961 až 1980-zdivo z pórobetonu tloušťky cca 300 mm",0.7,0.3,0.25]
["stěny","1961 až 1980","keramický panel tloušťky 250 mm až 300 mm bez tep. izolace","1961 až 1980-keramický panel tloušťky 250 mm až 300 mm bez tep. izolace",1.8,0.3,0.25]
["stěny","1961 až 1980","kovoplastický panel (tzv. Boletický) tloušťky 120 mm","1961 až 1980-kovoplastický panel (tzv. Boletický) tloušťky 120 mm",1.1000000000000001,0.3,0.2]
["stěny","1961 až 1980","železobetonový panel sendvičový tloušťky 190 až 240 mm","1961 až 1980-železobetonový panel sendvičový tloušťky 190 až 240 mm",1,0.3,0.25]
["stěny","1981 až 1994","zdivo z pórobetonových tvárnic tloušťky 400 mm","1981 až 1994-zdivo z pórobetonových tvárnic tloušťky 400 mm",0.7,0.3,0.25]
["stěny","1981 až 1994","panel z lehkého betonu tloušťky cca 350 mm","1981 až 1994-panel z lehkého betonu tloušťky cca 350 mm",0.9,0.3,0.25]
["stěny","1981 až 1994","keramický panel tloušťky 300 mm s tepelnou izolací","1981 až 1994-keramický panel tloušťky 300 mm s tepelnou izolací",0.8,0.3,0.25]
["stěny","1981 až 1994","železobetonový panel sendvičový tloušťky cca 300 mm","1981 až 1994-železobetonový panel sendvičový tloušťky cca 300 mm",0.6,0.3,0.25]
["stěny","1995 a dále","stěna rekonstruovaný objekt (1995 - 2001)","1995 a dále-stěna rekonstruovaný objekt (1995 - 2001)",0.7,0.3,0.25]
["stěny","1995 a dále","nová stěna (1995 - 2001)","1995 a dále-nová stěna (1995 - 2001)",0.33,0.3,0.25]
["stěny","1995 a dále","stěna lehká - nová od 2002","1995 a dále-stěna lehká - nová od 2002",0.3,0.3,0.2]
["stěny","1995 a dále","stěna těžká - nová od 2002","1995 a dále-stěna těžká - nová od 2002",0.38,0.3,0.25]
["stěny","1995 a dále","stěna těžká - nová od 2002",{"$f":"CONCATENATE(B94,\"-\",C94)","v":"1995 a dále-stěna těžká - nová od 2002"},0.38,0.3,0.25]
["stěny","1995 a dále","stěna nová od 2011",{"$f":"CONCATENATE(B95,\"-\",C95)","v":"1995 a dále-stěna nová od 2011"},0.3,0.3,0.25]
["plochá střecha","< 1920","plochá jednoplášťová střecha s vrstvou škvárobetonu","< 1920-plochá jednoplášťová střecha s vrstvou škvárobetonu",2,0.24,0.16]
["plochá střecha","1921 až 1945","plochá jednoplášťová střecha s vrstvou škvárobetonu","1921 až 1945-plochá jednoplášťová střecha s vrstvou škvárobetonu",2,0.24,0.16]
["plochá střecha","1921 až 1945","plochá jednoplášťová střecha s tepelnou izolací z dutých cihel","1921 až 1945-plochá jednoplášťová střecha s tepelnou izolací z dutých cihel",1.4,0.24,0.16]
["plochá střecha","1921 až 1945","plochá dvouplášťová střecha s násypem","1921 až 1945-plochá dvouplášťová střecha s násypem",1.2,0.24,0.16]
["plochá střecha","1946 až 1960","plochá jednoplášťová střecha s pěnobetonem a heraklitem","1946 až 1960-plochá jednoplášťová střecha s pěnobetonem a heraklitem",0.9,0.24,0.16]
["plochá střecha","1961 až 1980","plochá jednoplášťová střecha s tepelnou izolací z plynosilikátových desek nebo pěnoskla","1961 až 1980-plochá jednoplášťová střecha s tepelnou izolací z plynosilikátových desek nebo pěnoskla",0.7,0.24,0.16]
["plochá střecha","1961 až 1980","plochá jednoplášťová střecha s tepelnou izolací z polystyrénu tl. 50 mm","1961 až 1980-plochá jednoplášťová střecha s tepelnou izolací z polystyrénu tl. 50 mm",0.6,0.24,0.16]
["plochá střecha","1961 až 1980","plochá dvouplášťová střecha s tepelnou izolací s minerálních vláken tloušťky 60 až 80 mm","1961 až 1980-plochá dvouplášťová střecha s tepelnou izolací s minerálních vláken tloušťky 60 až 80 mm",0.7,0.24,0.16]
["plochá střecha","1981 až 1994","plochá jednoplášťová střecha s tepelnou izolací z polystyrénu tl. 100 mm","1981 až 1994-plochá jednoplášťová střecha s tepelnou izolací z polystyrénu tl. 100 mm",0.4,0.24,0.16]
["plochá střecha","1981 až 1994","plochá dvouplášťová střecha s tepelnou izolací s minerálních vláken tloušťky 120 mm","1981 až 1994-plochá dvouplášťová střecha s tepelnou izolací s minerálních vláken tloušťky 120 mm",0.4,0.24,0.16]
["plochá střecha","1995 a dále","plochá střecha 1995-2002","1995 a dále-plochá střecha 1995-2002",{"$f":"1/3","v":0.33333333333333331},0.24,0.16]
["plochá střecha","1995 a dále","plochá střecha těžká po roce 2002",{"$f":"CONCATENATE(B107,\"-\",C107)","v":"1995 a dále-plochá střecha těžká po roce 2002"},0.3,0.24,0.16]
["plochá střecha","1995 a dále","plochá střecha lehká po roce 2002","1995 a dále-plochá střecha lehká po roce 2002",0.24,0.24,0.16]
["plochá střecha","1995 a dále","plochá střecha po roce 2002","1995 a dále-plochá střecha po roce 2002",0.24,0.24,0.16]
["plochá střecha","1995 a dále","plochá střecha po roce 2007","1995 a dále-plochá střecha po roce 2007",0.24,0.24,0.16]
["šikmá střecha","< 1920","šikmá střecha nezateplená","< 1920-šikmá střecha nezateplená",4,0.24,0.16]
["šikmá střecha","1921 až 1945","šikmá střecha nezateplená","1921 až 1945-šikmá střecha nezateplená",4,0.24,0.16]
["šikmá střecha","1946 až 1960","šikmá střecha nezateplená","1946 až 1960-šikmá střecha nezateplená",4,0.24,0.16]
["šikmá střecha","1961 až 1980","šikmá střecha zateplená","1961 až 1980-šikmá střecha zateplená",{"$f":"1/(0.05/0.065+0.1*2)","v":1.0317460317460316},0.24,0.16]
["šikmá střecha","1981 až 1994","šikmá střecha zateplená","1981 až 1994-šikmá střecha zateplená",{"$f":"1/(0.08/0.065+0.1*2)","v":0.69892473118279563},0.24,0.16]
["šikmá střecha","1995 a dále","šikmá střecha realizace 1995-2002","1995 a dále-šikmá střecha realizace 1995-2002",{"$f":"1/3","v":0.33333333333333331},0.24,0.16]
["šikmá střecha","1995 a dále","šikmá střecha po roce 2002","1995 a dále-šikmá střecha po roce 2002",0.24,0.24,0.16]
["strop půdy","< 1920","stropy dřevěné trámové pod půdou s násypem škváry",{"$f":"CONCATENATE(B118,\"-\",C118)","v":"< 1920-stropy dřevěné trámové pod půdou s násypem škváry"},1.6,0.3,0.2]
["strop půdy","< 1920","stropy keramické do ocelových nosníků pod půdou s násypem škváry","< 1920-stropy keramické do ocelových nosníků pod půdou s násypem škváry",1,0.3,0.2]
["strop půdy","1921 až 1945","stropy dřevěné trámové pod půdou s násypem škváry","1921 až 1945-stropy dřevěné trámové pod půdou s násypem škváry",1.6,0.3,0.2]
["strop půdy","1921 až 1945","stropy keramické do ocelových nosníků pod půdou s násypem škváry","1921 až 1945-stropy keramické do ocelových nosníků pod půdou s násypem škváry",2.2000000000000002,0.3,0.2]
["strop půdy","1921 až 1945","stropy železobetonové pod půdou s násypem a potěrem","1921 až 1945-stropy železobetonové pod půdou s násypem a potěrem",1,0.3,0.2]
["strop půdy","1946 až 1960","stropy dřevěné trámové pod půdou s násypem škváry","1946 až 1960-stropy dřevěné trámové pod půdou s násypem škváry",1.6,0.3,0.2]
["strop půdy","1946 až 1960","stropy keramické do ocelových nosníků pod půdou s násypem škváry","1946 až 1960-stropy keramické do ocelových nosníků pod půdou s násypem škváry",2.2000000000000002,0.3,0.2]
["strop půdy","1946 až 1960","stropy železobetonové pod půdou s násypem a potěrem","1946 až 1960-stropy železobetonové pod půdou s násypem a potěrem",2.6,0.3,0.2]
["strop půdy","1946 až 1960","stropy železobetonové pod půdou s vrstvou lehkého betonu","1946 až 1960-stropy železobetonové pod půdou s vrstvou lehkého betonu",1,0.3,0.2]
["strop půdy","1961 až 1980","stropy dřevěné trámové pod půdou s násypem škváry",{"$f":"CONCATENATE(B127,\"-\",C127)","v":"1961 až 1980-stropy dřevěné trámové pod půdou s násypem škváry"},1.6,0.3,0.2]
["strop půdy","1961 až 1980","stropy keramické do ocelových nosníků pod půdou s násypem škváry","1961 až 1980-stropy keramické do ocelových nosníků pod půdou s násypem škváry",2.2000000000000002,0.3,0.2]
["strop půdy","1961 až 1980","stropy železobetonové pod půdou s násypem a potěrem","1961 až 1980-stropy železobetonové pod půdou s násypem a potěrem",2.6,0.3,0.2]
["strop půdy","1961 až 1980","stropy železobetonové pod půdou s vrstvou lehkého betonu","1961 až 1980-stropy železobetonové pod půdou s vrstvou lehkého betonu",2.6,0.3,0.2]
["strop půdy","1961 až 1980","stropy železobetonové panelové pod půdou s potěrem","1961 až 1980-stropy železobetonové panelové pod půdou s potěrem",2,0.3,0.2]
["strop půdy","1961 až 1980","stropy keramické z panelů a vložek pod půdou s potěrem","1961 až 1980-stropy keramické z panelů a vložek pod půdou s potěrem",1,0.3,0.2]
["strop půdy","1981 až 1994","stropy dřevěné trámové pod půdou s násypem škváry","1981 až 1994-stropy dřevěné trámové pod půdou s násypem škváry",1.6,0.3,0.2]
["strop půdy","1981 až 1994","stropy keramické do ocelových nosníků pod půdou s násypem škváry","1981 až 1994-stropy keramické do ocelových nosníků pod půdou s násypem škváry",2.2000000000000002,0.3,0.2]
["strop půdy","1981 až 1994","stropy železobetonové pod půdou s násypem a potěrem","1981 až 1994-stropy železobetonové pod půdou s násypem a potěrem",2.6,0.3,0.2]
["strop půdy","1981 až 1994","stropy železobetonové pod půdou s vrstvou lehkého betonu","1981 až 1994-stropy železobetonové pod půdou s vrstvou lehkého betonu",2.6,0.3,0.2]
["strop půdy","1981 až 1994","stropy železobetonové panelové pod půdou s potěrem","1981 až 1994-stropy železobetonové panelové pod půdou s potěrem",2,0.3,0.2]
["strop půdy","1981 až 1994","stropy keramické z panelů a vložek pod půdou s potěrem","1981 až 1994-stropy keramické z panelů a vložek pod půdou s potěrem",0.48,0.3,0.2]
["strop půdy","1995 a dále","strop pod půdou - 1995-2002 - přípustná","1995 a dále-strop pod půdou - 1995-2002 - přípustná",0.31,0.3,0.2]
["strop půdy","1995 a dále","strop pod půdou - 1995-2002 - požadovaná","1995 a dále-strop pod půdou - 1995-2002 - požadovaná",0.22,0.3,0.2]
["strop půdy","1995 a dále","strop pod půdou - po roce 2002","1995 a dále-strop pod půdou - po roce 2002",0.3,0.3,0.2]
["nevytápěný suterén","< 1920","stropy dřevěné trámové nad suterénem s dřev. podlahou","< 1920-stropy dřevěné trámové nad suterénem s dřev. podlahou",0.9,0.6,0.4]
["nevytápěný suterén","< 1920","stropy keramické do ocelových nosníků nad suterénem s dřev. podlahou","< 1920-stropy keramické do ocelových nosníků nad suterénem s dřev. podlahou",1.2,0.6,0.4]
["nevytápěný suterén","1921 až 1945","stropy dřevěné trámové nad suterénem s dřev. podlahou","1921 až 1945-stropy dřevěné trámové nad suterénem s dřev. podlahou",0.9,0.6,0.4]
["nevytápěný suterén","1921 až 1945","stropy keramické do ocelových nosníků nad suterénem s dřev. podlahou","1921 až 1945-stropy keramické do ocelových nosníků nad suterénem s dřev. podlahou",1.2,0.6,0.4]
["nevytápěný suterén","1921 až 1945","stropy železobetonové nad suterénem s dřev. podlahou","1921 až 1945-stropy železobetonové nad suterénem s dřev. podlahou",1.6,0.6,0.4]
["nevytápěný suterén","1946 až 1960","stropy dřevěné trámové nad suterénem s dřev. podlahou","1946 až 1960-stropy dřevěné trámové nad suterénem s dřev. podlahou",0.9,0.6,0.4]
["nevytápěný suterén","1946 až 1960","stropy keramické do ocelových nosníků nad suterénem s dřev. podlahou","1946 až 1960-stropy keramické do ocelových nosníků nad suterénem s dřev. podlahou",1.2,0.6,0.4]
["nevytápěný suterén","1946 až 1960","stropy železobetonové nad suterénem s dřev. podlahou","1946 až 1960-stropy železobetonové nad suterénem s dřev. podlahou",1.6,0.6,0.4]
["nevytápěný suterén","1946 až 1960","stropy železobetonové nad suterénem s podlahou s PVC","1946 až 1960-stropy železobetonové nad suterénem s podlahou s PVC",1.6,0.6,0.4]
["nevytápěný suterén","1946 až 1960","stropy železobetonové panelové nad suterénem s podlahou s PVC","1946 až 1960-stropy železobetonové panelové nad suterénem s podlahou s PVC",1.4,0.6,0.4]
["nevytápěný suterén","1946 až 1960","stropy keramické z panelů a vložek nad suterénem s podlahou s PVC","1946 až 1960-stropy keramické z panelů a vložek nad suterénem s podlahou s PVC",0.9,0.6,0.4]
["nevytápěný suterén","1961 až 1980","stropy keramické do ocelových nosníků nad suterénem s dřev. podlahou","1961 až 1980-stropy keramické do ocelových nosníků nad suterénem s dřev. podlahou",1.2,0.6,0.4]
["nevytápěný suterén","1961 až 1980","stropy železobetonové nad suterénem s dřev. podlahou","1961 až 1980-stropy železobetonové nad suterénem s dřev. podlahou",1.6,0.6,0.4]
["nevytápěný suterén","1961 až 1980","stropy železobetonové nad suterénem s podlahou s PVC","1961 až 1980-stropy železobetonové nad suterénem s podlahou s PVC",1.6,0.6,0.4]
["nevytápěný suterén","1961 až 1980","stropy železobetonové panelové nad suterénem s podlahou s PVC","1961 až 1980-stropy železobetonové panelové nad suterénem s podlahou s PVC",1.4,0.6,0.4]
["nevytápěný suterén","1961 až 1980","stropy keramické z panelů a vložek nad suterénem s podlahou s PVC","1961 až 1980-stropy keramické z panelů a vložek nad suterénem s podlahou s PVC",0.9,0.6,0.4]
["nevytápěný suterén","1981 až 1994","stropy keramické do ocelových nosníků nad suterénem s dřev. podlahou","1981 až 1994-stropy keramické do ocelových nosníků nad suterénem s dřev. podlahou",1.2,0.6,0.4]
["nevytápěný suterén","1981 až 1994","stropy železobetonové nad suterénem s dřev. podlahou","1981 až 1994-stropy železobetonové nad suterénem s dřev. podlahou",1.6,0.6,0.4]
["nevytápěný suterén","1981 až 1994","stropy železobetonové nad suterénem s podlahou s PVC","1981 až 1994-stropy železobetonové nad suterénem s podlahou s PVC",1.6,0.6,0.4]
["nevytápěný suterén","1981 až 1994","stropy železobetonové panelové nad suterénem s podlahou s PVC","1981 až 1994-stropy železobetonové panelové nad suterénem s podlahou s PVC",1,0.6,0.4]
["nevytápěný suterén","1981 až 1994","stropy keramické z panelů a vložek nad suterénem s podlahou s PVC","1981 až 1994-stropy keramické z panelů a vložek nad suterénem s podlahou s PVC",0.9,0.6,0.4]
["nevytápěný suterén","1995 a dále","podlaha nad nevytápěným prostorem do roku 2002","1995 a dále-podlaha nad nevytápěným prostorem do roku 2002",0.77,0.6,0.4]
["nevytápěný suterén","1995 a dále","podlaha s podlahovým vytápěním lehká","1995 a dále-podlaha s podlahovým vytápěním lehká",0.24,0.6,0.4]
["nevytápěný suterén","1995 a dále","podlaha s podlahovým vytápěním těžká","1995 a dále-podlaha s podlahovým vytápěním těžká",0.3,0.6,0.4]
["nevytápěný suterén","1995 a dále","strop nad nevytápěným prostorem po roce 2002",{"$f":"CONCATENATE(B166,\"-\",C166)","v":"1995 a dále-strop nad nevytápěným prostorem po roce 2002"},0.6,0.6,0.4]
["okna","< 1920","okna dřevěná špaletová se 2 skly","< 1920-okna dřevěná špaletová se 2 skly",2.35,1.5,1.2]
["okna","< 1920","okna dřevěná jednoduchá s 1 sklem","< 1920-okna dřevěná jednoduchá s 1 sklem",4.5,1.5,1.2]
["okna","< 1920","okna dřevěná zdvojená se 2 skly","< 1920-okna dřevěná zdvojená se 2 skly",2.4,1.5,1.2]
["okna","< 1920","okna kovová zdvojená se 2 skly","< 1920-okna kovová zdvojená se 2 skly",3.3,1.5,1.2]
["okna","< 1920","kopility","< 1920-kopility",2.7,1.5,1.2]
["okna","< 1920","sklobetonová stěna (luxfery)","< 1920-sklobetonová stěna (luxfery)",3.1,1.5,1.2]
["okna","< 1920","okna vyměněná před 2011","< 1920-okna vyměněná před 2011",1.7,1.5,1.2]
["okna","< 1920","okna vyměněná po roce 2011","< 1920-okna vyměněná po roce 2011",1.5,1.5,1.2]
["okna","1921 až 1945","okna dřevěná špaletová se 2 skly","1921 až 1945-okna dřevěná špaletová se 2 skly",2.35,1.5,1.2]
["okna","1921 až 1945","okna dřevěná jednoduchá s 1 sklem","1921 až 1945-okna dřevěná jednoduchá s 1 sklem",4.5,1.5,1.2]
["okna","1921 až 1945","okna dřevěná zdvojená se 2 skly","1921 až 1945-okna dřevěná zdvojená se 2 skly",2.4,1.5,1.2]
["okna","1921 až 1945","okna kovová zdvojená se 2 skly","1921 až 1945-okna kovová zdvojená se 2 skly",3.3,1.5,1.2]
["okna","1921 až 1945","kopility","1921 až 1945-kopility",2.7,1.5,1.2]
["okna","1921 až 1945","sklobetonová stěna (luxfery)","1921 až 1945-sklobetonová stěna (luxfery)",3.1,1.5,1.2]
["okna","1921 až 1945","okna vyměněná před 2011","1921 až 1945-okna vyměněná před 2011",1.7,1.5,1.2]
["okna","1921 až 1945","okna vyměněná po roce 2011","1921 až 1945-okna vyměněná po roce 2011",1.5,1.5,1.2]
["okna","1946 až 1960","okna dřevěná špaletová se 2 skly",{"$f":"CONCATENATE(B183,\"-\",C183)","v":"1946 až 1960-okna dřevěná špaletová se 2 skly"},2.35,1.5,1.2]
["okna","1946 až 1960","okna dřevěná jednoduchá s 1 sklem","1946 až 1960-okna dřevěná jednoduchá s 1 sklem",4.5,1.5,1.2]
["okna","1946 až 1960","okna dřevěná zdvojená se 2 skly","1946 až 1960-okna dřevěná zdvojená se 2 skly",2.4,1.5,1.2]
["okna","1946 až 1960","okna kovová zdvojená se 2 skly","1946 až 1960-okna kovová zdvojená se 2 skly",3.3,1.5,1.2]
["okna","1946 až 1960","kopility","1946 až 1960-kopility",2.7,1.5,1.2]
["okna","1946 až 1960","sklobetonová stěna (luxfery)","1946 až 1960-sklobetonová stěna (luxfery)",3.1,1.5,1.2]
["okna","1946 až 1960","okna vyměněná před 2011","1946 až 1960-okna vyměněná před 2011",1.7,1.5,1.2]
["okna","1946 až 1960","okna vyměněná po roce 2011","1946 až 1960-okna vyměněná po roce 2011",1.5,1.5,1.2]
["okna","1961 až 1980","okna dřevěná špaletová se 2 skly","1961 až 1980-okna dřevěná špaletová se 2 skly",2.35,1.5,1.2]
["okna","1961 až 1980","okna dřevěná jednoduchá s 1 sklem","1961 až 1980-okna dřevěná jednoduchá s 1 sklem",4.5,1.5,1.2]
["okna","1961 až 1980","okna dřevěná zdvojená se 2 skly","1961 až 1980-okna dřevěná zdvojená se 2 skly",2.4,1.5,1.2]
["okna","1961 až 1980","okna kovová zdvojená se 2 skly","1961 až 1980-okna kovová zdvojená se 2 skly",3.3,1.5,1.2]
["okna","1961 až 1980","kopility",{"$f":"CONCATENATE(B195,\"-\",C195)","v":"1961 až 1980-kopility"},2.7,1.5,1.2]
["okna","1961 až 1980","sklobetonová stěna (luxfery)",{"$f":"CONCATENATE(B196,\"-\",C196)","v":"1961 až 1980-sklobetonová stěna (luxfery)"},3.1,1.5,1.2]
["okna","1961 až 1980","okna vyměněná před 2011",{"$f":"CONCATENATE(B197,\"-\",C197)","v":"1961 až 1980-okna vyměněná před 2011"},1.7,1.5,1.2]
["okna","1961 až 1980","okna vyměněná po roce 2011",{"$f":"CONCATENATE(B198,\"-\",C198)","v":"1961 až 1980-okna vyměněná po roce 2011"},1.5,1.5,1.2]
["okna","1981 až 1994","okna dřevěná zdvojená se 2 skly","1981 až 1994-okna dřevěná zdvojená se 2 skly",2.4,1.5,1.2]
["okna","1981 až 1994","okna dřevěná jednoduchá s izolačním dvojsklem","1981 až 1994-okna dřevěná jednoduchá s izolačním dvojsklem",2.5,1.5,1.2]
["okna","1981 až 1994","okna kovová zdvojená se 2 skly",{"$f":"CONCATENATE(B201,\"-\",C201)","v":"1981 až 1994-okna kovová zdvojená se 2 skly"},2.8,1.5,1.2]
["okna","1981 až 1994","okna kovová jednoduchá s izolačním dvojsklem","1981 až 1994-okna kovová jednoduchá s izolačním dvojsklem",3.2,1.5,1.2]
["okna","1981 až 1994","kopility","1981 až 1994-kopility",2.7,1.5,1.2]
["okna","1981 až 1994","sklobetonová stěna (luxfery)","1981 až 1994-sklobetonová stěna (luxfery)",3.1,1.5,1.2]
["okna","1981 až 1994","komůrkový polykarbonát",{"$f":"CONCATENATE(B205,\"-\",C205)","v":"1981 až 1994-komůrkový polykarbonát"},3.6,1.5,1.2]
["okna","1981 až 1994","okna nová po roce 2002",{"$f":"CONCATENATE(B206,\"-\",C206)","v":"1981 až 1994-okna nová po roce 2002"},1.7,1.5,1.2]
["okna","1981 až 1994","okna nová po roce 2011",{"$f":"CONCATENATE(B207,\"-\",C207)","v":"1981 až 1994-okna nová po roce 2011"},1.5,1.5,1.2]
["okna","1995 a dále","okna do roku 2002","1995 a dále-okna do roku 2002",1.8,1.5,1.2]
["okna","1995 a dále","okna nová po roce 2002",{"$f":"CONCATENATE(B209,\"-\",C209)","v":"1995 a dále-okna nová po roce 2002"},1.7,1.5,1.2]
["okna","1995 a dále","okna nová po roce 2011",{"$f":"CONCATENATE(B210,\"-\",C210)","v":"1995 a dále-okna nová po roce 2011"},1.5,1.5,1.2]
["okna","1995 a dále","okna repasovaná ","1995 a dále-okna repasovaná ",2,1.5,1.2]
["okna","1995 a dále","komůrkový polykarbonát tl. 16 mm",{"$f":"CONCATENATE(B212,\"-\",C212)","v":"1995 a dále-komůrkový polykarbonát tl. 16 mm"},2,1.5,1.2]
["okna","1995 a dále","komůrkový polykarbonát tl. 25 mm",{"$f":"CONCATENATE(B213,\"-\",C213)","v":"1995 a dále-komůrkový polykarbonát tl. 25 mm"},1.5,1.5,1.2]
["okna","1995 a dále","komůrkový polykarbonát tl. 32 mm",{"$f":"CONCATENATE(B214,\"-\",C214)","v":"1995 a dále-komůrkový polykarbonát tl. 32 mm"},1.3,1.5,1.2]
["dveře-vrata","< 1920","dveře dřevěné prosklené s 1 sklem","< 1920-dveře dřevěné prosklené s 1 sklem",4,1.7,1.2]
["dveře-vrata","< 1920","dveře dřevěné prosklené iz. dvojsklem","< 1920-dveře dřevěné prosklené iz. dvojsklem",3,1.7,1.2]
["dveře-vrata","< 1920","dveře dřevěné plné","< 1920-dveře dřevěné plné",2.2999999999999998,1.7,1.2]
["dveře-vrata","< 1920","dveře kovové prosklené s 1 sklem","< 1920-dveře kovové prosklené s 1 sklem",5.65,1.7,1.2]
["dveře-vrata","< 1920","dveře kovové prosklené iz. dvojsklem","< 1920-dveře kovové prosklené iz. dvojsklem",5,1.7,1.2]
["dveře-vrata","< 1920","dveře/vrata kovová plná","< 1920-dveře/vrata kovová plná",5.65,1.7,1.2]
["dveře-vrata","< 1920","vrata sekční tepelně izolační","< 1920-vrata sekční tepelně izolační",2,1.7,1.2]
["dveře-vrata","1921 až 1945","dveře dřevěné prosklené s 1 sklem","1921 až 1945-dveře dřevěné prosklené s 1 sklem",4,1.7,1.2]
["dveře-vrata","1921 až 1945","dveře dřevěné prosklené iz. dvojsklem","1921 až 1945-dveře dřevěné prosklené iz. dvojsklem",3,1.7,1.2]
["dveře-vrata","1921 až 1945","dveře dřevěné plné","1921 až 1945-dveře dřevěné plné",2.2999999999999998,1.7,1.2]
["dveře-vrata","1921 až 1945","dveře kovové prosklené s 1 sklem","1921 až 1945-dveře kovové prosklené s 1 sklem",5.65,1.7,1.2]
["dveře-vrata","1921 až 1945","dveře kovové prosklené iz. dvojsklem","1921 až 1945-dveře kovové prosklené iz. dvojsklem",5,1.7,1.2]
["dveře-vrata","1921 až 1945","dveře/vrata kovová plná","1921 až 1945-dveře/vrata kovová plná",5.65,1.7,1.2]
["dveře-vrata","1921 až 1945","vrata sekční tepelně izolační","1921 až 1945-vrata sekční tepelně izolační",2,1.7,1.2]
["dveře-vrata","1946 až 1960","dveře dřevěné prosklené s 1 sklem","1946 až 1960-dveře dřevěné prosklené s 1 sklem",4,1.7,1.2]
["dveře-vrata","1946 až 1960","dveře dřevěné prosklené iz. dvojsklem","1946 až 1960-dveře dřevěné prosklené iz. dvojsklem",3,1.7,1.2]
["dveře-vrata","1946 až 1960","dveře dřevěné plné","1946 až 1960-dveře dřevěné plné",2.2999999999999998,1.7,1.2]
["dveře-vrata","1946 až 1960","dveře kovové prosklené s 1 sklem","1946 až 1960-dveře kovové prosklené s 1 sklem",5.65,1.7,1.2]
["dveře-vrata","1946 až 1960","dveře kovové prosklené iz. dvojsklem","1946 až 1960-dveře kovové prosklené iz. dvojsklem",5,1.7,1.2]
["dveře-vrata","1946 až 1960","dveře/vrata kovová plná","1946 až 1960-dveře/vrata kovová plná",5.65,1.7,1.2]
["dveře-vrata","1946 až 1960","vrata sekční tepelně izolační","1946 až 1960-vrata sekční tepelně izolační",2,1.7,1.2]
["dveře-vrata","1961 až 1980","dveře dřevěné prosklené s 1 sklem",{"$f":"CONCATENATE(B236,\"-\",C236)","v":"1961 až 1980-dveře dřevěné prosklené s 1 sklem"},4,1.7,1.2]
["dveře-vrata","1961 až 1980","dveře dřevěné prosklené iz. dvojsklem","1961 až 1980-dveře dřevěné prosklené iz. dvojsklem",2.2999999999999998,1.7,1.2]
["dveře-vrata","1961 až 1980","dveře dřevěné plné","1961 až 1980-dveře dřevěné plné",4,1.7,1.2]
["dveře-vrata","1961 až 1980","dveře kovové prosklené s 1 sklem","1961 až 1980-dveře kovové prosklené s 1 sklem",5.65,1.7,1.2]
["dveře-vrata","1961 až 1980","dveře kovové prosklené iz. dvojsklem","1961 až 1980-dveře kovové prosklené iz. dvojsklem",3.5,1.7,1.2]
["dveře-vrata","1961 až 1980","dveře/vrata kovová plná","1961 až 1980-dveře/vrata kovová plná",5.65,1.7,1.2]
["dveře-vrata","1961 až 1980","vrata sekční tepelně izolační","1961 až 1980-vrata sekční tepelně izolační",2,1.7,1.2]
["dveře-vrata","1981 až 1994","dveře dřevěné prosklené s 1 sklem","1981 až 1994-dveře dřevěné prosklené s 1 sklem",4,1.7,1.2]
["dveře-vrata","1981 až 1994","dveře dřevěné prosklené iz. dvojsklem",{"$f":"CONCATENATE(B244,\"-\",C244)","v":"1981 až 1994-dveře dřevěné prosklené iz. dvojsklem"},3,1.7,1.2]
["dveře-vrata","1981 až 1994","dveře dřevěné plné","1981 až 1994-dveře dřevěné plné",2.2999999999999998,1.7,1.2]
["dveře-vrata","1981 až 1994","dveře kovové prosklené s 1 sklem","1981 až 1994-dveře kovové prosklené s 1 sklem",5.65,1.7,1.2]
["dveře-vrata","1981 až 1994","dveře kovové prosklené iz. dvojsklem",{"$f":"CONCATENATE(B247,\"-\",C247)","v":"1981 až 1994-dveře kovové prosklené iz. dvojsklem"},3.5,1.7,1.2]
["dveře-vrata","1981 až 1994","dveře/vrata kovová plná",{"$f":"CONCATENATE(B248,\"-\",C248)","v":"1981 až 1994-dveře/vrata kovová plná"},5.65,1.7,1.2]
["dveře-vrata","1981 až 1994","vrata sekční tepelně izolační","1981 až 1994-vrata sekční tepelně izolační",2,1.7,1.2]
["dveře-vrata","1995 a dále","dveře dřevěné prosklené s 1 sklem",{"$f":"CONCATENATE(B250,\"-\",C250)","v":"1995 a dále-dveře dřevěné prosklené s 1 sklem"},4,1.7,1.2]
["dveře-vrata","1995 a dále","dveře dřevěné prosklené iz. dvojsklem","1995 a dále-dveře dřevěné prosklené iz. dvojsklem",3,1.7,1.2]
["dveře-vrata","1995 a dále","dveře dřevěné plné","1995 a dále-dveře dřevěné plné",2.2999999999999998,1.7,1.2]
["dveře-vrata","1995 a dále","dveře kovové prosklené s 1 sklem","1995 a dále-dveře kovové prosklené s 1 sklem",5.65,1.7,1.2]
["dveře-vrata","1995 a dále","dveře kovové prosklené iz. dvojsklem","1995 a dále-dveře kovové prosklené iz. dvojsklem",3.5,1.7,1.2]
["dveře-vrata","1995 a dále","dveře/vrata kovová plná","1995 a dále-dveře/vrata kovová plná",5.65,1.7,1.2]
["dveře-vrata","1995 a dále","vrata sekční tepelně izolační","1995 a dále-vrata sekční tepelně izolační",2,1.7,1.2]
["střešní okna-světlíky","< 1920","střešní okna dřevěná jednoduchá s 1 sklem","< 1920-střešní okna dřevěná jednoduchá s 1 sklem",4.5,1.5,1.1000000000000001]
["střešní okna-světlíky","< 1920","střešní okna dřevěná jednoduchá s dvojsklem","< 1920-střešní okna dřevěná jednoduchá s dvojsklem",2,1.5,1.1000000000000001]
["střešní okna-světlíky","< 1920","střešní svělíky kovové s 1 sklem",{"$f":"CONCATENATE(B259,\"-\",C259)","v":"< 1920-střešní svělíky kovové s 1 sklem"},5.65,1.5,1.1000000000000001]
["střešní okna-světlíky","< 1920","střešní okna nová do roku 2007",{"$f":"CONCATENATE(B260,\"-\",C260)","v":"< 1920-střešní okna nová do roku 2007"},1.8,1.5,1.1000000000000001]
["střešní okna-světlíky","< 1920","střešní okna nová po roce 2007",{"$f":"CONCATENATE(B261,\"-\",C261)","v":"< 1920-střešní okna nová po roce 2007"},1.5,1.5,1.1000000000000001]
["střešní okna-světlíky","< 1920","střešní světlíky polykarbonát",{"$f":"CONCATENATE(B262,\"-\",C262)","v":"< 1920-střešní světlíky polykarbonát"},2.4,1.5,1.1000000000000001]
["střešní okna-světlíky","1921 až 1945","střešní okna dřevěná jednoduchá s 1 sklem","1921 až 1945-střešní okna dřevěná jednoduchá s 1 sklem",4.5,1.5,1.1000000000000001]
["střešní okna-světlíky","1921 až 1945","střešní okna dřevěná jednoduchá s dvojsklem","1921 až 1945-střešní okna dřevěná jednoduchá s dvojsklem",2,1.5,1.1000000000000001]
["střešní okna-světlíky","1921 až 1945","střešní svělíky kovové s 1 sklem","1921 až 1945-střešní svělíky kovové s 1 sklem",5.65,1.5,1.1000000000000001]
["střešní okna-světlíky","1921 až 1945","střešní okna nová do roku 2007","1921 až 1945-střešní okna nová do roku 2007",1.8,1.5,1.1000000000000001]
["střešní okna-světlíky","1921 až 1945","střešní okna nová po roce 2007","1921 až 1945-střešní okna nová po roce 2007",1.5,1.5,1.1000000000000001]
["střešní okna-světlíky","1921 až 1945","střešní světlíky polykarbonát","1921 až 1945-střešní světlíky polykarbonát",2.4,1.5,1.1000000000000001]
["střešní okna-světlíky","1946 až 1960","střešní okna dřevěná jednoduchá s 1 sklem","1946 až 1960-střešní okna dřevěná jednoduchá s 1 sklem",4.5,1.5,1.1000000000000001]
["střešní okna-světlíky","1946 až 1960","střešní okna dřevěná jednoduchá s dvojsklem","1946 až 1960-střešní okna dřevěná jednoduchá s dvojsklem",2,1.5,1.1000000000000001]
["střešní okna-světlíky","1946 až 1960","střešní svělíky kovové s 1 sklem",{"$f":"CONCATENATE(B271,\"-\",C271)","v":"1946 až 1960-střešní svělíky kovové s 1 sklem"},5.65,1.5,1.1000000000000001]
["střešní okna-světlíky","1946 až 1960","střešní okna nová do roku 2007",{"$f":"CONCATENATE(B272,\"-\",C272)","v":"1946 až 1960-střešní okna nová do roku 2007"},1.8,1.5,1.1000000000000001]
["střešní okna-světlíky","1946 až 1960","střešní okna nová po roce 2007",{"$f":"CONCATENATE(B273,\"-\",C273)","v":"1946 až 1960-střešní okna nová po roce 2007"},1.5,1.5,1.1000000000000001]
["střešní okna-světlíky","1946 až 1960","střešní světlíky polykarbonát",{"$f":"CONCATENATE(B274,\"-\",C274)","v":"1946 až 1960-střešní světlíky polykarbonát"},2.4,1.5,1.1000000000000001]
["střešní okna-světlíky","1961 až 1980","střešní okna dřevěná jednoduchá s 1 sklem","1961 až 1980-střešní okna dřevěná jednoduchá s 1 sklem",4.5,1.5,1.1000000000000001]
["střešní okna-světlíky","1961 až 1980","střešní okna dřevěná jednoduchá s dvojsklem","1961 až 1980-střešní okna dřevěná jednoduchá s dvojsklem",2,1.5,1.1000000000000001]
["střešní okna-světlíky","1961 až 1980","střešní svělíky kovové s 1 sklem","1961 až 1980-střešní svělíky kovové s 1 sklem",5.65,1.5,1.1000000000000001]
["střešní okna-světlíky","1961 až 1980","střešní okna nová do roku 2007","1961 až 1980-střešní okna nová do roku 2007",1.8,1.5,1.1000000000000001]
["střešní okna-světlíky","1961 až 1980","střešní okna nová po roce 2007","1961 až 1980-střešní okna nová po roce 2007",1.5,1.5,1.1000000000000001]
["střešní okna-světlíky","1961 až 1980","střešní světlíky polykarbonát","1961 až 1980-střešní světlíky polykarbonát",2.4,1.5,1.1000000000000001]
["střešní okna-světlíky","1981 až 1994","střešní okna dřevěná jednoduchá s 1 sklem","1981 až 1994-střešní okna dřevěná jednoduchá s 1 sklem",4.5,1.5,1.1000000000000001]
["střešní okna-světlíky","1981 až 1994","střešní okna dřevěná jednoduchá s dvojsklem","1981 až 1994-střešní okna dřevěná jednoduchá s dvojsklem",2,1.5,1.1000000000000001]
["střešní okna-světlíky","1981 až 1994","střešní svělíky kovové s 1 sklem",{"$f":"CONCATENATE(B283,\"-\",C283)","v":"1981 až 1994-střešní svělíky kovové s 1 sklem"},5.65,1.5,1.1000000000000001]
["střešní okna-světlíky","1981 až 1994","střešní okna nová do roku 2007",{"$f":"CONCATENATE(B284,\"-\",C284)","v":"1981 až 1994-střešní okna nová do roku 2007"},1.8,1.5,1.1000000000000001]
["střešní okna-světlíky","1981 až 1994","střešní okna nová po roce 2007",{"$f":"CONCATENATE(B285,\"-\",C285)","v":"1981 až 1994-střešní okna nová po roce 2007"},1.5,1.5,1.1000000000000001]
["střešní okna-světlíky","1981 až 1994","střešní světlíky polykarbonát",{"$f":"CONCATENATE(B286,\"-\",C286)","v":"1981 až 1994-střešní světlíky polykarbonát"},2.4,1.5,1.1000000000000001]
["střešní okna-světlíky","1995 a dále","střešní okna nová do roku 2007","1995 a dále-střešní okna nová do roku 2007",1.8,1.5,1.1000000000000001]
["střešní okna-světlíky","1995 a dále","střešní okna nová po roce 2007",{"$f":"CONCATENATE(B288,\"-\",C288)","v":"1995 a dále-střešní okna nová po roce 2007"},1.5,1.5,1.1000000000000001]
["střešní okna-světlíky","1995 a dále","střešní světlíky polykarbonát","1995 a dále-střešní světlíky polykarbonát",2.4,1.5,1.1000000000000001]
["podlaha na zemině","< 1920","podlaha na zemině nezateplená","< 1920-podlaha na zemině nezateplená",4,0.45,0.3]
["podlaha na zemině","< 1920","podlaha na zemině zateplená","< 1920-podlaha na zemině zateplená",{"$f":"1/1.15","v":0.86956521739130443},0.45,0.3]
["podlaha na zemině","1921 až 1945","podlaha na zemině nezateplená","1921 až 1945-podlaha na zemině nezateplená",4,0.45,0.3]
["podlaha na zemině","1921 až 1945","podlaha na zemině zateplená","1921 až 1945-podlaha na zemině zateplená",{"$f":"1/1.15","v":0.86956521739130443},0.45,0.3]
["podlaha na zemině","1946 až 1960","podlaha na zemině nezateplená",{"$f":"CONCATENATE(B294,\"-\",C294)","v":"1946 až 1960-podlaha na zemině nezateplená"},4,0.45,0.3]
["podlaha na zemině","1946 až 1960","podlaha na zemině zateplená","1946 až 1960-podlaha na zemině zateplená",{"$f":"1/1.15","v":0.86956521739130443},0.45,0.3]
["podlaha na zemině","1961 až 1980","podlaha na zemině nezateplená","1961 až 1980-podlaha na zemině nezateplená",4,0.45,0.3]
["podlaha na zemině","1961 až 1980","podlaha na zemině zateplená","1961 až 1980-podlaha na zemině zateplená",{"$f":"1/1.15","v":0.86956521739130443},0.45,0.3]
["podlaha na zemině","1981 až 1994","podlaha na zemině nezateplená","1981 až 1994-podlaha na zemině nezateplená",4,0.45,0.3]
["podlaha na zemině","1981 až 1994","podlaha na zemině zateplená","1981 až 1994-podlaha na zemině zateplená",1,0.45,0.3]
["podlaha na zemině","1995 a dále","podlaha na zemině nezateplená","1995 a dále-podlaha na zemině nezateplená",4,0.45,0.3]
["podlaha na zemině","1995 a dále","podlaha na zemině zateplená","1995 a dále-podlaha na zemině zateplená",{"$f":"1/1.15","v":0.86956521739130443},0.45,0.3]
["podlaha na zemině","1995 a dále","podlaha na zemině po roce 2002 zateplená","1995 a dále-podlaha na zemině po roce 2002 zateplená",0.6,0.45,0.3]
["podlaha na zemině","1995 a dále","podlaha na zemině po roce 2007 zateplená","1995 a dále-podlaha na zemině po roce 2007 zateplená",0.45,0.45,0.3]
["podlaha na zemině","1995 a dále","podlaha na zemině po roce 2007 zateplená více","1995 a dále-podlaha na zemině po roce 2007 zateplená více",0.3,0.45,0.3]

{"sheet":"budova_opatření","index":7,"n_rows":59,"n_cols":4,"rows_kept":59,"cut":false,"hidden":true,"merged":[]}
[]
[null,"opatření","Lambda","Delta U"]
["stěny","zateplení kontaktní systém, MV",4.2000000000000003E-2,0.02]
["stěny","zateplení kontaktní systém,  EPS",0.04,0.02]
["stěny","zateplení kontaktní systém,  šedý polystyren",3.4000000000000002E-2,0.02]
["stěny","zateplení kontaktní systém,  XPS",3.5000000000000003E-2,0.02]
["stěny","zateplení kontaktní systém,  fenolová pěna",2.3E-2,0.02]
["stěny","zateplení, minerální tepelně-izolační desky (Multipor)",4.4999999999999998E-2,0.02]
["stěny","zateplení PUR panel",2.3E-2,0.02]
["stěny","zateplení panel z MV",4.2000000000000003E-2,0.02]
["stěny","zateplení skládaný plášť s obkladem, izolace MV",4.2000000000000003E-2,0.05]
["stěny","zateplení skládaný plášť s obkladem, izolace EPS",3.9E-2,0.05]
["stěny","zateplení skládaný plášť s obkladem, izolace PUR",2.3E-2,0.02]
["plochá střecha","zateplení ploché střechy, MV",0.04,0.02]
["plochá střecha","zateplení ploché střechy, EPS",3.9E-2,0.02]
["plochá střecha","zateplení ploché střechy, XPS",3.4000000000000002E-2,0.02]
["plochá střecha","zateplení ploché střechy, polyuretan",2.5000000000000001E-2,0.02]
["plochá střecha","zateplení ploché střechy, polyuretan - minerální rouno",0.03,0.02]
["plochá střecha","zateplení ploché střechy, pěnové sklo",4.1000000000000002E-2,0.02]
["šikmá střecha","zateplení šikmé střechy mezi a pod krokve, MV ",0.05,0]
["šikmá střecha","zateplení šikmé střechy mezi a pod krokve, celulózovou izolací ",0.05,0]
["šikmá střecha","zateplení šikmé střechy nad krokve, polyuretan",2.5000000000000001E-2,0.02]
["šikmá střecha","zateplení šikmé střechy nad krokve, polystyren",3.5000000000000003E-2,0.02]
["strop půdy","zateplení stropu půdy MV - volně ložená",0.04,0.02]
["strop půdy","zateplení stropu půdy EPS - volně ložený",3.9E-2,0.02]
["strop půdy","zateplení stropu půdy MV - pochozí úprava",0.05,0.02]
["strop půdy","zateplení stropu půdy EPS -  pochozí úprava",4.5999999999999999E-2,0.02]
["nevytápěný suterén","zateplení stropu, MV",0.04,0.05]
["nevytápěný suterén","zateplení stropu,  EPS",3.9E-2,0.05]
["nevytápěný suterén","zateplení stropu, XPS",3.4000000000000002E-2,0.05]
["nevytápěný suterén","zateplení stropu, polyuretan",2.5000000000000001E-2,0.05]
["nevytápěný suterén","zateplení stropu, šedý polystyren",3.4000000000000002E-2,0.05]
["nevytápěný suterén","zateplení stropu celulózovou izolací ",3.9E-2,0.05]
["nevytápěný suterén","zateplení, minerální tepelně-izolační desky (Multipor)",4.4999999999999998E-2,0.05]
["podlaha na zemině","zateplení v konstrukci podlahy, EPS",4.3999999999999997E-2,0.02]
["podlaha na zemině","zateplení v konstrukci podlahy, XPS",3.3000000000000002E-2,0.02]
["podlaha na zemině","zateplení v konstrukci podlahy, šedý polystyren",3.2000000000000001E-2,0.02]
["podlaha na zemině","zateplení v konstrukci podlahy, pěnové sklo",4.8000000000000001E-2,0.02]
["okna","plastová s izolačním dvojsklem"]
["okna","dřevěná s izolačním dvojsklem"]
["okna","kovová s přerušeným tepelným mostem s izolačním dvojsklem"]
["okna","dřevo-hliníková s izolačním dvojsklem"]
["okna","plast-hliníková s izolačním dvojsklem"]
["okna","dřevěná s izolačním trojsklem"]
["okna","plastová s izolačním trojsklem"]
["okna","kovová s přerušeným tepelným mostem s izolačním trojsklem"]
["okna","dřevo-hliníková s izolačním trojsklem"]
["okna","plast-hliníková s izolačním trojsklem"]
["dveře-vrata","dveře dřevěné"]
["dveře-vrata","dveře kovové"]
["dveře-vrata","dveře plastové"]
["dveře-vrata","vrata tepelně izolační"]
["střešní okna-světlíky","plastová s izolačním dvojsklem"]
["střešní okna-světlíky","dřevěná s izolačním dvojsklem"]
["střešní okna-světlíky","kovová s přerušeným tepelným mostem s izolačním dvojsklem"]
["střešní okna-světlíky","plastová s izolačním trojsklem"]
["střešní okna-světlíky","dřevěná s izolačním trojsklem"]
["střešní okna-světlíky","kovová s přerušeným tepelným mostem s izolačním trojsklem"]
["střešní okna-světlíky","střešní světlíky"]

{"sheet":"opatření k realizaci","index":8,"n_rows":34,"n_cols":33,"rows_kept":34,"cut":false,"hidden":true,"merged":[]}
[null,null,null,null,"pomocné pro zobrazení",null,null,null,null,null,"kotel","kotel","kotel","kotel","kotel","zateplení","zateplení","zateplení","zateplení","zateplení","zateplení","zateplení","zateplení","zateplení","zateplení","zateplení","zateplení","zateplení","zateplení","zateplení","osvětlení","osvětlení","osvětlení"]
[null,"List","Opatření","ano/ne",null,0,null,null,"Popis","Vyhodnocení","typ zdroje","výkon kW","účinnost","vyhodnocení","m2 solárního systému","Typ zateplení","Tloušťka tepelné izolace [mm]","Plocha zateplované konstrukce [m2]","Součinitel prostupu tepla konstrukce z PENB [W/(m2.K)]","Součinitel prostupu tepla výpočet z kalkulačky  [W/(m2.K)]","Požadavek programu na U [W/(m2.K)]","Vyhodnocení plnění požadavku","Typ oken"," Plocha vyměňovaných výplní [m2]","Součinitel prostupu tepla nových výplní [W/(m2.K)]","Požadavek programu na U [W/(m2.K)]","Vyhodnocení plnění požadavku","účinnost systému nuceného větrání v %","větraný objem v m3/h","vyhodnocení úč.","počet","celkový příkon vyměňových zdrojů","průměrný příkon 1 zdroje"]
[1,"Kotel","Výměna zdroje",{"$f":"IF(ISBLANK(Kotel!E16),\"ne\",\"ano\")","v":"ne"},{"$f":"IF(D3=\"ano\",1,0)","v":0},{"$f":"F2+E3","v":0},{"$f":"IF(F2=F3,0,F3)","v":0},{"$f":"IFERROR(MATCH($A3,$G$3:$G$15,0),0)","v":0},{"$f":"IF(K3=\"tepelné čerpadlo\",CONCATENATE(K3,\", výkon: \",L3,\" kW\",\" COP: \",M3),CONCATENATE(K3,\", výkon: \",L3,\" kW\",\" účinnost: \",M3*100,\"%\"))","v":{"$error":"#N/A"}},{"$f":"IF(OR(AND(D3=\"ano\",K3=0),N3=\"Nejsou vyplněna všechna data\"),\"Doplňte údaje na listu kotel\",IF(N3=\"Nově instalovaný zdroj splňuje požadavek na účinnost dle vyhl. č. 78/2013 Sb.\",\"Opatření splňuje požadavek programu\",\"Opatření NESPLŇUJE požadavek programu\"))","v":"Opatření splňuje požadavek programu"},{"$f":"Kotel!E13","v":0},{"$f":"Kotel!E16","v":0},{"$f":"parametry!G76","v":{"$error":"#N/A"}},{"$f":"Kotel!C26","v":"Nově instalovaný zdroj splňuje požadavek na účinnost dle vyhl. č. 78/2013 Sb."}]
[2,"Zateplení","Zateplení obvodového pláště",{"$f":"IF(parametry!B110=TRUE,Zateplení!F58,\"ne\")","v":"ne"},{"$f":"IF(D4=\"ano\",1,0)","v":0},{"$f":"F3+E4","v":0},{"$f":"IF(F3=F4,0,F4)","v":0},0,{"$f":"CONCATENATE(P4,\", tloušťka TI: \",Q4,\" mm, plocha zateplované konstrukce: \",R4,\" m2\")","v":"0, tloušťka TI: 0 mm, plocha zateplované konstrukce: 0 m2"},{"$f":"IF(V4=\"Konstrukce nesplňuje požadavky programu\",\"Opatření NESPLŇUJE požadavek programu\",\"Opatření splňuje požadavek programu\")","v":"Opatření splňuje požadavek programu"},null,null,null,null,null,{"$f":"Zateplení!F59","v":0},{"$f":"Zateplení!F60","v":0},{"$f":"Zateplení!F61","v":0},{"$f":"Zateplení!F62","v":0},{"$f":"Zateplení!F63","v":""},{"$f":"Zateplení!F64","v":""},{"$f":"Zateplení!F65","v":""}]
[3,"Zateplení","Zateplení střechy",{"$f":"IF(parametry!B110=TRUE,Zateplení!F66,\"ne\")","v":"ne"},0,0,0,0,{"$f":"CONCATENATE(P5,\", tloušťka TI: \",Q5,\" mm, plocha zateplované konstrukce: \",R5,\" m2\")","v":"0, tloušťka TI: 0 mm, plocha zateplované konstrukce: 0 m2"},{"$f":"IF(V5=\"Konstrukce nesplňuje požadavky programu\",\"Opatření NESPLŇUJE požadavek programu\",\"Opatření splňuje požadavek programu\")","v":"Opatření splňuje požadavek programu"},null,null,null,null,null,{"$f":"Zateplení!F67","v":0},{"$f":"Zateplení!F68","v":0},{"$f":"Zateplení!F69","v":0},{"$f":"Zateplení!F70","v":0},{"$f":"Zateplení!F71","v":""},{"$f":"Zateplení!F72","v":""},{"$f":"Zateplení!F73","v":""}]
[4,"Zateplení","Zateplení podlahy",{"$f":"IF(parametry!B110=TRUE,Zateplení!F74,\"ne\")","v":"ne"},0,0,0,0,{"$f":"CONCATENATE(P6,\", tloušťka TI: \",Q6,\" mm, plocha zateplované konstrukce: \",R6,\" m2\")","v":"0, tloušťka TI: 0 mm, plocha zateplované konstrukce: 0 m2"},{"$f":"IF(V6=\"Konstrukce nesplňuje požadavky programu\",\"Opatření NESPLŇUJE požadavek programu\",\"Opatření splňuje požadavek programu\")","v":"Opatření splňuje požadavek programu"},null,null,null,null,null,{"$f":"Zateplení!F75","v":0},{"$f":"Zateplení!F76","v":0},{"$f":"Zateplení!F77","v":0},{"$f":"Zateplení!F70","v":0},{"$f":"Zateplení!F71","v":""},{"$f":"Zateplení!F72","v":""},{"$f":"Zateplení!F81","v":""}]
[5,"Zateplení","Výměna oken, výplní ve stěně ",{"$f":"IF(parametry!B110=TRUE,Zateplení!F82,\"ne\")","v":"ne"},0,0,0,0,{"$f":"CONCATENATE(,W7,\", plocha vyměňovaných výplní: \",X7,\" m2, součinitel prostupu tepla: \",Y7,\" W/(m2.K)\")","v":"0, plocha vyměňovaných výplní: 0 m2, součinitel prostupu tepla: 0 W/(m2.K)"},{"$f":"IF(AA7=\"Konstrukce nesplňuje požadavky programu\",\"Opatření NESPLŇUJE požadavek programu\",\"Opatření splňuje požadavek programu\")","v":"Opatření splňuje požadavek programu"},null,null,null,null,null,null,null,null,null,null,null,null,{"$f":"Zateplení!F83","v":0},{"$f":"Zateplení!F84","v":0},{"$f":"Zateplení!F85","v":0},{"$f":"Zateplení!F86","v":""},{"$f":"Zateplení!F87","v":""}]
[6,"Zateplení","Výměna dveří, vrat",{"$f":"IF(parametry!B110=TRUE,Zateplení!F88,\"ne\")","v":"ne"},0,0,0,0,{"$f":"CONCATENATE(,W8,\", plocha vyměňovaných výplní: \",X8,\" m2, součinitel prostupu tepla: \",Y8,\" W/(m2.K)\")","v":"0, plocha vyměňovaných výplní: 0 m2, součinitel prostupu tepla: 0 W/(m2.K)"},{"$f":"IF(AA8=\"Konstrukce nesplňuje požadavky programu\",\"Opatření NESPLŇUJE požadavek programu\",\"Opatření splňuje požadavek programu\")","v":"Opatření splňuje požadavek programu"},null,null,null,null,null,null,null,null,null,null,null,null,{"$f":"Zateplení!F89","v":0},{"$f":"Zateplení!F90","v":0},{"$f":"Zateplení!F91","v":0},{"$f":"Zateplení!F92","v":""},{"$f":"Zateplení!F93","v":""}]
[7,"Zateplení","Výměna střešních oken, světlíků",{"$f":"IF(parametry!B110=TRUE,Zateplení!F94,\"ne\")","v":"ne"},0,0,0,0,{"$f":"CONCATENATE(,W9,\", plocha vyměňovaných výplní: \",X9,\" m2, součinitel prostupu tepla: \",Y9,\" W/(m2.K)\")","v":"0, plocha vyměňovaných výplní: 0 m2, součinitel prostupu tepla: 0 W/(m2.K)"},{"$f":"IF(AA9=\"Konstrukce nesplňuje požadavky programu\",\"Opatření NESPLŇUJE požadavek programu\",\"Opatření splňuje požadavek programu\")","v":"Opatření splňuje požadavek programu"},null,null,null,null,null,null,null,null,null,null,null,null,{"$f":"Zateplení!F95","v":0},{"$f":"Zateplení!F96","v":0},{"$f":"Zateplení!F97","v":0},{"$f":"Zateplení!F98","v":""},{"$f":"Zateplení!F99","v":""}]
[8,"Zateplení","Instalace mechanického větrání s rekuperací",{"$f":"IF(parametry!B110=TRUE,Zateplení!F100,\"ne\")","v":"ne"},0,0,0,0,{"$f":"CONCATENATE(\"účinnost systému nuceného větrání: \",AB10*100,\"%, větraný objem: \",AC10,\" m3/h\")","v":"účinnost systému nuceného větrání: 0%, větraný objem: 0 m3/h"},{"$f":"IF(AD10=\"Nesplňuje požadavky na účinnost rekuperace, účinnost musí být alespoň 67%\",\"Opatření NESPLŇUJE požadavek programu\",\"Opatření splňuje požadavek programu\")","v":"Opatření splňuje požadavek programu"},null,null,null,null,null,null,null,null,null,null,null,null,null,null,null,null,null,{"$f":"Zateplení!F101","v":0},{"$f":"Zateplení!F102","v":0},{"$f":"Zateplení!G101","v":""}]
[9,"Osvětlení","Výměna klasických žárovek",{"$f":"IF(parametry!B111=TRUE,Osvětlení!E4,\"ne\")","v":"ne"},0,0,0,0,{"$f":"CONCATENATE(\"počet vyměňových zdrojů \",AE11,\", celkový příkon vyměňových zdrojů \",AF11,\" W, průměrný příkon 1 zdroje: \",AG11,\" W\")","v":{"$error":"#DIV/0!"}},"Opatření splňuje požadavek programu",null,null,null,null,null,null,null,null,null,null,null,null,null,null,null,null,null,null,null,null,{"$f":"Osvětlení!E5","v":0},{"$f":"IF(AND(Osvětlení!E7=0,Osvětlení!E8=0),0,IF(Osvětlení!E7=0,AE11*AG11,Osvětlení!E7))","v":0},{"$f":"IF(Osvětlení!E8=0,AF11/AE11,Osvětlení!E8)","v":{"$error":"#DIV/0!"}}]
[10,"Osvětlení","Výměna halogenových žárovek",{"$f":"IF(parametry!B111=TRUE,Osvětlení!E10,\"ne\")","v":"ne"},0,0,0,0,{"$f":"CONCATENATE(\"počet vyměňových zdrojů \",AE12,\", celkový příkon vyměňových zdrojů \",AF12,\" W, průměrný příkon 1 zdroje: \",AG12,\" W\")","v":{"$error":"#DIV/0!"}},"Opatření splňuje požadavek programu",null,null,null,null,null,null,null,null,null,null,null,null,null,null,null,null,null,null,null,null,{"$f":"Osvětlení!E11","v":0},{"$f":"IF(AND(Osvětlení!E13=0,Osvětlení!E14=0),0,IF(Osvětlení!E13=0,AE12*AG12,Osvětlení!E13))","v":0},{"$f":"IF(Osvětlení!E14=0,AF12/AE12,Osvětlení!E14)","v":{"$error":"#DIV/0!"}}]
[11,"Osvětlení","Výměna zářivek",{"$f":"IF(parametry!B111=TRUE,Osvětlení!E16,\"ne\")","v":"ne"},0,0,0,0,{"$f":"CONCATENATE(\"počet vyměňových zdrojů \",AE13,\", celkový příkon vyměňových zdrojů \",AF13,\" W, průměrný příkon 1 zdroje: \",AG13,\" W\")","v":{"$error":"#DIV/0!"}},"Opatření splňuje požadavek programu",null,null,null,null,null,null,null,null,null,null,null,null,null,null,null,null,null,null,null,null,{"$f":"Osvětlení!E17","v":0},{"$f":"IF(AND(Osvětlení!E19=0,Osvětlení!E20=0),0,IF(Osvětlení!E19=0,AE13*AG13,Osvětlení!E19))","v":0},{"$f":"IF(Osvětlení!E20=0,AF13/AE13,Osvětlení!E20)","v":{"$error":"#DIV/0!"}}]
[12,"Osvětlení","Výměna rtuťových výbojek",{"$f":"IF(parametry!B111=TRUE,Osvětlení!E22,\"ne\")","v":"ne"},0,0,0,0,{"$f":"CONCATENATE(\"počet vyměňových zdrojů \",AE14,\", celkový příkon vyměňových zdrojů \",AF14,\" W, průměrný příkon 1 zdroje: \",AG14,\" W\")","v":{"$error":"#DIV/0!"}},"Opatření splňuje požadavek programu",null,null,null,null,null,null,null,null,null,null,null,null,null,null,null,null,null,null,null,null,{"$f":"Osvětlení!E23","v":0},{"$f":"IF(AND(Osvětlení!E25=0,Osvětlení!E26=0),0,IF(Osvětlení!E25=0,AE14*AG14,Osvětlení!E25))","v":0},{"$f":"IF(Osvětlení!E26=0,AF14/AE14,Osvětlení!E26)","v":{"$error":"#DIV/0!"}}]
[13,"Osvětlení","Výměna kompaktních zářivek (CFL)",{"$f":"IF(parametry!B111=TRUE,Osvětlení!E28,\"ne\")","v":"ne"},0,0,0,0,{"$f":"CONCATENATE(\"počet vyměňových zdrojů \",AE15,\", celkový příkon vyměňových zdrojů \",AF15,\" W, průměrný příkon 1 zdroje: \",AG15,\" W\")","v":{"$error":"#DIV/0!"}},"Opatření splňuje požadavek programu",null,null,null,null,null,null,null,null,null,null,null,null,null,null,null,null,null,null,null,null,{"$f":"Osvětlení!E29","v":0},{"$f":"IF(AND(Osvětlení!E31=0,Osvětlení!E32=0),0,IF(Osvětlení!E31=0,AE15*AG15,Osvětlení!E31))","v":0},{"$f":"IF(Osvětlení!E32=0,AF15/AE15,Osvětlení!E32)","v":{"$error":"#DIV/0!"}}]
[]
[null,null,null,null,null,null,null,null,null,{"$f":"IFERROR(VLOOKUP(\"Opatření NESPLŇUJE požadavek programu\",J3:J15,1,0),\"Všechna opatření splňují požadavky programu\")","v":"Všechna opatření splňují požadavky programu"}]
[]
[]
[null,"Výsledek","Opatření","Popis","Vyhodnocení"]
[1,null,{"$f":"IF(H3=0,\"\",INDEX($C$3:$C$15,$H3))","v":""},{"$f":"IF(C21=\"\",\"\",VLOOKUP(C21,$C$3:$J$15,7,0))","v":""},{"$f":"IF(C21=\"\",\"\",VLOOKUP(C21,$C$3:$J$15,8,0))","v":""}]
[2,null,{"$f":"IF(H4=0,\"\",INDEX($C$3:$C$15,$H4))","v":""},{"$f":"IF(C22=\"\",\"\",VLOOKUP(C22,$C$3:$J$15,7,0))","v":""},{"$f":"IF(C22=\"\",\"\",VLOOKUP(C22,$C$3:$J$15,8,0))","v":""}]
[3,null,"","",""]
[4,null,"","",""]
[5,null,"",{"$f":"IF(C25=\"\",\"\",VLOOKUP(C25,$C$3:$J$15,7,0))","v":""},""]
[6,null,"","",""]
[7,null,"","",""]
[8,null,"","",""]
[9,null,"","",""]
[10,null,"","",""]
[11,null,"","",""]
[12,null,"","",""]
[13,null,"","",""]
[14,null,"","",""]

{"sheet":"Tisk","index":9,"n_rows":87,"n_cols":7,"rows_kept":87,"cut":false,"hidden":true,"merged":[[85,3,85,5],[86,3,86,5],[1,0,1,6],[2,0,2,6],[12,0,12,6],[5,3,5,6],[7,3,7,6],[8,3,8,6],[9,3,9,6],[10,3,10,6],[4,3,4,6],[79,0,79,6],[78,0,78,6],[56,4,56,6],[57,4,57,6],[58,4,58,6],[44,0,44,4],[34,0,34,4],[34,5,34,6],[38,0,38,4],[63,2,63,3],[4,0,4,2],[5,0,5,2],[6,0,6,2],[6,3,6,6],[28,0,28,3],[30,0,30,3],[31,0,31,3],[76,0,76,4],[16,0,16,3],[17,0,17,3],[18,0,18,3],[23,0,23,3],[19,0,19,3],[24,0,24,3],[22,0,22,3],[20,0,20,3],[25,0,25,3],[65,2,65,3],[70,2,70,3],[67,2,67,3],[68,2,68,3],[62,2,62,3],[64,2,64,3],[70,0,70,1],[57,2,57,3],[32,0,32,3],[58,2,58,3],[59,2,59,3],[61,2,61,3],[7,0,7,2],[8,0,8,2],[9,0,9,2],[10,0,10,2],[38,5,38,6],[64,4,64,6],[45,0,45,4],[46,0,46,5],[47,0,47,5],[48,0,48,5],[61,4,61,6],[52,0,52,5],[63,4,63,6],[67,0,67,1],[68,0,68,1],[69,0,69,1],[74,5,74,6],[29,0,29,3],[60,2,60,3],[26,0,26,3],[66,2,66,3],[69,2,69,3],[62,0,62,1],[63,0,63,1],[64,0,64,1],[65,0,65,1],[66,0,66,1],[57,0,57,1],[58,0,58,1],[59,0,59,1],[68,4,68,6],[69,4,69,6],[70,4,70,6],[60,0,60,1],[61,0,61,1],[59,4,59,6],[60,4,60,6],[75,0,75,4],[51,0,51,5],[50,0,50,5],[49,0,49,5],[27,0,27,3],[14,0,15,3],[14,4,14,6],[62,4,62,6],[21,0,21,3],[74,0,74,4],[73,0,73,4],[41,0,41,4],[42,0,42,4],[43,0,43,4],[56,2,56,3],[65,4,65,6],[66,4,66,6],[67,4,67,6],[35,5,35,6],[36,5,36,6],[37,5,37,6],[35,0,35,4],[36,0,36,4],[37,0,37,4]]}
[]
["Energetické vyhodnocení projektu"]
["v programu podpory Úspory energie "]
[]
["Identifikační údaje"]
["Název projektu:",null,null,{"$f":"'Hlavní list'!C6","v":0}]
["Klient:",null,null,{"$f":"'Hlavní list'!C7","v":0}]
["IČ klienta:",null,null,{"$f":"'Hlavní list'!C8","v":0}]
["Adresa žadatele:",null,null,{"$f":"'Hlavní list'!C9","v":0}]
["Adresa místa realizace projektu:",null,null,{"$f":"'Hlavní list'!C10","v":0}]
["Popis projektu:",null,null,{"$f":"'Hlavní list'!C11","v":0}]
[]
["Vysvětlivky pro žadatele:\n• Odpovězte prosím na otázky v checklistu ano / ne / není relevantní.\n• Po zaškrtnutí odpovědí pokračujte prosím podpisem prohlášení. \n"]
[]
["Checklist",null,null,null,"Označte pomocí x  jednu z možností"]
[null,null,null,null,"ano","ne","není relevantní"]
["a) Projekt dosáhl minimální dosažené úspory ve výši 10 % a dokázal dosažitelnost úspory, je v souladu s normami a právními předpisy EU v oblasti životního prostředí a je nákladově optimální, tj. předpokládá pořízení majetku v dané cenové hladině přiměřené potřebě realizace projektu.",null,null,null,{"$f":"IF('Hlavní list'!C40>10%,\"x\",\"\")","v":""},{"$f":"IF('Hlavní list'!C40<10%,\"x\",\"\")","v":"x"}]
["b) Podle zákona č. 165/2012 Sb. o podporovaných zdrojích energie a o změně některých zákonů ve znění pozdějších předpisů § 25 bod 5) Investiční podpora tepla podle odstavců 3 a 4 se nevztahuje na solární systémy nebo systémy s tepelnými čerpadly, které by svým provozem zhoršily celkovou průměrnou roční účinnost stávajících účinných soustav zásobování tepelnou energií. Tyto soustavy zásobování tepelnou energií eviduje a způsobem umožňujícím dálkový přístup zveřejňuje Energetický regulační úřad do 30. dubna následujícího roku."]
["e) Samostatnou instalaci OZE pro vlastní spotřebu podniku (využití biomasy, solární tepelná čerpadla a fotovoltaické systémy) není možné podpořit, pokud nebude úspora energie ve smyslu definice podle směrnice 2012/27/EU o energetické účinnosti, tzn. úspory energie dosažené zvýšení energetické účinnosti oproti původnímu zdroji"]
["g) Pokud se jedná o provozovatele stacionárního zařízení v České republice, který je součástí Evropského systému emisního obchodování, tak se na projekty vztahuje omezení vyplývající z preambule (3) a z kapitoly I článku 3 bod 3. b) Nařízení Evropského parlamentu a rady (EU) č. 1301/2013 ze dne 17. prosince 2013 o Evropském fondu pro regionální rozvoj, o zvláštních ustanovených týkajících se cíle Investice pro růst a zaměstnanost a o zrušení nařízení (ES) č. 1080/2006."]
["j) V případě realizace kotle na biomasu budou podporovány pouze kotle splňující požadavky Nařízení komise č. 2015/1189 ze dne 28. dubna 2015, kterým se provádí směrnice Evropského parlamentu a Rady 2009/125/ES, pokud jde o požadavky na ekodesign kotlů na tuhá paliva požadavky od 1. 1. 2020)."]
["k) Podpořeny nebudou projekty zaměřené na rekonstrukci/výstavbu zdroje kombinované výroby elektřiny a tepla a monovýroby tepla, která využívá jako palivo uhlí nebo spoluspalování uhlí a biomasy."]
["l) V případě projektu, který bude využívat dřevní biomasu, je nutno zajistit udržitelné dodávky z lokálních zdrojů. Tato udržitelná dodávka z lokálních zdrojů je buď z vlastních lokálních zdrojů, nebo bude potvrzená příslibem dodávky dřevní biomasy ve formě smlouvy o smlouvě budoucí od lokálního dodavatele."]
["m) Projekt nesmí být financován provozní podporou obnovitelných zdrojů energie."]
["n) Podpořeny budou pouze projekty, které splňují požadavky mezních hodnot emisí pro spalovací zařízení podle Směrnice 2015/2193/ES o omezení emisí některých znečišťujících látek do ovzduší ze středních spalovacích zařízení."]
["o) o) Pokud v rámci předcházejících 3 let nelze doložit energetické vstupy spotřeby energie alespoň za jeden rok na základě předložených faktur za energii (bude akceptováno období začínající od 1. 1. 2016), tak projekt není způsobilý. \nNeuplatí na projekty, kde opatření mají vliv pouze na celkovou dodanou energii do budovy podle vyhlášky č. 78/2013 Sb., o energetické náročnosti budov, tj. na jakoukoliv kombinaci dílčích dodaných energií na vytápění, chlazení, větrání, úpravu vlhkosti vzduchu, přípravu teplé vody a osvětlení."]
["p) Po realizaci projektu musí budova plnit minimálně parametry energetické náročnosti budov podle požadavků definovaných § 6 odst. 2 písm. b) vyhlášky č.78/2013 Sb., o energetické náročnosti budov). Hodnoty ukazatelů energetické náročnosti hodnocené budovy (průměrný součinitel prostupu tepla a celková dodaná energie za rok nejsou vyšší než referenční hodnoty těchto ukazatelů energetické náročnosti pro referenční budovu."]
["q) V případě realizace opatření ke snižování energetické náročnosti budov, u kterých dochází k jiné než větší změně dokončené budovy nebo větší změně dokončené budovy, ale není možné z technických nebo ekonomických důvodů plnit bod „mp“, pak všechny měněné/upravované stavební prvky/konstrukce obálky budovy na systémové hranici, na kterých dochází k realizaci opatření, musí splnit podmínku na součinitel prostupu tepla příslušné Urec dle ČSN 730540 - 2:2011 a uvažované návrhové teploty."]
["r) Pro průmyslové a výrobní provozy, dílenské provozovny a zemědělské budovy se spotřebou energie do 700 GJ za rok platí pro danou část opatření podmínka U ≤ UN (Normové hodnoty součinitele prostupu tepla UN, pro uvažovanou návrhovou teplotu jednotlivých konstrukcí dle ČSN 73 0540-2:2011 Tepelná ochrana budov). "]
["s) Požadavky podle bodů „p“ nebo „q“ nebo „r“ se netýkají památkově chráněných budov v souladu s § 7 odst. 5 zákona č. 406/2000 Sb. ve znění pozdějších předpisů a architektonicky cenných budov."]
["t) V případě realizace opatření ke snižování energetické náročnosti budov jednoznačně definována povinnost na vyregulování otopné soustavy."]
["u) V případě realizace opatření zahrnující větrací jednotky musí být plněny požadavky dle Nařízení Komise (EU) 1253/2014 týkající se požadavků na ekodesign větracích jednotek."]
["y) Investice musí vést ke snížení emisí CO2 v porovnání se stávajícími zařízeními v případě přechodu na jiná paliva minimálně o 30 % (například z tuhých fosilních paliv na zemní plyn). Tato podmínka se nevztahuje na výměnu stávajících plynových kotlů s novými jednotkami (vysoce účinné kondenzační kotle). Investice mohou zahrnovat kotle na biomasu. Do celkové energické bilance pro výpočet snížení CO2 vlivem instalace nového zdroje nemusí být započítána spotřeba energie na technologické a ostatní procesy."]
[]
["Předpokládané výdaje na realizaci projektu:",null,null,null,null,"Kč"]
["Výdaje na technické zhodnocení stavby (materiál a práce pro provedení zateplení, výměna u stavebních otvorů, další stavební práce spojené s provedením energetického opatření)",null,null,null,null,{"$f":"'Hlavní list'!D20","v":0}]
["Výdaje na výměnu stávajícího zdroje energie (výměna kotle, apod.)",null,null,null,null,{"$f":"'Hlavní list'!D22","v":0}]
["Výdaje na provedení výměny stávajícího osvětlení v budovách ",null,null,null,null,{"$f":"'Hlavní list'!D24","v":0}]
["Výdaje celkem",null,null,null,null,{"$f":"'Hlavní list'!D26","v":0}]
[]
[]
["Dosažené výsledky projektu:",null,null,null,null,"kWh","GJ"]
["Výchozí roční spotřeba energie ",null,null,null,null,{"$f":"'Hlavní list'!C37","v":""},{"$f":"'Hlavní list'!D37","v":""}]
["Výsledná roční spotřeba energie",null,null,null,null,{"$f":"'Hlavní list'!C38","v":""},{"$f":"'Hlavní list'!D38","v":""}]
["Roční úspora paliv a energie",null,null,null,null,{"$f":"'Hlavní list'!C39","v":""},{"$f":"'Hlavní list'!D39","v":""}]
[]
["Roční úspora paliv a energie [%]",null,null,null,null,null,{"$f":"'Hlavní list'!C40","v":0}]
["Roční úspora  emisí CO2 [kg] ",null,null,null,null,null,{"$f":"'Hlavní list'!C41","v":0}]
["Roční úspora emisí CO2 [%]",null,null,null,null,null,{"$f":"'Hlavní list'!C42","v":0}]
["Roční úspora emisí tuhých látek [kg]",null,null,null,null,null,{"$f":"'Hlavní list'!D43","v":0}]
["Roční úspora emisí frakcí PM10 [kg]",null,null,null,null,null,{"$f":"'Hlavní list'!D44","v":0}]
["Roční úspora emisí  frakcí PM2,5 [kg]",null,null,null,null,null,{"$f":"'Hlavní list'!D45","v":0}]
["Roční úspora nákladů na energii [Kč]",null,null,null,null,null,{"$f":"'Hlavní list'!C46","v":0}]
[{"$f":"'Hlavní list'!C48","v":"Nejsou zadána všechna data"}]
[]
[]
["Realizovaná opatření",null,"Popis opatření",null,"Vyhodnocení opatření"]
[{"$f":"'opatření k realizaci'!C21","v":""},null,{"$f":"'opatření k realizaci'!D21","v":""},null,{"$f":"'opatření k realizaci'!E21","v":""}]
[{"$f":"'opatření k realizaci'!C22","v":""},null,{"$f":"'opatření k realizaci'!D22","v":""},null,{"$f":"'opatření k realizaci'!E22","v":""}]
[{"$f":"'opatření k realizaci'!C23","v":""},null,{"$f":"'opatření k realizaci'!D23","v":""},null,{"$f":"'opatření k realizaci'!E23","v":""}]
[{"$f":"'opatření k realizaci'!C24","v":""},null,{"$f":"'opatření k realizaci'!D24","v":""},null,{"$f":"'opatření k realizaci'!E24","v":""}]
[{"$f":"'opatření k realizaci'!C25","v":""},null,{"$f":"'opatření k realizaci'!D25","v":""},null,{"$f":"'opatření k realizaci'!E25","v":""}]
[{"$f":"'opatření k realizaci'!C26","v":""},null,{"$f":"'opatření k realizaci'!D26","v":""},null,{"$f":"'opatření k realizaci'!E26","v":""}]
[{"$f":"'opatření k realizaci'!C27","v":""},null,{"$f":"'opatření k realizaci'!D27","v":""},null,{"$f":"'opatření k realizaci'!E27","v":""}]
[{"$f":"'opatření k realizaci'!C28","v":""},null,{"$f":"'opatření k realizaci'!D28","v":""},null,{"$f":"'opatření k realizaci'!E28","v":""}]
[{"$f":"'opatření k realizaci'!C29","v":""},null,{"$f":"'opatření k realizaci'!D29","v":""},null,{"$f":"'opatření k realizaci'!E29","v":""}]
[{"$f":"'opatření k realizaci'!C30","v":""},null,{"$f":"'opatření k realizaci'!D30","v":""},null,{"$f":"'opatření k realizaci'!E30","v":""}]
[{"$f":"'opatření k realizaci'!C31","v":""},null,{"$f":"'opatření k realizaci'!D31","v":""},null,{"$f":"'opatření k realizaci'!E31","v":""}]
[{"$f":"'opatření k realizaci'!C32","v":""},null,{"$f":"'opatření k realizaci'!D32","v":""},null,{"$f":"'opatření k realizaci'!E32","v":""}]
[{"$f":"'opatření k realizaci'!C33","v":""},null,{"$f":"'opatření k realizaci'!D33","v":""},null,{"$f":"'opatření k realizaci'!E33","v":""}]
[{"$f":"'opatření k realizaci'!C34","v":""},null,{"$f":"'opatření k realizaci'!D34","v":""},null,{"$f":"'opatření k realizaci'!E34","v":""}]
[]
[]
["Projekt,  který  je předmětem  energetické  posouzení generuje  roční úsporu  primárních  energetických  vstupů  v hodnotě",null,null,null,null,{"$f":"G45","v":""},"GJ"]
["Způsobilé výdaje pro realizaci projektu jsou ve výši",null,null,null,null,{"$f":"F39","v":0}]
["Výše roční úspory emisí CO2 realizované projektem jsou ve výši",null,null,null,null,{"$f":"G48","v":0},"kg"]
["Měrné způsobilé výdaje na snížení CO2",null,null,null,null,{"$f":"IFERROR(F39/G48,0)","v":0},"Kč/kg"]
[]
["Žadatel, který provedl Energetické posouzení projektu, si zajistil patřičnou kontrolu kvality a platnosti výsledků samo-hodnotícího nástroje. Potvrzuje, že Energetické posouzení bylo provedeno správně a v souladu s podmínkami uvedenými v Příloze č. 4 Výzvy v rámci Finančního nástroje Úspory energie - úvěry. Byly použity správné údaje a byla zvolena správná opatření. "]
["Žadatel je povinen realizovat projekt dle zadaných parametrů v rozsahu popisu zadanými pro správné vyhodnocení energetické úspory. V případě, že by došlo během realizace k odchýlení od plánovaného stavu, je žadatel povinen předložit nové energetické posouzení, které prokáže, že projekt splňuje parametry platné Výzvy programu Úspory energie - úvěry. V případě, že by energetické hodnocení nemohlo být použito pro nový stav, je žadatel povinen postupovat podle pravidel Výzvy, a to zpracovat energetický posudek a následně ověřovací energetický posudek, který prokáže splnění podmínek Výzvy."]
[]
[]
[]
[]
[]
["Dne",{"$f":"TODAY()","v":"2020-02-05"}]
[null,null,null,"Jméno osoby jednající za žadatele a podpis"]

{"sheet":"export dat","index":10,"n_rows":5,"n_cols":135,"rows_kept":5,"cut":false,"hidden":true,"merged":[]}
["Hlavní list",null,null,null,null,null,null,null,null,null,null,null,null,"Zateplení",null,null,null,null,null,null,null,null,null,null,null,null,null,null,null,null,null,null,null,null,null,null,null,null,null,null,null,null,null,null,null,null,null,null,null,null,null,null,null,null,null,null,null,null,null,null,null,null,null,null,null,null,null,null,null,null,null,null,null,null,null,null,null,null,null,null,null,null,null,null,"Zdroj",null,null,null,null,null,null,null,null,null,null,null,null,null,null,"Osvětlení",null,null,null,null,null,null,null,null,null,null,null,null,null,null,null,null,null,null,null,null,null,null,null,null,null,null,null,null,"Hlavní list"]
[null,null,null,null,null,null,null,null,null,null,null,null,null,"Základní informace o budově / Basic information about the building",null,null,null,null,null,null,null,null,null,null,"Vyhodnocení plnění požadavků dle Průkazu energetické náročnosti",null,null,null,null,null,"Vlastnosti budovy před realizací opatření / Building description",null,null,null,null,null,null,null,"Opatření k realizaci / Measures for implementation",null,null,null,null,null,null,null,null,null,null,null,null,null,null,null,null,null,null,null,null,null,null,null,null,null,null,null,null,null,null,null,null,null,null,null,null,null,null,null,null,null,null,null,null,null,"Parametry stávajícího zdroje tepla/Old boiler parameters",null,null,null,null,null,null,"Parametry nového zdroje tepla / New boiler parameters",null,null,null,null,null,null,null,"Jakého typu jsou stávající světelné zdroje? / What type of lighting do you plan to replace?",null,null,null,null,null,null,null,null,null,null,null,null,null,null,null,null,null,null,null,null,null,null,null,null,null,null,null,null,"3. Výsledky / Results"]
[null,null,null,null,null,null,null,null,null,null,null,null,null,"1.1","1.2","1.3.","1.4","1.5","1.6","1.7","1.8","1.9","1.10","1.11","2.1","2.2","2.3","2.4","2.5","2.6","3.1.1","3.1.2","3.1.3","3.1.4","3.1.5","3.1.6","3.1.7","3.1.8","4.1.1","4.1.2","4.1.3","4.1.4","4.1.5","4.1.6","4.1.7","4.1.8","4.2.1","4.2.2","4.2.3","4.2.4","4.2.5","4.2.6","4.2.7","4.2.8","4.3.1","4.3.2","4.3.3","4.3.4","4.3.5","4.3.6","4.3.7","4.3.8","4.4.1","4.4.2","4.4.3","4.4.4","4.4.5","4.4.6","4.5.1","4.5.2","4.5.3","4.5.4","4.5.5","4.5.6","4.6.1","4.6.2","4.6.3","4.6.4","4.6.5","4.6.6","4.7.1","4.7.2","4.7.3",null,"1.1","1.2","1.3","1.4","1.5","1.6","1.7","2.1","2.2","2.3","2.4","2.5","2.6","2.7","2.8","1.1.1","1.1.2","1.1.3","1.1.4","1.1.5","1.2.1","1.2.2","1.2.3","1.2.4","1.2.5","1.3.1","1.3.2","1.3.3","1.3.4","1.3.5","1.4.1","1.4.2","1.4.3","1.4.4","1.4.5","1.5.1","1.5.2","1.5.3","1.5.4","1.5.5","2.1.1","2.1.2","2.2","2.3"]
["Název projektu:","Klient:","IČ klienta:","Adresa žadatele:","Adresa místa realizace projektu:","Popis projektu:","Výdaje na technické zhodnocení stavby ","Výdaje na výměnu stávajícího zdroje energie (výměna kotle, apod.) ","Výdaje na provedení výměny stávajícího osvětlení v budovách","Náklady projektu:","1. Výměna zdroje tepla / Boiler replacement","2. Zateplení, výměna oken / thermal insulation, windows replacement","3. Náhrada světelných zdrojů LED zdroji / Replacement of lighting with LED","Jakým způsobem budete zadávat projekt?","Typ posuzovaného objektu","Památková ochrana budovy","Znáte roční spotřebu budovy?","Jaká je roční spotřeba domu? ","Jaká je celková vytápěná plocha? ","Období výstavby","Vnitřní návrhová teplota v otopném období ","Dochází v projektu ke změně zdroje na vytápění?","Jaký typ zdroje je instalován?","Jaké se používá palivo?","Vypočtená hodnota průměrného součinitele prostupu tepla Uem po realizaci projektu","Referenční hodnota průměrného součinitele prostupu tepla Uem,R po realizaci projektu","Vypočtená hodnota dodané energie ER po realizaci projektu","Vypočtená hodnota referenční dodané energie ER po realizaci projektu","Vypočtená hodnota dodané energie ER před realizací projektu","Vyhodnocení plnění požadavků na energetickou náročnost pro projekt jako celek","Obvodový plášť","Střecha","Střecha - typ konstrukce","Podlaha, strop nad suterénem","Podlaha, strop nad suterénem typ konstrukce","Okna","Dveře, vrata","Střešní okna, světlíky","Vyberte ano / ne","Typ zateplení","Tloušťka tepelné izolace [mm]","Plocha zateplované konstrukce [m2]","Součinitel prostupu tepla konstrukce z PENB [W/(m2.K)]","Součinitel prostupu tepla výpočet z kalkulačky  [W/(m2.K)]","Požadavek programu na U [W/(m2.K)]","Vyhodnocení plnění požadavku","Vyberte ano / ne","Typ zateplení","Tloušťka tepelné izolace [mm]","Plocha zateplované konstrukce [m2]","Součinitel prostupu tepla konstrukce z PENB [W/(m2.K)]","Součinitel prostupu tepla výpočet z kalkulačky  [W/(m2.K)]","Požadavek programu na U [W/(m2.K)]","Vyhodnocení plnění požadavku","Vyberte ano / ne","Typ zateplení","Tloušťka tepelné izolace [mm]","Plocha zateplované konstrukce [m2]","Součinitel prostupu tepla konstrukce z PENB [W/(m2.K)]","Součinitel prostupu tepla výpočet z kalkulačky  [W/(m2.K)]","Požadavek programu na U [W/(m2.K)]","Vyhodnocení plnění požadavku","Vyberte ano / ne","Typ oken"," Plocha vyměňovaných oken [m2]","Součinitel prostupu tepla nových oken [W/(m2.K)]","Požadavek programu na U [W/(m2.K)]","Vyhodnocení plnění požadavku","Vyberte ano / ne","Typ dveří, vrat"," Plocha vyměňovaných dveří, vrat [m2]","Součinitel prostupu tepla nových dveří, vrat [W/(m2.K)]","Požadavek programu na U [W/(m2.K)]","Vyhodnocení plnění požadavku","Vyberte ano / ne","Typ oken"," Plocha vyměňovaných oken [m2]","Součinitel prostupu tepla nových oken [W/(m2.K)]","Požadavek programu na U [W/(m2.K)]","Vyhodnocení plnění požadavku","Vyberte ano / ne","účinnost systému nuceného větrání v %","větraný objem v m3/h","vyhonocení plnění požadavků","O jaký typ zdroje se jedná?","V jakém období byl kotel vyroben?","Jaké se používá palivo?","Jaká je spotřeba paliva za jeden rok?","Znáte účinnost kotle?","Jaká je účinnost?","Jaký je instalovaný výkon kotle?","Jaký je typ nového kotle?","Znáte účinnost nového kotle?","Jaká je účinnost?","Jaký je instalovaný výkon zdroje?","Znáte sezónní účinnost (COP) tepelného čerpadla?","Zadejte sezónní účinnost tepelného čerpadla","Instalujete také solární systém?","Kolik m2 instalujete?","Jsou to klasické žárovky?","Jaký je jejich počet?","Znáte celkový příkon všech klasických žárovek?","Uveďte jejich celkový příkon","Jaký je průměrný příkon klasických žárovek?","Halogenové žárovky","Jaký je jejich počet?","Znáte celkový příkon všech halogenových žárovek?","Uveďte jejich celkový příkon","Jaký je průměrný příkon halogenových žárovek?","Zářivky / Fluorescent lamp","Jaký je jejich počet?","Znáte celkový příkon všech zářivek?","Uveďte jejich celkový příkon","Jaký je průměrný příkon zářivek?","Rtuťové výbojky / Discharge lamp","Jaký je jejich počet?","Znáte celkový příkon všech rtuťových výbojek?","Uveďte jejich celkový příkon","Jaký je průměrný příkon rtuťových výbojek?","Kompaktní zářivky (CFL) / Compact fluorescent lamps","Jaký je jejich počet?","Znáte celkový příkon všech kompaktních zářivek?","Uveďte jejich celkový příkon","Jaký je průměrný příkon kompaktních zářivek?","Znáte celkovou spotřebu elektřiny všech světelných zdrojů?","Uveďte spotřebu elektřiny?","Kolik hodin denně jsou v průměru zapnuté všechny světelné zdroje?",null,"Výchozí roční spotřeba energie [kWh]","Výsledná roční spotřeba energie [kWh] ","Roční úspora paliv a energie [kWh]","Roční úspora paliv a energie [%]","Roční úspora CO2 [t] ","Roční úspora CO2 [%] ","Roční úspora nákladů na energii [Kč]"]
[{"$f":"'Hlavní list'!C6","v":0},{"$f":"'Hlavní list'!C7","v":0},{"$f":"'Hlavní list'!C8","v":0},{"$f":"'Hlavní list'!C9","v":0},{"$f":"'Hlavní list'!C10","v":0},{"$f":"'Hlavní list'!C11","v":0},{"$f":"'Hlavní list'!D20","v":0},{"$f":"'Hlavní list'!D22","v":0},{"$f":"'Hlavní list'!D24","v":0},{"$f":"'Hlavní list'!D26","v":0},{"$f":"parametry!B109","v":false},{"$f":"parametry!B110","v":false},{"$f":"parametry!B111","v":false},{"$f":"IF(parametry!B136=1,parametry!A119,parametry!A120)","v":"Zadání projektu na základě Průkazu energetické náročnosti"},{"$f":"Zateplení!F5","v":0},{"$f":"Zateplení!F6","v":0},{"$f":"Zateplení!F7","v":0},{"$f":"Zateplení!F8","v":0},{"$f":"Zateplení!F9","v":0},{"$f":"Zateplení!F10","v":0},{"$f":"Zateplení!F11","v":0},{"$f":"Zateplení!F12","v":0},{"$f":"Zateplení!F13","v":0},{"$f":"Zateplení!F14","v":0},{"$f":"Zateplení!F18","v":0},{"$f":"Zateplení!F19","v":0},{"$f":"Zateplení!F20","v":0},{"$f":"Zateplení!F21","v":0},{"$f":"Zateplení!F22","v":0},{"$f":"Zateplení!F23","v":""},{"$f":"Zateplení!F28","v":0},{"$f":"Zateplení!F29","v":0},{"$f":"Zateplení!F30","v":0},{"$f":"Zateplení!F31","v":0},{"$f":"Zateplení!F32","v":0},{"$f":"Zateplení!F33","v":0},{"$f":"Zateplení!F34","v":0},{"$f":"Zateplení!F35","v":0},{"$f":"Zateplení!F58","v":0},{"$f":"Zateplení!F59","v":0},{"$f":"Zateplení!F60","v":0},{"$f":"Zateplení!F61","v":0},{"$f":"Zateplení!F62","v":0},{"$f":"Zateplení!F63","v":""},{"$f":"Zateplení!F64","v":""},{"$f":"Zateplení!F73","v":""},{"$f":"Zateplení!F66","v":0},{"$f":"Zateplení!F67","v":0},{"$f":"Zateplení!F68","v":0},{"$f":"Zateplení!F69","v":0},{"$f":"Zateplení!F70","v":0},{"$f":"Zateplení!F71","v":""},{"$f":"Zateplení!F72","v":""},{"$f":"Zateplení!F73","v":""},{"$f":"Zateplení!F74","v":0},{"$f":"Zateplení!F75","v":0},{"$f":"Zateplení!F76","v":0},{"$f":"Zateplení!F77","v":0},{"$f":"Zateplení!F78","v":0},{"$f":"Zateplení!F79","v":""},{"$f":"Zateplení!F80","v":""},{"$f":"Zateplení!F81","v":""},{"$f":"Zateplení!F82","v":0},{"$f":"Zateplení!F83","v":0},{"$f":"Zateplení!F84","v":0},{"$f":"Zateplení!F85","v":0},{"$f":"Zateplení!F86","v":""},{"$f":"Zateplení!F87","v":""},{"$f":"Zateplení!F88","v":0},{"$f":"Zateplení!F89","v":0},{"$f":"Zateplení!F90","v":0},{"$f":"Zateplení!F91","v":0},{"$f":"Zateplení!F92","v":""},{"$f":"Zateplení!F93","v":""},{"$f":"Zateplení!F94","v":0},{"$f":"Zateplení!F95","v":0},{"$f":"Zateplení!F96","v":0},{"$f":"Zateplení!F97","v":0},{"$f":"Zateplení!F98","v":""},{"$f":"Zateplení!F99","v":""},{"$f":"Zateplení!F100","v":0},{"$f":"Zateplení!F101","v":0},{"$f":"Zateplení!F102","v":0},{"$f":"Zateplení!G101","v":""},{"$f":"Kotel!E4","v":0},{"$f":"Kotel!E5","v":0},{"$f":"Kotel!E6","v":0},{"$f":"Kotel!E7","v":0},{"$f":"Kotel!E8","v":0},{"$f":"parametry!G75","v":{"$error":"#N/A"}},{"$f":"Kotel!E10","v":0},{"$f":"Kotel!E13","v":0},{"$f":"Kotel!E14","v":0},{"$f":"parametry!G76","v":{"$error":"#N/A"}},{"$f":"Kotel!E16","v":0},{"$f":"Kotel!E17","v":0},{"$f":"Kotel!E18","v":0},{"$f":"Kotel!#REF!","v":{"$error":"#REF!"}},{"$f":"Kotel!#REF!","v":{"$error":"#REF!"}},{"$f":"Osvětlení!E4","v":0},{"$f":"Osvětlení!E5","v":0},{"$f":"Osvětlení!E6","v":0},{"$f":"Osvětlení!E7","v":0},{"$f":"Osvětlení!E8","v":0},{"$f":"Osvětlení!E10","v":0},{"$f":"Osvětlení!E11","v":0},{"$f":"Osvětlení!E12","v":0},{"$f":"Osvětlení!E13","v":0},{"$f":"Osvětlení!E14","v":0},{"$f":"Osvětlení!E16","v":0},{"$f":"Osvětlení!E17","v":0},{"$f":"Osvětlení!E18","v":0},{"$f":"Osvětlení!E19","v":0},{"$f":"Osvětlení!E20","v":0},{"$f":"Osvětlení!E22","v":0},{"$f":"Osvětlení!E23","v":0},{"$f":"Osvětlení!E24","v":0},{"$f":"Osvětlení!E25","v":0},{"$f":"Osvětlení!E26","v":0},{"$f":"Osvětlení!E28","v":0},{"$f":"Osvětlení!E29","v":0},{"$f":"Osvětlení!E30","v":0},{"$f":"Osvětlení!E31","v":0},{"$f":"Osvětlení!E32","v":0},{"$f":"Osvětlení!E35","v":0},{"$f":"Osvětlení!E36","v":0},{"$f":"Osvětlení!E37","v":0},{"$f":"Osvětlení!E38","v":0},{"$f":"'Hlavní list'!C37","v":""},{"$f":"'Hlavní list'!C38","v":""},{"$f":"'Hlavní list'!C39","v":""},{"$f":"'Hlavní list'!C40","v":0},{"$f":"'Hlavní list'!C41","v":0},{"$f":"'Hlavní list'!C42","v":0},{"$f":"'Hlavní list'!C46","v":0}]